Workbook

Sheet Main
B10: 2018-02-02
B12: Sheet No. | C12: Template Name | D12: Summary
B13: 1 | C13: Future Intra | D13: For Intraday trading in F&O segment
B14: 2 | C14: Cash Intra | D14: For Intraday trading in cash market segment
B15: 3 | C15: Mid-cap Intra | D15: For Intraday trading in Mid-cap stocks
B16: 4 | C16: Bulk Deals | D16: Reveals Bulk Deals carried on NSE & BSE
B17: 5 | C17: Call Tracker

Sheet Future Intra
M5: Back to Main Page
A6: FOR INTRA DAY TRADING | L6: =Main!B10 -> 2018-02-02
A9: Sr.no | B9: Sector | C9: Scrip | D9: CLOSE RATE | E9: Pivot Point | F9: Supports | I9: Resistances
B10: Sector | D10: Point | E10: Point | F10: S1 | G10: S2 | H10: S3 | I10: R1 | J10: R2 | K10: R3 | L10: HIGH | M10: LOW | N10: OI | O10: % Change in OI
A11: 1 | B11: Index | C11: BANKNIFTY | D11: 27233.20 | E11: 27324.27 | F11: 26987.53 | G11: 26741.87 | H11: 26405.13 | I11: 27569.93 | J11: 27906.67 | K11: 28152.33 | L11: 27661 | M11: 27078.6 | N11: 2147040 | O11: 0.27%
A12: 2 | B12: Index | C12: NIFTY | D12: 11031.30 | E12: 11017.13 | F12: 10894.87 | G12: 10758.43 | H12: 10636.17 | I12: 11153.57 | J12: 11275.83 | K12: 11412.27 | L12: 11139.4 | M12: 10880.7 | N12: 24788175 | O12: -2.83%
A13: 3 | B13: Index | C13: NIFTYCPSE | D13: 2661.05 | E13: 887.02 | F13: 1774.03 | G13: 887.02 | H13: 1774.03 | I13: 1774.03 | J13: 887.02 | K13: 1774.03 | L13: 0 | M13: 0 | N13: 0 | O13: 0.00%
A14: 4 | B14: Index | C14: NIFTYINFRA | D14: 3569.30 | E14: 1189.77 | F14: 2379.53 | G14: 1189.77 | H14: 2379.53 | I14: 2379.53 | J14: 1189.77 | K14: 2379.53 | L14: 0 | M14: 0 | N14: 0 | O14: 0.00%
A15: 5 | B15: Index | C15: NIFTYIT | D15: 13022.00 | E15: 13013.00 | F15: 12859.00 | G15: 12696.00 | H15: 12542.00 | I15: 13176.00 | J15: 13330.00 | K15: 13493.00 | L15: 13167 | M15: 12850 | N15: 39200 | O15: 0.38%
A16: 6 | B16: Index | C16: NIFTYMID50 | D16: 5380.00 | E16: 5351.55 | F16: 5245.10 | G16: 5110.20 | H16: 5003.75 | I16: 5486.45 | J16: 5592.90 | K16: 5727.80 | L16: 5458 | M16: 5216.65 | N16: 525200 | O16: 0.00%
A17: 7 | B17: Index | C17: NIFTYPSE | D17: 4297.00 | E17: 1432.33 | F17: 2864.67 | G17: 1432.33 | H17: 2864.67 | I17: 2864.67 | J17: 1432.33 | K17: 2864.67 | L17: 0 | M17: 0 | N17: 0 | O17: 0.00%
A18: 8 | B18: Cement | C18: ACC | D18: 1739.50 | E18: 1730.52 | F18: 1709.03 | G18: 1678.57 | H18: 1657.08 | I18: 1760.98 | J18: 1782.47 | K18: 1812.93 | L18: 1752 | M18: 1700.05 | N18: 1391600 | O18: 3.57%
A19: 9 | B19: Others | C19: ADANIENT | D19: 214.75 | E19: 212.13 | F19: 206.62 | G19: 198.48 | H19: 192.97 | I19: 220.27 | J19: 225.78 | K19: 233.92 | L19: 217.65 | M19: 204 | N19: 16660000 | O19: 0.73%
A20: 10 | B20: Others | C20: ADANIPORTS | D20: 430.30 | E20: 426.78 | F20: 419.07 | G20: 407.83 | H20: 400.12 | I20: 438.02 | J20: 445.73 | K20: 456.97 | L20: 434.5 | M20: 415.55 | N20: 11062500 | O20: -1.40%
A21: 11 | B21: Power | C21: ADANIPOWER | D21: 37.00 | E21: 36.40 | F21: 35.40 | G21: 33.80 | H21: 32.80 | I21: 38.00 | J21: 39.00 | K21: 40.60 | L21: 37.4 | M21: 34.8 | N21: 111180000 | O21: -0.91%
A22: 12 | B22: Pharma | C22: AJANTPHARM | D22: 1408.80 | E22: 1406.77 | F22: 1356.63 | G22: 1304.47 | H22: 1254.33 | I22: 1458.93 | J22: 1509.07 | K22: 1561.23 | L22: 1456.9 | M22: 1354.6 | N22: 954000 | O22: -3.78%
A23: 13 | B23: Banking | C23: ALBK | D23: 64.85 | E23: 65.40 | F23: 63.30 | G23: 61.75 | H23: 59.65 | I23: 66.95 | J23: 69.05 | K23: 70.60 | L23: 67.5 | M23: 63.85 | N23: 20090000 | O23: 4.15%
A24: 14 | B24: Automobile | C24: AMARAJABAT | D24: 809.35 | E24: 808.55 | F24: 790.85 | G24: 772.35 | H24: 754.65 | I24: 827.05 | J24: 844.75 | K24: 863.25 | L24: 826.25 | M24: 790.05 | N24: 1971900 | O24: -3.13%
A25: 15 | B25: Cement | C25: AMBUJACEM | D25: 265.30 | E25: 264.40 | F25: 260.60 | G25: 255.90 | H25: 252.10 | I25: 269.10 | J25: 272.90 | K25: 277.60 | L25: 268.2 | M25: 259.7 | N25: 12310000 | O25: -5.90%
A26: 16 | B26: Banking | C26: ANDHRABANK | D26: 51.50 | E26: 51.98 | F26: 50.47 | G26: 49.43 | H26: 47.92 | I26: 53.02 | J26: 54.53 | K26: 55.57 | L26: 53.5 | M26: 50.95 | N26: 27100000 | O26: 6.57%
A27: 17 | B27: Others | C27: APOLLOHOSP | D27: 1204.75 | E27: 1194.60 | F27: 1168.15 | G27: 1131.55 | H27: 1105.10 | I27: 1231.20 | J27: 1257.65 | K27: 1294.25 | L27: 1221.05 | M27: 1158 | N27: 771000 | O27: 10.62%
A28: 18 | B28: Automobile | C28: APOLLOTYRE | D28: 263.85 | E28: 260.80 | F28: 252.15 | G28: 240.45 | H28: 231.80 | I28: 272.50 | J28: 281.15 | K28: 292.85 | L28: 269.45 | M28: 249.1 | N28: 11778000 | O28: 10.94%
A29: 19 | B29: Textile | C29: ARVIND | D29: 406.55 | E29: 406.77 | F29: 396.78 | G29: 387.02 | H29: 377.03 | I29: 416.53 | J29: 426.52 | K29: 436.28 | L29: 416.75 | M29: 397 | N29: 6650000 | O29: -0.15%
A30: 20 | B30: Automobile | C30: ASHOKLEY | D30: 124.10 | E30: 122.67 | F30: 118.43 | G30: 112.77 | H30: 108.53 | I30: 128.33 | J30: 132.57 | K30: 138.23 | L30: 126.9 | M30: 117 | N30: 60564000 | O30: 3.36%
A31: 21 | B31: FMCG | C31: ASIANPAINT | D31: 1154.30 | E31: 1147.98 | F31: 1138.17 | G31: 1122.03 | H31: 1112.22 | I31: 1164.12 | J31: 1173.93 | K31: 1190.07 | L31: 1157.8 | M31: 1131.85 | N31: 4109400 | O31: -0.06%
A32: 22 | B32: Pharma | C32: AUROPHARMA | D32: 613.10 | E32: 616.48 | F32: 601.22 | G32: 589.33 | H32: 574.07 | I32: 628.37 | J32: 643.63 | K32: 655.52 | L32: 631.75 | M32: 604.6 | N32: 24847200 | O32: 1.44%
A33: 23 | B33: Banking | C33: AXISBANK | D33: 593.90 | E33: 598.32 | F33: 583.63 | G33: 573.37 | H33: 558.68 | I33: 608.58 | J33: 623.27 | K33: 633.53 | L33: 613 | M33: 588.05 | N33: 46338000 | O33: -1.83%
A34: 24 | B34: Automobile | C34: BAJAJ-AUTO | D34: 3410.50 | E34: 3370.95 | F34: 3321.90 | G34: 3233.30 | H34: 3184.25 | I34: 3459.55 | J34: 3508.60 | K34: 3597.20 | L34: 3420 | M34: 3282.35 | N34: 2077500 | O34: 0.59%
A35: 25 | B35: Others | C35: BAJAJFINSV | D35: 5049.05 | E35: 4973.27 | F35: 4860.88 | G35: 4672.72 | H35: 4560.33 | I35: 5161.43 | J35: 5273.82 | K35: 5461.98 | L35: 5085.65 | M35: 4785.1 | N35: 808250 | O35: -4.09%
A36: 26 | B36: Finance | C36: BAJFINANCE | D36: 1730.30 | E36: 1707.12 | F36: 1675.73 | G36: 1621.17 | H36: 1589.78 | I36: 1761.68 | J36: 1793.07 | K36: 1847.63 | L36: 1738.5 | M36: 1652.55 | N36: 6063500 | O36: 1.30%
A37: 27 | B37: Others | C37: BALKRISIND | D37: 1135.35 | E37: 1132.78 | F37: 1107.57 | G37: 1079.78 | H37: 1054.57 | I37: 1160.57 | J37: 1185.78 | K37: 1213.57 | L37: 1158 | M37: 1105 | N37: 1294400 | O37: 1.95%
A38: 28 | B38: Others | C38: BALRAMCHIN | D38: 118.65 | E38: 119.32 | F38: 115.78 | G38: 112.92 | H38: 109.38 | I38: 122.18 | J38: 125.72 | K38: 128.58 | L38: 122.85 | M38: 116.45 | N38: 19173000 | O38: -1.55%
A39: 29 | B39: Banking | C39: BANKBARODA | D39: 153.10 | E39: 154.88 | F39: 150.77 | G39: 148.43 | H39: 144.32 | I39: 157.22 | J39: 161.33 | K39: 163.67 | L39: 159 | M39: 152.55 | N39: 56256000 | O39: 2.14%
A40: 30 | B40: Banking | C40: BANKINDIA | D40: 153.65 | E40: 155.40 | F40: 151.30 | G40: 148.95 | H40: 144.85 | I40: 157.75 | J40: 161.85 | K40: 164.20 | L40: 159.5 | M40: 153.05 | N40: 19608000 | O40: 4.84%
A41: 31 | B41: FMCG | C41: BATAINDIA | D41: 713.80 | E41: 709.53 | F41: 699.32 | G41: 684.83 | H41: 674.62 | I41: 724.02 | J41: 734.23 | K41: 748.72 | L41: 719.75 | M41: 695.05 | N41: 2292400 | O41: -4.49%
A42: 32 | B42: Capital_Goods | C42: BEL | D42: 160.85 | E42: 163.67 | F42: 157.48 | G42: 154.12 | H42: 147.93 | I42: 167.03 | J42: 173.22 | K42: 176.58 | L42: 169.85 | M42: 160.3 | N42: 31427550 | O42: 12.93%
A43: 33 | B43: Infrastructure | C43: BEML | D43: 1452.40 | E43: 1458.82 | F43: 1425.73 | G43: 1399.07 | H43: 1365.98 | I43: 1485.48 | J43: 1518.57 | K43: 1545.23 | L43: 1491.9 | M43: 1432.15 | N43: 2339400 | O43: -1.83%
A44: 34 | B44: Others | C44: BERGEPAINT | D44: 258.85 | E44: 256.40 | F44: 253.05 | G44: 247.25 | H44: 243.90 | I44: 262.20 | J44: 265.55 | K44: 271.35 | L44: 259.75 | M44: 250.6 | N44: 1460800 | O44: 2.47%
A45: 35 | B45: Finance | C45: BHARATFIN | D45: 1065.30 | E45: 1057.98 | F45: 1035.32 | G45: 1005.33 | H45: 982.67 | I45: 1087.97 | J45: 1110.63 | K45: 1140.62 | L45: 1080.65 | M45: 1028 | N45: 7243000 | O45: -2.88%
A46: 36 | B46: Automobile | C46: BHARATFORG | D46: 722.85 | E46: 721.45 | F46: 712.40 | G46: 701.95 | H46: 692.90 | I46: 731.90 | J46: 740.95 | K46: 751.40 | L46: 730.5 | M46: 711 | N46: 6100800 | O46: -2.92%
A47: 37 | B47: Telecom | C47: BHARTIARTL | D47: 439.75 | E47: 439.52 | F47: 431.03 | G47: 422.32 | H47: 413.83 | I47: 448.23 | J47: 456.72 | K47: 465.43 | L47: 448 | M47: 430.8 | N47: 53186200 | O47: -2.46%
A48: 38 | B48: Capital_Goods | C48: BHEL | D48: 99.75 | E48: 99.50 | F48: 97.25 | G48: 94.75 | H48: 92.50 | I48: 102.00 | J48: 104.25 | K48: 106.75 | L48: 101.75 | M48: 97 | N48: 46822500 | O48: 0.66%
A49: 39 | B49: Pharma | C49: BIOCON | D49: 619.65 | E49: 616.53 | F49: 606.12 | G49: 592.58 | H49: 582.17 | I49: 630.07 | J49: 640.48 | K49: 654.02 | L49: 626.95 | M49: 603 | N49: 7473600 | O49: -4.68%
A50: 40 | B50: Automobile | C50: BOSCHLTD | D50: 19465.20 | E50: 19435.08 | F50: 19255.12 | G50: 19045.03 | H50: 18865.07 | I50: 19645.17 | J50: 19825.13 | K50: 20035.22 | L50: 19615.05 | M50: 19225 | N50: 135700 | O50: -0.31%
A51: 41 | B51: Oil_Gas | C51: BPCL | D51: 479.45 | E51: 478.18 | F51: 473.37 | G51: 467.28 | H51: 462.47 | I51: 484.27 | J51: 489.08 | K51: 495.17 | L51: 483 | M51: 472.1 | N51: 8566200 | O51: -3.90%
A52: 42 | B52: FMCG | C52: BRITANNIA | D52: 4750.25 | E52: 4723.75 | F52: 4682.50 | G52: 4614.75 | H52: 4573.50 | I52: 4791.50 | J52: 4832.75 | K52: 4900.50 | L52: 4765 | M52: 4656 | N52: 847000 | O52: -1.92%
A53: 43 | B53: Pharma | C53: CADILAHC | D53: 417.95 | E53: 419.90 | F53: 413.30 | G53: 408.65 | H53: 402.05 | I53: 424.55 | J53: 431.15 | K53: 435.80 | L53: 426.5 | M53: 415.25 | N53: 6460800 | O53: -0.42%
A54: 44 | B54: Banking | C54: CANBK | D54: 330.60 | E54: 334.83 | F54: 324.77 | G54: 318.93 | H54: 308.87 | I54: 340.67 | J54: 350.73 | K54: 356.57 | L54: 344.9 | M54: 329 | N54: 13017600 | O54: 9.19%
A55: 45 | B55: Others | C55: CANFINHOME | D55: 446.90 | E55: 449.58 | F55: 439.37 | G55: 431.83 | H55: 421.62 | I55: 457.12 | J55: 467.33 | K55: 474.87 | L55: 459.8 | M55: 442.05 | N55: 6177500 | O55: -2.08%
A56: 46 | B56: Finance | C56: CAPF | D56: 730.10 | E56: 731.95 | F56: 720.15 | G56: 710.20 | H56: 698.40 | I56: 741.90 | J56: 753.70 | K56: 763.65 | L56: 743.75 | M56: 722 | N56: 6836800 | O56: 0.85%
A57: 47 | B57: Oil_Gas | C57: CASTROLIND | D57: 184.00 | E57: 183.98 | F57: 180.77 | G57: 177.53 | H57: 174.32 | I57: 187.22 | J57: 190.43 | K57: 193.67 | L57: 187.2 | M57: 180.75 | N57: 19297600 | O57: -3.31%
A58: 48 | B58: Automobile | C58: CEATLTD | D58: 1894.40 | E58: 1855.75 | F58: 1798.65 | G58: 1702.90 | H58: 1645.80 | I58: 1951.50 | J58: 2008.60 | K58: 2104.35 | L58: 1912.85 | M58: 1760 | N58: 1170750 | O58: 18.37%
A59: 49 | B59: Textile | C59: CENTURYTEX | D59: 1388.55 | E59: 1376.73 | F59: 1350.82 | G59: 1313.08 | H59: 1287.17 | I59: 1414.47 | J59: 1440.38 | K59: 1478.12 | L59: 1402.65 | M59: 1339 | N59: 7054300 | O59: -0.64%
A60: 50 | B60: Power | C60: CESC | D60: 1049.90 | E60: 1048.68 | F60: 1026.22 | G60: 1002.53 | H60: 980.07 | I60: 1072.37 | J60: 1094.83 | K60: 1118.52 | L60: 1071.15 | M60: 1025 | N60: 6812850 | O60: -0.48%
A61: 51 | B61: Power | C61: CGPOWER | D61: 91.70 | E61: 90.83 | F61: 88.92 | G61: 86.13 | H61: 84.22 | I61: 93.62 | J61: 95.53 | K61: 98.32 | L61: 92.75 | M61: 88.05 | N61: 25188000 | O61: -0.29%
A62: 52 | B62: Others | C62: CHENNPETRO | D62: 407.95 | E62: 410.87 | F62: 402.78 | G62: 397.62 | H62: 389.53 | I62: 416.03 | J62: 424.12 | K62: 429.28 | L62: 418.95 | M62: 405.7 | N62: 3081000 | O62: 1.18%
A63: 53 | B63: Others | C63: CHOLAFIN | D63: 1330.70 | E63: 1318.87 | F63: 1296.83 | G63: 1262.97 | H63: 1240.93 | I63: 1352.73 | J63: 1374.77 | K63: 1408.63 | L63: 1340.9 | M63: 1285 | N63: 983500 | O63: -1.35%
A64: 54 | B64: Pharma | C64: CIPLA | D64: 588.15 | E64: 589.02 | F64: 580.18 | G64: 572.22 | H64: 563.38 | I64: 596.98 | J64: 605.82 | K64: 613.78 | L64: 597.85 | M64: 581.05 | N64: 8677000 | O64: -0.80%
A65: 55 | B65: Others | C65: COALINDIA | D65: 288.90 | E65: 290.28 | F65: 283.27 | G65: 277.63 | H65: 270.62 | I65: 295.92 | J65: 302.93 | K65: 308.57 | L65: 297.3 | M65: 284.65 | N65: 17613200 | O65: 7.03%
A66: 56 | B66: FMCG | C66: COLPAL | D66: 1130.90 | E66: 1127.53 | F66: 1115.57 | G66: 1100.23 | H66: 1088.27 | I66: 1142.87 | J66: 1154.83 | K66: 1170.17 | L66: 1139.5 | M66: 1112.2 | N66: 1024800 | O66: -1.48%
A67: 57 | B67: Others | C67: CONCOR | D67: 1380.70 | E67: 1377.58 | F67: 1355.17 | G67: 1329.63 | H67: 1307.22 | I67: 1403.12 | J67: 1425.53 | K67: 1451.07 | L67: 1400 | M67: 1352.05 | N67: 998125 | O67: -4.14%
A68: 58 | B68: Capital_Goods | C68: CUMMINSIND | D68: 896.85 | E68: 894.87 | F68: 884.68 | G68: 872.52 | H68: 862.33 | I68: 907.03 | J68: 917.22 | K68: 929.38 | L68: 905.05 | M68: 882.7 | N68: 571200 | O68: 3.82%
A69: 59 | B69: FMCG | C69: DABUR | D69: 351.25 | E69: 353.52 | F69: 347.73 | G69: 344.22 | H69: 338.43 | I69: 357.03 | J69: 362.82 | K69: 366.33 | L69: 359.3 | M69: 350 | N69: 11077500 | O69: 1.56%
A70: 60 | B70: Cement | C70: DALMIABHA | D70: 2990.40 | E70: 2993.62 | F70: 2953.83 | G70: 2917.27 | H70: 2877.48 | I70: 3030.18 | J70: 3069.97 | K70: 3106.53 | L70: 3033.4 | M70: 2957.05 | N70: 541800 | O70: -2.64%
A71: 61 | B71: Banking | C71: DCBBANK | D71: 175.95 | E71: 175.00 | F71: 172.70 | G71: 169.45 | H71: 167.15 | I71: 178.25 | J71: 180.55 | K71: 183.80 | L71: 177.3 | M71: 171.75 | N71: 7119000 | O71: -2.71%
A72: 62 | B72: Finance | C72: DHFL | D72: 569.65 | E72: 577.40 | F72: 557.25 | G72: 544.85 | H72: 524.70 | I72: 589.80 | J72: 609.95 | K72: 622.35 | L72: 597.55 | M72: 565 | N72: 27120000 | O72: 1.01%
A73: 63 | B73: Media | C73: DISHTV | D73: 77.75 | E73: 76.98 | F73: 74.57 | G73: 71.38 | H73: 68.97 | I73: 80.17 | J73: 82.58 | K73: 85.77 | L73: 79.4 | M73: 73.8 | N73: 50344000 | O73: 8.43%
A74: 64 | B74: Pharma | C74: DIVISLAB | D74: 1040.55 | E74: 1039.83 | F74: 1022.72 | G74: 1004.88 | H74: 987.77 | I74: 1057.67 | J74: 1074.78 | K74: 1092.62 | L74: 1056.95 | M74: 1022 | N74: 2364000 | O74: 3.61%
A75: 65 | B75: Realty | C75: DLF | D75: 246.40 | E75: 246.17 | F75: 237.73 | G75: 229.07 | H75: 220.63 | I75: 254.83 | J75: 263.27 | K75: 271.93 | L75: 254.6 | M75: 237.5 | N75: 46805000 | O75: 1.11%
A76: 66 | B76: Pharma | C76: DRREDDY | D76: 2167.60 | E76: 2186.63 | F76: 2138.97 | G76: 2110.33 | H76: 2062.67 | I76: 2215.27 | J76: 2262.93 | K76: 2291.57 | L76: 2234.3 | M76: 2158 | N76: 5554250 | O76: 0.72%
A77: 67 | B77: Automobile | C77: EICHERMOT | D77: 28076.10 | E77: 27683.47 | F77: 27066.93 | G77: 26057.77 | H77: 25441.23 | I77: 28692.63 | J77: 29309.17 | K77: 30318.33 | L77: 28300 | M77: 26674.3 | N77: 258800 | O77: -6.65%
A78: 68 | B78: Infrastructure | C78: ENGINERSIN | D78: 172.60 | E78: 173.72 | F78: 169.88 | G78: 167.17 | H78: 163.33 | I78: 176.43 | J78: 180.27 | K78: 182.98 | L78: 177.55 | M78: 171 | N78: 11606000 | O78: 0.06%
A79: 69 | B79: Finance | C79: EQUITAS | D79: 151.95 | E79: 150.47 | F79: 146.08 | G79: 140.22 | H79: 135.83 | I79: 156.33 | J79: 160.72 | K79: 166.58 | L79: 154.85 | M79: 144.6 | N79: 26006400 | O79: 4.86%
A80: 70 | B80: Automobile | C80: ESCORTS | D80: 874.25 | E80: 859.58 | F80: 834.17 | G80: 794.08 | H80: 768.67 | I80: 899.67 | J80: 925.08 | K80: 965.17 | L80: 885 | M80: 819.5 | N80: 3642100 | O80: 22.54%
A81: 71 | B81: Automobile | C81: EXIDEIND | D81: 220.00 | E81: 220.25 | F81: 215.10 | G81: 210.20 | H81: 205.05 | I81: 225.15 | J81: 230.30 | K81: 235.20 | L81: 225.4 | M81: 215.35 | N81: 14424000 | O81: -5.50%
A82: 72 | B82: Banking | C82: FEDERALBNK | D82: 98.05 | E82: 98.90 | F82: 96.20 | G82: 94.35 | H82: 91.65 | I82: 100.75 | J82: 103.45 | K82: 105.30 | L82: 101.6 | M82: 97.05 | N82: 78705000 | O82: 3.43%
A83: 73 | B83: Others | C83: FORTIS | D83: 132.85 | E83: 131.65 | F83: 126.25 | G83: 119.65 | H83: 114.25 | I83: 138.25 | J83: 143.65 | K83: 150.25 | L83: 137.05 | M83: 125.05 | N83: 55734000 | O83: -8.54%
A84: 74 | B84: Oil_Gas | C84: GAIL | D84: 484.50 | E84: 484.83 | F84: 476.67 | G84: 468.83 | H84: 460.67 | I84: 492.67 | J84: 500.83 | K84: 508.67 | L84: 493 | M84: 477 | N84: 11316000 | O84: 2.56%
A85: 75 | B85: Pharma | C85: GLENMARK | D85: 588.65 | E85: 593.22 | F85: 576.43 | G85: 564.22 | H85: 547.43 | I85: 605.43 | J85: 622.22 | K85: 634.43 | L85: 610 | M85: 581 | N85: 5766300 | O85: 2.19%
A86: 76 | B86: Infrastructure | C86: GMRINFRA | D86: 22.90 | E86: 22.62 | F86: 21.33 | G86: 19.77 | H86: 18.48 | I86: 24.18 | J86: 25.47 | K86: 27.03 | L86: 23.9 | M86: 21.05 | N86: 315135000 | O86: 1.65%
A87: 77 | B87: Others | C87: GODFRYPHLP | D87: 930.00 | E87: 940.33 | F87: 891.67 | G87: 853.33 | H87: 804.67 | I87: 978.67 | J87: 1027.33 | K87: 1065.67 | L87: 989 | M87: 902 | N87: 850500 | O87: 0.83%
A88: 78 | B88: FMCG | C88: GODREJCP | D88: 1050.50 | E88: 1051.00 | F88: 1036.50 | G88: 1022.50 | H88: 1008.00 | I88: 1065.00 | J88: 1079.50 | K88: 1093.50 | L88: 1065.5 | M88: 1037 | N88: 1695200 | O88: 2.62%
A89: 79 | B89: FMCG | C89: GODREJIND | D89: 613.15 | E89: 612.03 | F89: 604.77 | G89: 596.38 | H89: 589.12 | I89: 620.42 | J89: 627.68 | K89: 636.07 | L89: 619.3 | M89: 603.65 | N89: 1611000 | O89: -3.85%
A90: 80 | B90: Pharma | C90: GRANULES | D90: 127.75 | E90: 128.80 | F90: 125.05 | G90: 122.35 | H90: 118.60 | I90: 131.50 | J90: 135.25 | K90: 137.95 | L90: 132.55 | M90: 126.1 | N90: 15450000 | O90: 0.36%
A91: 81 | B91: Cement | C91: GRASIM | D91: 1190.20 | E91: 1176.55 | F91: 1152.20 | G91: 1114.20 | H91: 1089.85 | I91: 1214.55 | J91: 1238.90 | K91: 1276.90 | L91: 1200.9 | M91: 1138.55 | N91: 3112500 | O91: -2.42%
A92: 82 | B92: Others | C92: GSFC | D92: 140.50 | E92: 142.52 | F92: 134.53 | G92: 128.57 | H92: 120.58 | I92: 148.48 | J92: 156.47 | K92: 162.43 | L92: 150.5 | M92: 136.55 | N92: 22126500 | O92: -2.11%
A93: 83 | B93: Others | C93: HAVELLS | D93: 526.25 | E93: 524.05 | F93: 514.30 | G93: 502.35 | H93: 492.60 | I93: 536.00 | J93: 545.75 | K93: 557.70 | L93: 533.8 | M93: 512.1 | N93: 5716000 | O93: -5.55%
A94: 84 | B94: Others | C94: HCC | D94: 39.70 | E94: 39.73 | F94: 38.47 | G94: 37.23 | H94: 35.97 | I94: 40.97 | J94: 42.23 | K94: 43.47 | L94: 41 | M94: 38.5 | N94: 58695000 | O94: 2.06%
A95: 85 | B95: Technology | C95: HCLTECH | D95: 990.65 | E95: 993.27 | F95: 971.68 | G95: 952.72 | H95: 931.13 | I95: 1012.23 | J95: 1033.82 | K95: 1052.78 | L95: 1014.85 | M95: 974.3 | N95: 11235000 | O95: 0.87%
A96: 86 | B96: Finance | C96: HDFC | D96: 1969.80 | E96: 1962.90 | F96: 1945.40 | G96: 1921.00 | H96: 1903.50 | I96: 1987.30 | J96: 2004.80 | K96: 2029.20 | L96: 1980.4 | M96: 1938.5 | N96: 18280500 | O96: -1.27%
A97: 87 | B97: Banking | C97: HDFCBANK | D97: 2000.35 | E97: 2005.45 | F97: 1988.90 | G97: 1977.45 | H97: 1960.90 | I97: 2016.90 | J97: 2033.45 | K97: 2044.90 | L97: 2022 | M97: 1994 | N97: 20845500 | O97: 1.04%
A98: 88 | B98: Realty | C98: HDIL | D98: 56.80 | E98: 57.32 | F98: 55.28 | G98: 53.77 | H98: 51.73 | I98: 58.83 | J98: 60.87 | K98: 62.38 | L98: 59.35 | M98: 55.8 | N98: 39060000 | O98: -0.09%
A99: 89 | B99: Automobile | C99: HEROMOTOCO | D99: 3689.65 | E99: 3675.62 | F99: 3654.23 | G99: 3618.82 | H99: 3597.43 | I99: 3711.03 | J99: 3732.42 | K99: 3767.83 | L99: 3697 | M99: 3640.2 | N99: 1607200 | O99: -4.23%
A100: 90 | B100: Technology | C100: HEXAWARE | D100: 380.50 | E100: 380.07 | F100: 374.53 | G100: 368.57 | H100: 363.03 | I100: 386.03 | J100: 391.57 | K100: 397.53 | L100: 385.6 | M100: 374.1 | N100: 4224000 | O100: -2.76%
A101: 91 | B101: Metals | C101: HINDALCO | D101: 257.70 | E101: 255.50 | F101: 251.30 | G101: 244.90 | H101: 240.70 | I101: 261.90 | J101: 266.10 | K101: 272.50 | L101: 259.7 | M101: 249.1 | N101: 38738000 | O101: 0.24%
A102: 92 | B102: Oil_Gas | C102: HINDPETRO | D102: 388.45 | E102: 389.33 | F102: 382.22 | G102: 375.98 | H102: 368.87 | I102: 395.57 | J102: 402.68 | K102: 408.92 | L102: 396.45 | M102: 383.1 | N102: 24735375 | O102: -1.52%
A103: 93 | B103: FMCG | C103: HINDUNILVR | D103: 1374.70 | E103: 1372.77 | F103: 1357.93 | G103: 1341.17 | H103: 1326.33 | I103: 1389.53 | J103: 1404.37 | K103: 1421.13 | L103: 1387.6 | M103: 1356 | N103: 9033000 | O103: -0.75%
A104: 94 | B104: Metals | C104: HINDZINC | D104: 309.20 | E104: 307.38 | F104: 302.37 | G104: 295.53 | H104: 290.52 | I104: 314.22 | J104: 319.23 | K104: 326.07 | L104: 312.4 | M104: 300.55 | N104: 11753600 | O104: 1.16%
A105: 95 | B105: Finance | C105: IBULHSGFIN | D105: 1380.75 | E105: 1370.33 | F105: 1326.42 | G105: 1272.08 | H105: 1228.17 | I105: 1424.67 | J105: 1468.58 | K105: 1522.92 | L105: 1414.25 | M105: 1316 | N105: 14873200 | O105: -1.07%
A106: 96 | B106: Banking | C106: ICICIBANK | D106: 345.90 | E106: 348.65 | F106: 341.80 | G106: 337.70 | H106: 330.85 | I106: 352.75 | J106: 359.60 | K106: 363.70 | L106: 355.5 | M106: 344.55 | N106: 87232750 | O106: -1.85%
A107: 97 | B107: Others | C107: ICICIPRULI | D107: 426.90 | E107: 418.83 | F107: 407.07 | G107: 387.23 | H107: 375.47 | I107: 438.67 | J107: 450.43 | K107: 470.27 | L107: 430.6 | M107: 399 | N107: 5055700 | O107: 8.00%
A108: 98 | B108: Banking | C108: IDBI | D108: 64.00 | E108: 62.58 | F108: 60.07 | G108: 56.13 | H108: 53.62 | I108: 66.52 | J108: 69.03 | K108: 72.97 | L108: 65.1 | M108: 58.65 | N108: 34330000 | O108: 12.89%
A109: 99 | B109: Telecom | C109: IDEA | D109: 91.60 | E109: 91.93 | F109: 89.92 | G109: 88.23 | H109: 86.22 | I109: 93.62 | J109: 95.63 | K109: 97.32 | L109: 93.95 | M109: 90.25 | N109: 61138000 | O109: -0.75%
A110: 100 | B110: Finance | C110: IDFC | D110: 55.90 | E110: 55.90 | F110: 54.55 | G110: 53.20 | H110: 51.85 | I110: 57.25 | J110: 58.60 | K110: 59.95 | L110: 57.25 | M110: 54.55 | N110: 200230800 | O110: 0.17%
A111: 101 | B111: Banking | C111: IDFCBANK | D111: 56.20 | E111: 56.38 | F111: 55.37 | G111: 54.53 | H111: 53.52 | I111: 57.22 | J111: 58.23 | K111: 59.07 | L111: 57.4 | M111: 55.55 | N111: 180081000 | O111: 0.17%
A112: 102 | B112: Finance | C112: IFCI | D112: 28.40 | E112: 28.13 | F112: 27.37 | G112: 26.33 | H112: 25.57 | I112: 29.17 | J112: 29.93 | K112: 30.97 | L112: 28.9 | M112: 27.1 | N112: 79728000 | O112: 1.37%
A113: 103 | B113: Oil_Gas | C113: IGL | D113: 304.60 | E113: 304.53 | F113: 300.82 | G113: 297.03 | H113: 293.32 | I113: 308.32 | J113: 312.03 | K113: 315.82 | L113: 308.25 | M113: 300.75 | N113: 8123500 | O113: -0.44%
A114: 104 | B114: Cement | C114: INDIACEM | D114: 166.75 | E114: 166.40 | F114: 161.05 | G114: 155.35 | H114: 150.00 | I114: 172.10 | J114: 177.45 | K114: 183.15 | L114: 171.75 | M114: 160.7 | N114: 29988000 | O114: 0.61%
A115: 105 | B115: Banking | C115: INDIANB | D115: 355.30 | E115: 357.53 | F115: 346.77 | G115: 338.23 | H115: 327.47 | I115: 366.07 | J115: 376.83 | K115: 385.37 | L115: 368.3 | M115: 349 | N115: 4206000 | O115: -1.17%
A116: 106 | B116: Others | C116: INDIGO | D116: 1220.15 | E116: 1219.38 | F116: 1200.77 | G116: 1181.38 | H116: 1162.77 | I116: 1238.77 | J116: 1257.38 | K116: 1276.77 | L116: 1238 | M116: 1200 | N116: 2521200 | O116: -4.17%
A117: 107 | B117: Banking | C117: INDUSINDBK | D117: 1769.40 | E117: 1762.80 | F117: 1728.20 | G117: 1687.00 | H117: 1652.40 | I117: 1804.00 | J117: 1838.60 | K117: 1879.80 | L117: 1797.4 | M117: 1721.6 | N117: 6678000 | O117: -1.09%
A118: 108 | B118: Technology | C118: INFIBEAM | D118: 157.65 | E118: 156.57 | F118: 152.38 | G118: 147.12 | H118: 142.93 | I118: 161.83 | J118: 166.02 | K118: 171.28 | L118: 160.75 | M118: 151.3 | N118: 35080000 | O118: 0.54%
A119: 109 | B119: Telecom | C119: INFRATEL | D119: 347.75 | E119: 348.52 | F119: 343.23 | G119: 338.72 | H119: 333.43 | I119: 353.03 | J119: 358.32 | K119: 362.83 | L119: 353.8 | M119: 344 | N119: 10364900 | O119: -1.71%
A120: 110 | B120: Technology | C120: INFY | D120: 1150.70 | E120: 1146.40 | F120: 1129.00 | G120: 1107.30 | H120: 1089.90 | I120: 1168.10 | J120: 1185.50 | K120: 1207.20 | L120: 1163.8 | M120: 1124.7 | N120: 38245200 | O120: 7.48%
A121: 111 | B121: Oil_Gas | C121: IOC | D121: 400.05 | E121: 398.02 | F121: 393.28 | G121: 386.52 | H121: 381.78 | I121: 404.78 | J121: 409.52 | K121: 416.28 | L121: 402.75 | M121: 391.25 | N121: 18970500 | O121: 3.13%
A122: 112 | B122: Infrastructure | C122: IRB | D122: 241.95 | E122: 240.45 | F122: 234.45 | G122: 226.95 | H122: 220.95 | I122: 247.95 | J122: 253.95 | K122: 261.45 | L122: 246.45 | M122: 232.95 | N122: 16277500 | O122: -0.40%
A123: 113 | B123: FMCG | C123: ITC | D123: 276.80 | E123: 278.97 | F123: 266.68 | G123: 256.57 | H123: 244.28 | I123: 289.08 | J123: 301.37 | K123: 311.48 | L123: 291.25 | M123: 268.85 | N123: 95472000 | O123: 4.77%
A124: 114 | B124: Others | C124: JETAIRWAYS | D124: 773.05 | E124: 765.72 | F124: 753.38 | G124: 733.72 | H124: 721.38 | I124: 785.38 | J124: 797.72 | K124: 817.38 | L124: 778.05 | M124: 746.05 | N124: 5384400 | O124: 1.31%
A125: 115 | B125: Metals | C125: JINDALSTEL | D125: 267.10 | E125: 264.72 | F125: 256.18 | G125: 245.27 | H125: 236.73 | I125: 275.63 | J125: 284.17 | K125: 295.08 | L125: 273.25 | M125: 253.8 | N125: 29493000 | O125: 0.14%
A126: 116 | B126: Others | C126: JISLJALEQS | D126: 126.40 | E126: 131.12 | F126: 118.73 | G126: 111.07 | H126: 98.68 | I126: 138.78 | J126: 151.17 | K126: 158.83 | L126: 143.5 | M126: 123.45 | N126: 44244000 | O126: -19.41%
A127: 117 | B127: Realty | C127: JPASSOCIAT | D127: 20.50 | E127: 20.28 | F127: 19.57 | G127: 18.63 | H127: 17.92 | I127: 21.22 | J127: 21.93 | K127: 22.87 | L127: 21 | M127: 19.35 | N127: 233512000 | O127: -0.23%
A128: 118 | B128: Metals | C128: JSWSTEEL | D128: 303.70 | E128: 299.27 | F128: 290.68 | G128: 277.67 | H128: 269.08 | I128: 312.28 | J128: 320.87 | K128: 333.88 | L128: 307.85 | M128: 286.25 | N128: 50421000 | O128: 2.01%
A129: 119 | B129: Others | C129: JUBLFOOD | D129: 2059.35 | E129: 2054.52 | F129: 2005.03 | G129: 1950.72 | H129: 1901.23 | I129: 2108.83 | J129: 2158.32 | K129: 2212.63 | L129: 2104 | M129: 2000.2 | N129: 2543000 | O129: 2.50%
A130: 120 | B130: Others | C130: JUSTDIAL | D130: 515.25 | E130: 516.87 | F130: 499.23 | G130: 483.22 | H130: 465.58 | I130: 532.88 | J130: 550.52 | K130: 566.53 | L130: 534.5 | M130: 500.85 | N130: 3434200 | O130: 4.34%
A131: 121 | B131: Others | C131: KAJARIACER | D131: 630.55 | E131: 630.32 | F131: 617.23 | G131: 603.92 | H131: 590.83 | I131: 643.63 | J131: 656.72 | K131: 670.03 | L131: 643.4 | M131: 617 | N131: 1523200 | O131: 0.42%
A132: 122 | B132: Banking | C132: KOTAKBANK | D132: 1120.80 | E132: 1121.12 | F132: 1110.53 | G132: 1100.27 | H132: 1089.68 | I132: 1131.38 | J132: 1141.97 | K132: 1152.23 | L132: 1131.7 | M132: 1110.85 | N132: 11556000 | O132: 0.29%
A133: 123 | B133: Technology | C133: KPIT | D133: 210.00 | E133: 210.12 | F133: 205.03 | G133: 200.07 | H133: 194.98 | I133: 215.08 | J133: 220.17 | K133: 225.13 | L133: 215.2 | M133: 205.15 | N133: 15124500 | O133: -1.09%
A134: 124 | B134: Others | C134: KSCL | D134: 509.65 | E134: 516.22 | F134: 498.58 | G134: 487.52 | H134: 469.88 | I134: 527.28 | J134: 544.92 | K134: 555.98 | L134: 533.85 | M134: 505.15 | N134: 3885000 | O134: -1.52%
A135: 125 | B135: Banking | C135: KTKBANK | D135: 144.90 | E135: 145.45 | F135: 141.75 | G135: 138.60 | H135: 134.90 | I135: 148.60 | J135: 152.30 | K135: 155.45 | L135: 149.15 | M135: 142.3 | N135: 25258600 | O135: -0.89%
A136: 126 | B136: Finance | C136: L&TFH | D136: 171.70 | E136: 172.12 | F136: 168.03 | G136: 164.37 | H136: 160.28 | I136: 175.78 | J136: 179.87 | K136: 183.53 | L136: 176.2 | M136: 168.45 | N136: 48262500 | O136: 0.18%
A137: 127 | B137: Finance | C137: LICHSGFIN | D137: 532.95 | E137: 535.65 | F137: 525.30 | G137: 517.65 | H137: 507.30 | I137: 543.30 | J137: 553.65 | K137: 561.30 | L137: 546 | M137: 528 | N137: 18177500 | O137: 1.18%
A138: 128 | B138: Capital_Goods | C138: LT | D138: 1458.40 | E138: 1447.02 | F138: 1422.53 | G138: 1386.67 | H138: 1362.18 | I138: 1482.88 | J138: 1507.37 | K138: 1543.23 | L138: 1471.5 | M138: 1411.15 | N138: 13206000 | O138: -2.27%
A139: 129 | B139: Pharma | C139: LUPIN | D139: 864.35 | E139: 868.98 | F139: 849.87 | G139: 835.38 | H139: 816.27 | I139: 883.47 | J139: 902.58 | K139: 917.07 | L139: 888.1 | M139: 854.5 | N139: 13258800 | O139: 4.04%
A140: 130 | B140: Automobile | C140: M&M | D140: 801.30 | E140: 790.75 | F140: 776.55 | G140: 751.80 | H140: 737.60 | I140: 815.50 | J140: 829.70 | K140: 854.45 | L140: 804.95 | M140: 766 | N140: 13327000 | O140: 7.19%
A141: 131 | B141: Finance | C141: M&MFIN | D141: 472.00 | E141: 467.02 | F141: 455.23 | G141: 438.47 | H141: 426.68 | I141: 483.78 | J141: 495.57 | K141: 512.33 | L141: 478.8 | M141: 450.25 | N141: 7221250 | O141: -4.42%
A142: 132 | B142: Others | C142: MANAPPURAM | D142: 115.30 | E142: 114.23 | F142: 111.47 | G142: 107.63 | H142: 104.87 | I142: 118.07 | J142: 120.83 | K142: 124.67 | L142: 117 | M142: 110.4 | N142: 29718000 | O142: -9.30%
A143: 133 | B143: FMCG | C143: MARICO | D143: 308.75 | E143: 307.27 | F143: 304.53 | G143: 300.32 | H143: 297.58 | I143: 311.48 | J143: 314.22 | K143: 318.43 | L143: 310 | M143: 303.05 | N143: 4862000 | O143: 0.48%
A144: 134 | B144: Automobile | C144: MARUTI | D144: 9446.60 | E144: 9455.30 | F144: 9323.65 | G144: 9200.70 | H144: 9069.05 | I144: 9578.25 | J144: 9709.90 | K144: 9832.85 | L144: 9586.95 | M144: 9332.35 | N144: 2404050 | O144: -0.69%
A145: 135 | B145: FMCG | C145: MCDOWELL-N | D145: 3320.00 | E145: 3293.68 | F145: 3182.37 | G145: 3044.73 | H145: 2933.42 | I145: 3431.32 | J145: 3542.63 | K145: 3680.27 | L145: 3405 | M145: 3156.05 | N145: 2599500 | O145: 1.30%
A146: 136 | B146: Others | C146: MCX | D146: 779.95 | E146: 782.88 | F146: 765.87 | G146: 751.78 | H146: 734.77 | I146: 796.97 | J146: 813.98 | K146: 828.07 | L146: 799.9 | M146: 768.8 | N146: 4272500 | O146: 0.67%
A147: 137 | B147: Finance | C147: MFSL | D147: 544.80 | E147: 544.23 | F147: 534.97 | G147: 525.13 | H147: 515.87 | I147: 554.07 | J147: 563.33 | K147: 573.17 | L147: 553.5 | M147: 534.4 | N147: 2759000 | O147: -3.23%
A148: 138 | B148: Others | C148: MGL | D148: 1001.85 | E148: 1006.48 | F148: 992.22 | G148: 982.58 | H148: 968.32 | I148: 1016.12 | J148: 1030.38 | K148: 1040.02 | L148: 1020.75 | M148: 996.85 | N148: 1457400 | O148: 3.41%
A149: 139 | B149: Technology | C149: MINDTREE | D149: 757.30 | E149: 757.58 | F149: 745.22 | G149: 733.13 | H149: 720.77 | I149: 769.67 | J149: 782.03 | K149: 794.12 | L149: 769.95 | M149: 745.5 | N149: 1747200 | O149: -7.73%
A150: 140 | B150: Automobile | C150: MOTHERSUMI | D150: 363.00 | E150: 364.08 | F150: 358.27 | G150: 353.53 | H150: 347.72 | I150: 368.82 | J150: 374.63 | K150: 379.37 | L150: 369.9 | M150: 359.35 | N150: 10819200 | O150: 1.62%
A151: 141 | B151: Automobile | C151: MRF | D151: 72065.95 | E151: 70672.90 | F151: 68405.95 | G151: 64745.95 | H151: 62479.00 | I151: 74332.90 | J151: 76599.85 | K151: 80259.85 | L151: 72939.85 | M151: 67012.9 | N151: 64665 | O151: 5.61%
A152: 142 | B152: Others | C152: MRPL | D152: 129.75 | E152: 128.75 | F152: 126.50 | G152: 123.25 | H152: 121.00 | I152: 132.00 | J152: 134.25 | K152: 137.50 | L152: 131 | M152: 125.5 | N152: 9265500 | O152: 3.73%
A153: 143 | B153: Finance | C153: MUTHOOTFIN | D153: 433.55 | E153: 426.17 | F153: 415.43 | G153: 397.32 | H153: 386.58 | I153: 444.28 | J153: 455.02 | K153: 473.13 | L153: 436.9 | M153: 408.05 | N153: 2800500 | O153: -5.08%
A154: 144 | B154: Others | C154: NATIONALUM | D154: 72.05 | E154: 72.37 | F154: 70.53 | G154: 69.02 | H154: 67.18 | I154: 73.88 | J154: 75.72 | K154: 77.23 | L154: 74.2 | M154: 70.85 | N154: 54360000 | O154: 1.81%
A155: 145 | B155: Others | C155: NBCC | D155: 229.20 | E155: 229.50 | F155: 223.70 | G155: 218.20 | H155: 212.40 | I155: 235.00 | J155: 240.80 | K155: 246.30 | L155: 235.3 | M155: 224 | N155: 13758000 | O155: -3.64%
A156: 146 | B156: Infrastructure | C156: NCC | D156: 125.35 | E156: 124.48 | F156: 120.17 | G156: 114.98 | H156: 110.67 | I156: 129.67 | J156: 133.98 | K156: 139.17 | L156: 128.8 | M156: 119.3 | N156: 30528000 | O156: 1.06%
A157: 147 | B157: Others | C157: NESTLEIND | D157: 7334.90 | E157: 7405.32 | F157: 7240.63 | G157: 7146.37 | H157: 6981.68 | I157: 7499.58 | J157: 7664.27 | K157: 7758.53 | L157: 7570 | M157: 7311.05 | N157: 142900 | O157: -0.97%
A158: 148 | B158: Power | C158: NHPC | D158: 28.05 | E158: 28.17 | F158: 27.73 | G158: 27.42 | H158: 26.98 | I158: 28.48 | J158: 28.92 | K158: 29.23 | L158: 28.6 | M158: 27.85 | N158: 57699000 | O158: 3.19%
A159: 149 | B159: Technology | C159: NIITTECH | D159: 840.05 | E159: 846.63 | F159: 826.77 | G159: 813.48 | H159: 793.62 | I159: 859.92 | J159: 879.78 | K159: 893.07 | L159: 866.5 | M159: 833.35 | N159: 1506000 | O159: -3.37%
A160: 150 | B160: Metals | C160: NMDC | D160: 140.95 | E160: 140.25 | F160: 137.10 | G160: 133.25 | H160: 130.10 | I160: 144.10 | J160: 147.25 | K160: 151.10 | L160: 143.4 | M160: 136.4 | N160: 45696000 | O160: -0.64%
A161: 151 | B161: Power | C161: NTPC | D161: 166.65 | E161: 165.72 | F161: 163.83 | G161: 161.02 | H161: 159.13 | I161: 168.53 | J161: 170.42 | K161: 173.23 | L161: 167.6 | M161: 162.9 | N161: 25384000 | O161: -1.00%
A162: 152 | B162: Technology | C162: OFSS | D162: 4216.95 | E162: 4203.92 | F162: 4163.03 | G162: 4109.12 | H162: 4068.23 | I162: 4257.83 | J162: 4298.72 | K162: 4352.63 | L162: 4244.8 | M162: 4150 | N162: 128700 | O162: -0.12%
A163: 153 | B163: Oil_Gas | C163: OIL | D163: 348.60 | E163: 351.43 | F163: 344.22 | G163: 339.83 | H163: 332.62 | I163: 355.82 | J163: 363.03 | K163: 367.42 | L163: 358.65 | M163: 347.05 | N163: 2812106 | O163: 1.14%
A164: 154 | B164: Oil_Gas | C164: ONGC | D164: 193.30 | E164: 197.07 | F164: 188.43 | G164: 183.57 | H164: 174.93 | I164: 201.93 | J164: 210.57 | K164: 215.43 | L164: 205.7 | M164: 192.2 | N164: 44452500 | O164: 1.95%
A165: 155 | B165: Banking | C165: ORIENTBANK | D165: 114.20 | E165: 114.80 | F165: 112.40 | G165: 110.60 | H165: 108.20 | I165: 116.60 | J165: 119.00 | K165: 120.80 | L165: 117.2 | M165: 113 | N165: 18726000 | O165: 0.55%
A166: 156 | B166: Textile | C166: PAGEIND | D166: 21391.20 | E166: 21563.40 | F166: 21127.80 | G166: 20864.40 | H166: 20428.80 | I166: 21826.80 | J166: 22262.40 | K166: 22525.80 | L166: 21999 | M166: 21300 | N166: 43550 | O166: 7.13%
A167: 157 | B167: Others | C167: PCJEWELLER | D167: 486.35 | E167: 487.05 | F167: 472.30 | G167: 458.25 | H167: 443.50 | I167: 501.10 | J167: 515.85 | K167: 529.90 | L167: 501.8 | M167: 473 | N167: 17758500 | O167: -0.68%
A168: 158 | B168: Pharma | C168: PEL | D168: 2748.45 | E168: 2742.63 | F168: 2706.37 | G168: 2664.28 | H168: 2628.02 | I168: 2784.72 | J168: 2820.98 | K168: 2863.07 | L168: 2778.9 | M168: 2700.55 | N168: 1487652 | O168: -0.46%
A169: 159 | B169: Oil_Gas | C169: PETRONET | D169: 251.80 | E169: 251.25 | F169: 248.55 | G169: 245.30 | H169: 242.60 | I169: 254.50 | J169: 257.20 | K169: 260.45 | L169: 253.95 | M169: 248 | N169: 15750000 | O169: -1.89%
A170: 160 | B170: Finance | C170: PFC | D170: 116.55 | E170: 116.52 | F170: 114.63 | G170: 112.72 | H170: 110.83 | I170: 118.43 | J170: 120.32 | K170: 122.23 | L170: 118.4 | M170: 114.6 | N170: 63396000 | O170: -1.52%
A171: 161 | B171: FMCG | C171: PIDILITIND | D171: 897.65 | E171: 891.73 | F171: 881.27 | G171: 864.88 | H171: 854.42 | I171: 908.12 | J171: 918.58 | K171: 934.97 | L171: 902.2 | M171: 875.35 | N171: 1367000 | O171: -7.01%
A172: 162 | B172: Banking | C172: PNB | D172: 167.65 | E172: 169.47 | F172: 164.28 | G172: 160.92 | H172: 155.73 | I172: 172.83 | J172: 178.02 | K172: 181.38 | L172: 174.65 | M172: 166.1 | N172: 43304000 | O172: 3.49%
A173: 163 | B173: Power | C173: POWERGRID | D173: 193.10 | E173: 191.30 | F173: 189.05 | G173: 185.00 | H173: 182.75 | I173: 195.35 | J173: 197.60 | K173: 201.65 | L173: 193.55 | M173: 187.25 | N173: 26296000 | O173: -1.02%
A174: 164 | B174: Power | C174: PTC | D174: 104.30 | E174: 104.28 | F174: 101.72 | G174: 99.13 | H174: 96.57 | I174: 106.87 | J174: 109.43 | K174: 112.02 | L174: 106.85 | M174: 101.7 | N174: 21600000 | O174: 0.63%
A175: 165 | B175: Others | C175: PVR | D175: 1426.90 | E175: 1439.50 | F175: 1409.45 | G175: 1392.00 | H175: 1361.95 | I175: 1456.95 | J175: 1487.00 | K175: 1504.45 | L175: 1469.55 | M175: 1422.05 | N175: 503600 | O175: 1.70%
A176: 166 | B176: Cement | C176: RAMCOCEM | D176: 759.55 | E176: 755.50 | F176: 742.15 | G176: 724.75 | H176: 711.40 | I176: 772.90 | J176: 786.25 | K176: 803.65 | L176: 768.85 | M176: 738.1 | N176: 373600 | O176: -6.04%
A177: 167 | B177: Others | C177: RAYMOND | D177: 1023.05 | E177: 1013.47 | F177: 960.28 | G177: 897.52 | H177: 844.33 | I177: 1076.23 | J177: 1129.42 | K177: 1192.18 | L177: 1066.65 | M177: 950.7 | N177: 5225600 | O177: 1.16%
A178: 168 | B178: Banking | C178: RBLBANK | D178: 505.50 | E178: 503.83 | F178: 494.77 | G178: 484.03 | H178: 474.97 | I178: 514.57 | J178: 523.63 | K178: 534.37 | L178: 512.9 | M178: 493.1 | N178: 6009000 | O178: -1.80%
A179: 169 | B179: Telecom | C179: RCOM | D179: 28.75 | E179: 29.07 | F179: 28.18 | G179: 27.62 | H179: 26.73 | I179: 29.63 | J179: 30.52 | K179: 31.08 | L179: 29.95 | M179: 28.5 | N179: 92512000 | O179: -0.27%
A180: 170 | B180: Capital_Goods | C180: RNAVAL | D180: 44.35 | E180: 44.97 | F180: 42.78 | G180: 41.22 | H180: 39.03 | I180: 46.53 | J180: 48.72 | K180: 50.28 | L180: 47.15 | M180: 43.4 | N180: 36981000 | O180: 2.14%
A181: 171 | B181: Power | C181: RECLTD | D181: 147.40 | E181: 148.50 | F181: 144.85 | G181: 142.30 | H181: 138.65 | I181: 151.05 | J181: 154.70 | K181: 157.25 | L181: 152.15 | M181: 145.95 | N181: 45384000 | O181: 1.28%
A182: 172 | B182: Finance | C182: RELCAPITAL | D182: 487.25 | E182: 486.75 | F182: 466.50 | G182: 445.75 | H182: 425.50 | I182: 507.50 | J182: 527.75 | K182: 548.50 | L182: 507 | M182: 466 | N182: 13236750 | O182: 0.63%
A183: 173 | B183: Oil_Gas | C183: RELIANCE | D183: 949.00 | E183: 955.22 | F183: 935.43 | G183: 921.87 | H183: 902.08 | I183: 968.78 | J183: 988.57 | K183: 1002.13 | L183: 975 | M183: 941.65 | N183: 41766000 | O183: -3.00%
A184: 174 | B184: Power | C184: RELINFRA | D184: 494.85 | E184: 494.27 | F184: 482.03 | G184: 469.22 | H184: 456.98 | I184: 507.08 | J184: 519.32 | K184: 532.13 | L184: 506.5 | M184: 481.45 | N184: 11774100 | O184: -0.02%
A185: 175 | B185: Others | C185: REPCOHOME | D185: 628.70 | E185: 629.83 | F185: 619.82 | G185: 610.93 | H185: 600.92 | I185: 638.72 | J185: 648.73 | K185: 657.62 | L185: 639.85 | M185: 620.95 | N185: 903600 | O185: -3.20%
A186: 176 | B186: Power | C186: RPOWER | D186: 44.40 | E186: 44.67 | F186: 42.88 | G186: 41.37 | H186: 39.58 | I186: 46.18 | J186: 47.97 | K186: 49.48 | L186: 46.45 | M186: 43.15 | N186: 69264000 | O186: 3.54%
A187: 177 | B187: Metals | C187: SAIL | D187: 89.75 | E187: 89.22 | F187: 87.03 | G187: 84.32 | H187: 82.13 | I187: 91.93 | J187: 94.12 | K187: 96.83 | L187: 91.4 | M187: 86.5 | N187: 75900000 | O187: 4.01%
A188: 178 | B188: Banking | C188: SBIN | D188: 306.10 | E188: 309.55 | F188: 301.70 | G188: 297.30 | H188: 289.45 | I188: 313.95 | J188: 321.80 | K188: 326.20 | L188: 317.4 | M188: 305.15 | N188: 65844000 | O188: 4.45%
A189: 179 | B189: Cement | C189: SHREECEM | D189: 17542.45 | E189: 17475.80 | F189: 17326.60 | G189: 17110.75 | H189: 16961.55 | I189: 17691.65 | J189: 17840.85 | K189: 18056.70 | L189: 17625 | M189: 17259.95 | N189: 68250 | O189: 0.89%
A190: 180 | B190: Capital_Goods | C190: SIEMENS | D190: 1325.25 | E190: 1310.98 | F190: 1284.27 | G190: 1243.28 | H190: 1216.57 | I190: 1351.97 | J190: 1378.68 | K190: 1419.67 | L190: 1337.7 | M190: 1270 | N190: 787000 | O190: -0.76%
A191: 181 | B191: Banking | C191: SOUTHBANK | D191: 30.05 | E191: 29.98 | F191: 29.42 | G191: 28.78 | H191: 28.22 | I191: 30.62 | J191: 31.18 | K191: 31.82 | L191: 30.55 | M191: 29.35 | N191: 178696272 | O191: -1.61%
A192: 182 | B192: Others | C192: SREINFRA | D192: 96.15 | E192: 95.55 | F192: 93.60 | G192: 91.05 | H192: 89.10 | I192: 98.10 | J192: 100.05 | K192: 102.60 | L192: 97.5 | M192: 93 | N192: 19425000 | O192: -2.07%
A193: 183 | B193: Textile | C193: SRF | D193: 1809.65 | E193: 1791.55 | F193: 1758.10 | G193: 1706.55 | H193: 1673.10 | I193: 1843.10 | J193: 1876.55 | K193: 1928.10 | L193: 1825 | M193: 1740 | N193: 716000 | O193: 5.92%
A194: 184 | B194: Finance | C194: SRTRANSFIN | D194: 1385.40 | E194: 1391.43 | F194: 1357.87 | G194: 1330.33 | H194: 1296.77 | I194: 1418.97 | J194: 1452.53 | K194: 1480.07 | L194: 1425 | M194: 1363.9 | N194: 1961400 | O194: 0.00%
A195: 185 | B195: Pharma | C195: STAR | D195: 748.70 | E195: 751.63 | F195: 732.27 | G195: 715.83 | H195: 696.47 | I195: 768.07 | J195: 787.43 | K195: 803.87 | L195: 771 | M195: 735.2 | N195: 4820400 | O195: 0.99%
A196: 186 | B196: Pharma | C196: SUNPHARMA | D196: 555.40 | E196: 562.05 | F196: 543.40 | G196: 531.40 | H196: 512.75 | I196: 574.05 | J196: 592.70 | K196: 604.70 | L196: 580.7 | M196: 550.05 | N196: 52787900 | O196: 1.24%
A197: 187 | B197: Media | C197: SUNTV | D197: 1012.95 | E197: 1006.50 | F197: 986.45 | G197: 959.95 | H197: 939.90 | I197: 1033.00 | J197: 1053.05 | K197: 1079.55 | L197: 1026.55 | M197: 980 | N197: 4328000 | O197: -1.59%
A198: 188 | B198: Power | C198: SUZLON | D198: 14.65 | E198: 14.68 | F198: 14.32 | G198: 13.98 | H198: 13.62 | I198: 15.02 | J198: 15.38 | K198: 15.72 | L198: 15.05 | M198: 14.35 | N198: 412335000 | O198: 0.15%
A199: 189 | B199: Banking | C199: SYNDIBANK | D199: 69.65 | E199: 70.78 | F199: 68.17 | G199: 66.68 | H199: 64.07 | I199: 72.27 | J199: 74.88 | K199: 76.37 | L199: 73.4 | M199: 69.3 | N199: 31149000 | O199: 3.47%
A200: 190 | B200: Fertilisers | C200: TATACHEM | D200: 720.80 | E200: 718.20 | F200: 708.75 | G200: 696.70 | H200: 687.25 | I200: 730.25 | J200: 739.70 | K200: 751.75 | L200: 727.65 | M200: 706.15 | N200: 8436000 | O200: -1.73%
A201: 191 | B201: Telecom | C201: TATACOMM | D201: 624.75 | E201: 621.38 | F201: 610.87 | G201: 596.98 | H201: 586.47 | I201: 635.27 | J201: 645.78 | K201: 659.67 | L201: 631.9 | M201: 607.5 | N201: 8556000 | O201: -0.59%
A202: 192 | B202: Technology | C202: TATAELXSI | D202: 1026.80 | E202: 1027.95 | F202: 977.90 | G202: 929.00 | H202: 878.95 | I202: 1076.85 | J202: 1126.90 | K202: 1175.80 | L202: 1078 | M202: 979.05 | N202: 1688000 | O202: -5.89%
A203: 193 | B203: FMCG | C203: TATAGLOBAL | D203: 288.75 | E203: 287.58 | F203: 280.17 | G203: 271.58 | H203: 264.17 | I203: 296.17 | J203: 303.58 | K203: 312.17 | L203: 295 | M203: 279 | N203: 30699000 | O203: -0.66%
A204: 194 | B204: Automobile | C204: TATAMOTORS | D204: 395.50 | E204: 397.08 | F204: 389.67 | G204: 383.83 | H204: 376.42 | I204: 402.92 | J204: 410.33 | K204: 416.17 | L204: 404.5 | M204: 391.25 | N204: 61552500 | O204: 4.17%
A205: 195 | B205: Automobile | C205: TATAMTRDVR | D205: 222.65 | E205: 223.03 | F205: 218.42 | G205: 214.18 | H205: 209.57 | I205: 227.27 | J205: 231.88 | K205: 236.12 | L205: 227.65 | M205: 218.8 | N205: 27970000 | O205: 2.33%
A206: 196 | B206: Power | C206: TATAPOWER | D206: 89.80 | E206: 89.43 | F206: 87.97 | G206: 86.13 | H206: 84.67 | I206: 91.27 | J206: 92.73 | K206: 94.57 | L206: 90.9 | M206: 87.6 | N206: 69849000 | O206: -0.59%
... 37 more rows

Sheet Cash Intra
M5: Back to Main Page
A6: FOR INTRA DAY TRADING | K6: =Main!B10 -> 2018-02-02
A8: Sr.no | B8: Scrip | C8: CLOSE RATE | D8: Pivot Point | E8: Supports | H8: Resistances
C9: Point | E9: S1 | F9: S2 | G9: S3 | H9: R1 | I9: R2 | J9: R3 | K9: HIGH | L9: LOW | M9: Total Trade Quanity in Lakhs
A10: 1 | B10: Nifty 50 | C10: 11016.9 | D10: 11004.35 | E10: 10891.35 | F10: 10765.80 | G10: 10652.80 | H10: 11129.90 | I10: 11242.90 | J10: 11368.45 | K10: 11117.35 | L10: 10878.8
A11: 2 | B11: Nifty Bank | C11: 27220.7 | D11: 27293.52 | E11: 26973.53 | F11: 26726.37 | G11: 26406.38 | H11: 27540.68 | I11: 27860.67 | J11: 28107.83 | K11: 27613.5 | L11: 27046.35
A12: 3 | B12: Nifty CPSE | C12: 2720.5 | D12: 2741.13 | E12: 2693.92 | F12: 2667.33 | G12: 2620.12 | H12: 2767.72 | I12: 2814.93 | J12: 2841.52 | K12: 2788.35 | L12: 2714.55
A13: 4 | B13: Nifty Infra | C13: 3648.05 | D13: 3624.57 | E13: 3590.43 | F13: 3532.82 | G13: 3498.68 | H13: 3682.18 | I13: 3716.32 | J13: 3773.93 | K13: 3658.7 | L13: 3566.95
A14: 5 | B14: Nifty IT | C14: 12964.6 | D14: 12973.10 | E14: 12804.45 | F14: 12644.30 | G14: 12475.65 | H14: 13133.25 | I14: 13301.90 | J14: 13462.05 | K14: 13141.75 | L14: 12812.95
A15: 6 | B15: Nifty PSE | C15: 4251.3 | D15: 4261.48 | E15: 4209.12 | F15: 4166.93 | G15: 4114.57 | H15: 4303.67 | I15: 4356.03 | J15: 4398.22 | K15: 4313.85 | L15: 4219.3
A16: 7 | B16: Nifty Midcap 50 | C16: 5350.05 | D16: 5327.67 | E16: 5266.08 | F16: 5182.12 | G16: 5120.53 | H16: 5411.63 | I16: 5473.22 | J16: 5557.18 | K16: 5389.25 | L16: 5243.7
A17: 8 | B17: ABB | C17: 1700.45 | D17: 1686.45 | E17: 1651.00 | F17: 1601.55 | G17: 1566.10 | H17: 1735.90 | I17: 1771.35 | J17: 1820.80 | K17: 1721.9 | L17: 1637 | M17: 2.00484
A18: 9 | B18: ABFRL | C18: 163.6 | D18: 162.57 | E18: 159.63 | F18: 155.67 | G18: 152.73 | H18: 166.53 | I18: 169.47 | J18: 173.43 | K18: 165.5 | L18: 158.6 | M18: 3.0368
A19: 10 | B19: ACC | C19: 1737 | D19: 1725.65 | E19: 1706.45 | F19: 1675.90 | G19: 1656.70 | H19: 1756.20 | I19: 1775.40 | J19: 1805.95 | K19: 1744.85 | L19: 1695.1 | M19: 3.00979
A20: 11 | B20: ADANIENT | C20: 214 | D20: 211.58 | E20: 206.12 | F20: 198.23 | G20: 192.77 | H20: 219.47 | I20: 224.93 | J20: 232.82 | K20: 217.05 | L20: 203.7 | M20: 49.05671
A21: 12 | B21: ADANIPORTS | C21: 428.75 | D21: 425.40 | E21: 417.80 | F21: 406.85 | G21: 399.25 | H21: 436.35 | I21: 443.95 | J21: 454.90 | K21: 433 | L21: 414.45 | M21: 16.81704
A22: 13 | B22: ADANIPOWER | C22: 36.75 | D22: 36.23 | E22: 35.22 | F22: 33.68 | G22: 32.67 | H22: 37.77 | I22: 38.78 | J22: 40.32 | K22: 37.25 | L22: 34.7 | M22: 109.04549
A23: 14 | B23: AIAENG | C23: 1500.6 | D23: 1506.92 | E23: 1473.68 | F23: 1446.77 | G23: 1413.53 | H23: 1533.83 | I23: 1567.07 | J23: 1593.98 | K23: 1540.15 | L23: 1480 | M23: 0.48541
A24: 15 | B24: AJANTPHARM | C24: 1403.4 | D24: 1406.65 | E24: 1348.30 | F24: 1293.20 | G24: 1234.85 | H24: 1461.75 | I24: 1520.10 | J24: 1575.20 | K24: 1465 | L24: 1351.55 | M24: 2.82193
A25: 16 | B25: ALKEM | C25: 2229.85 | D25: 2211.28 | E25: 2183.57 | F25: 2137.28 | G25: 2109.57 | H25: 2257.57 | I25: 2285.28 | J25: 2331.57 | K25: 2239 | L25: 2165 | M25: 0.11453
A26: 17 | B26: AMARAJABAT | C26: 808.5 | D26: 808.17 | E26: 791.13 | F26: 773.77 | G26: 756.73 | H26: 825.53 | I26: 842.57 | J26: 859.93 | K26: 825.2 | L26: 790.8 | M26: 3.75014
A27: 18 | B27: AMBUJACEM | C27: 266.45 | D27: 265.62 | E27: 261.73 | F27: 257.02 | G27: 253.13 | H27: 270.33 | I27: 274.22 | J27: 278.93 | K27: 269.5 | L27: 260.9 | M27: 33.55964
A28: 19 | B28: APLLTD | C28: 551.45 | D28: 557.02 | E28: 540.03 | F28: 528.62 | G28: 511.63 | H28: 568.43 | I28: 585.42 | J28: 596.83 | K28: 574 | L28: 545.6 | M28: 0.43746
A29: 20 | B29: APOLLOHOSP | C29: 1218.55 | D29: 1201.13 | E29: 1177.72 | F29: 1136.88 | G29: 1113.47 | H29: 1241.97 | I29: 1265.38 | J29: 1306.22 | K29: 1224.55 | L29: 1160.3 | M29: 10.36405
A30: 21 | B30: APOLLOTYRE | C30: 262.35 | D30: 259.75 | E30: 251.00 | F30: 239.65 | G30: 230.90 | H30: 271.10 | I30: 279.85 | J30: 291.20 | K30: 268.5 | L30: 248.4 | M30: 46.93162
A31: 22 | B31: ARVIND | C31: 406.1 | D31: 406.35 | E31: 396.40 | F31: 386.70 | G31: 376.75 | H31: 416.05 | I31: 426.00 | J31: 435.70 | K31: 416.3 | L31: 396.65 | M31: 21.01659
A32: 23 | B32: ASHOKLEY | C32: 123.35 | D32: 122.20 | E32: 117.45 | F32: 111.55 | G32: 106.80 | H32: 128.10 | I32: 132.85 | J32: 138.75 | K32: 126.95 | L32: 116.3 | M32: 159.46691
A33: 24 | B33: ASIANPAINT | C33: 1153 | D33: 1145.45 | E33: 1133.55 | F33: 1114.10 | G33: 1102.20 | H33: 1164.90 | I33: 1176.80 | J33: 1196.25 | K33: 1157.35 | L33: 1126 | M33: 11.03162
A34: 25 | B34: AUROPHARMA | C34: 611.2 | D34: 615.85 | E34: 600.35 | F34: 589.50 | G34: 574.00 | H34: 626.70 | I34: 642.20 | J34: 653.05 | K34: 631.35 | L34: 605 | M34: 26.65368
A35: 26 | B35: AXISBANK | C35: 592.8 | D35: 596.30 | E35: 582.60 | F35: 572.40 | G35: 558.70 | H35: 606.50 | I35: 620.20 | J35: 630.40 | K35: 610 | L35: 586.1 | M35: 78.39731
A36: 27 | B36: BAJAJ-AUTO | C36: 3412.95 | D36: 3374.72 | E36: 3328.23 | F36: 3243.52 | G36: 3197.03 | H36: 3459.43 | I36: 3505.92 | J36: 3590.63 | K36: 3421.2 | L36: 3290 | M36: 4.39064
A37: 28 | B37: BAJAJFINSV | C37: 5038.4 | D37: 4962.80 | E37: 4845.60 | F37: 4652.80 | G37: 4535.60 | H37: 5155.60 | I37: 5272.80 | J37: 5465.60 | K37: 5080 | L37: 4770 | M37: 3.50858
A38: 29 | B38: BAJFINANCE | C38: 1729.45 | D38: 1711.40 | E38: 1662.80 | F38: 1596.15 | G38: 1547.55 | H38: 1778.05 | I38: 1826.65 | J38: 1893.30 | K38: 1760 | L38: 1644.75 | M38: 19.39812
A39: 30 | B39: BANKBARODA | C39: 152.35 | D39: 154.23 | E39: 149.87 | F39: 147.38 | G39: 143.02 | H39: 156.72 | I39: 161.08 | J39: 163.57 | K39: 158.6 | L39: 151.75 | M39: 120.39264
A40: 31 | B40: BANKINDIA | C40: 153.5 | D40: 155.07 | E40: 151.18 | F40: 148.87 | G40: 144.98 | H40: 157.38 | I40: 161.27 | J40: 163.58 | K40: 158.95 | L40: 152.75 | M40: 37.354
A41: 32 | B41: BATAINDIA | C41: 710.3 | D41: 707.63 | E41: 697.32 | F41: 684.33 | G41: 674.02 | H41: 720.62 | I41: 730.93 | J41: 743.92 | K41: 717.95 | L41: 694.65 | M41: 6.66174
A42: 33 | B42: BEL | C42: 161.55 | D42: 164.62 | E42: 158.03 | F42: 154.52 | G42: 147.93 | H42: 168.13 | I42: 174.72 | J42: 178.23 | K42: 171.2 | L42: 161.1 | M42: 137.87038
A43: 34 | B43: BERGEPAINT | C43: 260.15 | D43: 257.28 | E43: 253.37 | F43: 246.58 | G43: 242.67 | H43: 264.07 | I43: 267.98 | J43: 274.77 | K43: 261.2 | L43: 250.5 | M43: 11.25258
A44: 35 | B44: BHARATFIN | C44: 1066.75 | D44: 1062.33 | E44: 1043.22 | F44: 1019.68 | G44: 1000.57 | H44: 1085.87 | I44: 1104.98 | J44: 1128.52 | K44: 1081.45 | L44: 1038.8 | M44: 12.2204
A45: 36 | B45: BHARATFORG | C45: 724.45 | D45: 722.80 | E45: 713.60 | F45: 702.75 | G45: 693.55 | H45: 733.65 | I45: 742.85 | J45: 753.70 | K45: 732 | L45: 711.95 | M45: 8.31151
A46: 37 | B46: BHARTIARTL | C46: 438.4 | D46: 438.50 | E46: 430.00 | F46: 421.60 | G46: 413.10 | H46: 446.90 | I46: 455.40 | J46: 463.80 | K46: 447 | L46: 430.1 | M46: 72.97226
A47: 38 | B47: BHEL | C47: 100.35 | D47: 99.85 | E47: 97.65 | F47: 94.95 | G47: 92.75 | H47: 102.55 | I47: 104.75 | J47: 107.45 | K47: 102.05 | L47: 97.15 | M47: 105.2023
A48: 39 | B48: BIOCON | C48: 619.1 | D48: 616.52 | E48: 606.08 | F48: 593.07 | G48: 582.63 | H48: 629.53 | I48: 639.97 | J48: 652.98 | K48: 626.95 | L48: 603.5 | M48: 18.99153
A49: 40 | B49: BOSCHLTD | C49: 19517.85 | D49: 19478.95 | E49: 19338.90 | F49: 19159.95 | G49: 19019.90 | H49: 19657.90 | I49: 19797.95 | J49: 19976.90 | K49: 19619 | L49: 19300 | M49: 0.14331
A50: 41 | B50: BPCL | C50: 490.35 | D50: 488.57 | E50: 483.23 | F50: 476.12 | G50: 470.78 | H50: 495.68 | I50: 501.02 | J50: 508.13 | K50: 493.9 | L50: 481.45 | M50: 36.49443
A51: 42 | B51: BRITANNIA | C51: 4740.5 | D51: 4719.35 | E51: 4677.00 | F51: 4613.50 | G51: 4571.15 | H51: 4782.85 | I51: 4825.20 | J51: 4888.70 | K51: 4761.7 | L51: 4655.85 | M51: 1.48844
A52: 43 | B52: CADILAHC | C52: 417.65 | D52: 420.40 | E52: 412.25 | F52: 406.85 | G52: 398.70 | H52: 425.80 | I52: 433.95 | J52: 439.35 | K52: 428.55 | L52: 415 | M52: 13.18106
A53: 44 | B53: CANBK | C53: 329.9 | D53: 334.20 | E53: 324.40 | F53: 318.90 | G53: 309.10 | H53: 339.70 | I53: 349.50 | J53: 355.00 | K53: 344 | L53: 328.7 | M53: 32.11448
A54: 45 | B54: CASTROLIND | C54: 183.75 | D54: 183.80 | E54: 180.60 | F54: 177.45 | G54: 174.25 | H54: 186.95 | I54: 190.15 | J54: 193.30 | K54: 187 | L54: 180.65 | M54: 19.37262
A55: 46 | B55: CENTRALBK | C55: 72.7 | D55: 73.28 | E55: 71.97 | F55: 71.23 | G55: 69.92 | H55: 74.02 | I55: 75.33 | J55: 76.07 | K55: 74.6 | L55: 72.55 | M55: 2.87038
A56: 47 | B56: CENTURYTEX | C56: 1383.1 | D56: 1372.52 | E56: 1347.23 | F56: 1311.37 | G56: 1286.08 | H56: 1408.38 | I56: 1433.67 | J56: 1469.53 | K56: 1397.8 | L56: 1336.65 | M56: 7.91779
A57: 48 | B57: CESC | C57: 1045.35 | D57: 1044.10 | E57: 1020.45 | F57: 995.55 | G57: 971.90 | H57: 1069.00 | I57: 1092.65 | J57: 1117.55 | K57: 1067.75 | L57: 1019.2 | M57: 5.32387
A58: 49 | B58: CHOLAFIN | C58: 1334.8 | D58: 1320.18 | E58: 1300.72 | F58: 1266.63 | G58: 1247.17 | H58: 1354.27 | I58: 1373.73 | J58: 1407.82 | K58: 1339.65 | L58: 1286.1 | M58: 2.32788
A59: 50 | B59: CIPLA | C59: 587.05 | D59: 588.08 | E59: 579.17 | F59: 571.28 | G59: 562.37 | H59: 595.97 | I59: 604.88 | J59: 612.77 | K59: 597 | L59: 580.2 | M59: 10.50098
A60: 51 | B60: COALINDIA | C60: 295.6 | D60: 295.90 | E60: 290.65 | F60: 285.70 | G60: 280.45 | H60: 300.85 | I60: 306.10 | J60: 311.05 | K60: 301.15 | L60: 290.95 | M60: 45.33542
A61: 52 | B61: COLPAL | C61: 1130.45 | D61: 1126.20 | E61: 1117.25 | F61: 1104.05 | G61: 1095.10 | H61: 1139.40 | I61: 1148.35 | J61: 1161.55 | K61: 1135.15 | L61: 1113 | M61: 1.20516
A62: 53 | B62: CONCOR | C62: 1387.3 | D62: 1386.98 | E62: 1367.12 | F62: 1346.93 | G62: 1327.07 | H62: 1407.17 | I62: 1427.03 | J62: 1447.22 | K62: 1406.85 | L62: 1366.8 | M62: 4.19912
A63: 54 | B63: COROMANDEL | C63: 549 | D63: 547.85 | E63: 532.25 | F63: 515.50 | G63: 499.90 | H63: 564.60 | I63: 580.20 | J63: 596.95 | K63: 563.45 | L63: 531.1 | M63: 2.49101
A64: 55 | B64: CRISIL | C64: 1978.5 | D64: 1962.13 | E64: 1940.37 | F64: 1902.23 | G64: 1880.47 | H64: 2000.27 | I64: 2022.03 | J64: 2060.17 | K64: 1983.9 | L64: 1924 | M64: 0.09284
A65: 56 | B65: CROMPTON | C65: 253.4 | D65: 255.62 | E65: 246.28 | F65: 239.17 | G65: 229.83 | H65: 262.73 | I65: 272.07 | J65: 279.18 | K65: 264.95 | L65: 248.5 | M65: 11.40961
A66: 57 | B66: CUMMINSIND | C66: 903.05 | D66: 899.38 | E66: 889.87 | F66: 876.68 | G66: 867.17 | H66: 912.57 | I66: 922.08 | J66: 935.27 | K66: 908.9 | L66: 886.2 | M66: 4.11736
A67: 58 | B67: DABUR | C67: 349.7 | D67: 352.35 | E67: 345.85 | F67: 342.00 | G67: 335.50 | H67: 356.20 | I67: 362.70 | J67: 366.55 | K67: 358.85 | L67: 348.5 | M67: 24.38075
A68: 59 | B68: DALMIABHA | C68: 2972 | D68: 2981.72 | E68: 2918.43 | F68: 2864.87 | G68: 2801.58 | H68: 3035.28 | I68: 3098.57 | J68: 3152.13 | K68: 3045 | L68: 2928.15 | M68: 2.15502
A69: 60 | B69: DHFL | C69: 568.35 | D69: 576.13 | E69: 556.52 | F69: 544.68 | G69: 525.07 | H69: 587.97 | I69: 607.58 | J69: 619.42 | K69: 595.75 | L69: 564.3 | M69: 35.76004
A70: 61 | B70: DISHTV | C70: 77.35 | D70: 76.65 | E70: 74.40 | F70: 71.45 | G70: 69.20 | H70: 79.60 | I70: 81.85 | J70: 84.80 | K70: 78.9 | L70: 73.7 | M70: 69.41568
A71: 62 | B71: DIVISLAB | C71: 1043.8 | D71: 1041.63 | E71: 1024.67 | F71: 1005.53 | G71: 988.57 | H71: 1060.77 | I71: 1077.73 | J71: 1096.87 | K71: 1058.6 | L71: 1022.5 | M71: 7.63908
A72: 63 | B72: DLF | C72: 245 | D72: 245.13 | E72: 236.57 | F72: 228.13 | G72: 219.57 | H72: 253.57 | I72: 262.13 | J72: 270.57 | K72: 253.7 | L72: 236.7 | M72: 105.09963
A73: 64 | B73: DRREDDY | C73: 2157.95 | D73: 2178.68 | E73: 2132.37 | F73: 2106.78 | G73: 2060.47 | H73: 2204.27 | I73: 2250.58 | J73: 2276.17 | K73: 2225 | L73: 2153.1 | M73: 9.68321
A74: 65 | B74: EDELWEISS | C74: 281.6 | D74: 280.55 | E74: 272.50 | F74: 263.40 | G74: 255.35 | H74: 289.65 | I74: 297.70 | J74: 306.80 | K74: 288.6 | L74: 271.45 | M74: 28.27151
A75: 66 | B75: EICHERMOT | C75: 28047.35 | D75: 27687.28 | E75: 27074.57 | F75: 26101.78 | G75: 25489.07 | H75: 28660.07 | I75: 29272.78 | J75: 30245.57 | K75: 28300 | L75: 26714.5 | M75: 1.25564
A76: 67 | B76: EMAMILTD | C76: 1142.1 | D76: 1134.02 | E76: 1118.13 | F76: 1094.17 | G76: 1078.28 | H76: 1157.98 | I76: 1173.87 | J76: 1197.83 | K76: 1149.9 | L76: 1110.05 | M76: 1.31864
A77: 68 | B77: ENDURANCE | C77: 1200 | D77: 1203.32 | E77: 1176.68 | F77: 1153.37 | G77: 1126.73 | H77: 1226.63 | I77: 1253.27 | J77: 1276.58 | K77: 1229.95 | L77: 1180 | M77: 0.36977
A78: 69 | B78: ENGINERSIN | C78: 172.5 | D78: 173.83 | E78: 169.67 | F78: 166.83 | G78: 162.67 | H78: 176.67 | I78: 180.83 | J78: 183.67 | K78: 178 | L78: 171 | M78: 26.61235
A79: 70 | B79: EXIDEIND | C79: 219.75 | D79: 220.28 | E79: 214.82 | F79: 209.88 | G79: 204.42 | H79: 225.22 | I79: 230.68 | J79: 235.62 | K79: 225.75 | L79: 215.35 | M79: 26.67975
A80: 71 | B80: FEDERALBNK | C80: 97.55 | D80: 98.72 | E80: 96.13 | F80: 94.72 | G80: 92.13 | H80: 100.13 | I80: 102.72 | J80: 104.13 | K80: 101.3 | L80: 97.3 | M80: 101.1037
A81: 72 | B81: FORTIS | C81: 132.6 | D81: 131.58 | E81: 126.17 | F81: 119.73 | G81: 114.32 | H81: 138.02 | I81: 143.43 | J81: 149.87 | K81: 137 | L81: 125.15 | M81: 329.23073
A82: 73 | B82: GAIL | C82: 486.25 | D82: 486.68 | E82: 477.57 | F82: 468.88 | G82: 459.77 | H82: 495.37 | I82: 504.48 | J82: 513.17 | K82: 495.8 | L82: 478 | M82: 46.1045
A83: 74 | B83: GLAXO | C83: 2459.15 | D83: 2453.08 | E83: 2441.17 | F83: 2423.18 | G83: 2411.27 | H83: 2471.07 | I83: 2482.98 | J83: 2500.97 | K83: 2465 | L83: 2435.1 | M83: 0.08351
A84: 75 | B84: GLENMARK | C84: 588.15 | D84: 592.73 | E84: 576.47 | F84: 564.78 | G84: 548.52 | H84: 604.42 | I84: 620.68 | J84: 632.37 | K84: 609 | L84: 581.05 | M84: 7.80428
A85: 76 | B85: GMRINFRA | C85: 22.75 | D85: 22.57 | E85: 21.23 | F85: 19.72 | G85: 18.38 | H85: 24.08 | I85: 25.42 | J85: 26.93 | K85: 23.9 | L85: 21.05 | M85: 1045.02685
A86: 77 | B86: GODREJCP | C86: 1053.3 | D86: 1051.05 | E86: 1039.30 | F86: 1025.30 | G86: 1013.55 | H86: 1065.05 | I86: 1076.80 | J86: 1090.80 | K86: 1062.8 | L86: 1037.05 | M86: 5.50552
A87: 78 | B87: GODREJIND | C87: 611.55 | D87: 611.58 | E87: 604.32 | F87: 597.08 | G87: 589.82 | H87: 618.82 | I87: 626.08 | J87: 633.32 | K87: 618.85 | L87: 604.35 | M87: 4.78158
A88: 79 | B88: GPPL | C88: 142.25 | D88: 143.42 | E88: 138.93 | F88: 135.62 | G88: 131.13 | H88: 146.73 | I88: 151.22 | J88: 154.53 | K88: 147.9 | L88: 140.1 | M88: 1.81999
A89: 80 | B89: GRASIM | C89: 1188.9 | D89: 1173.87 | E89: 1148.63 | F89: 1108.37 | G89: 1083.13 | H89: 1214.13 | I89: 1239.37 | J89: 1279.63 | K89: 1199.1 | L89: 1133.6 | M89: 9.36996
A90: 81 | B90: GRUH | C90: 576.5 | D90: 579.58 | E90: 569.17 | F90: 561.83 | G90: 551.42 | H90: 586.92 | I90: 597.33 | J90: 604.67 | K90: 590 | L90: 572.25 | M90: 3.72279
A91: 82 | B91: GSKCONS | C91: 6716.8 | D91: 6723.93 | E91: 6647.87 | F91: 6578.93 | G91: 6502.87 | H91: 6792.87 | I91: 6868.93 | J91: 6937.87 | K91: 6800 | L91: 6655 | M91: 0.08517
A92: 83 | B92: GSPL | C92: 200.4 | D92: 200.53 | E92: 197.57 | F92: 194.73 | G92: 191.77 | H92: 203.37 | I92: 206.33 | J92: 209.17 | K92: 203.5 | L92: 197.7 | M92: 3.17328
A93: 84 | B93: HAVELLS | C93: 525.4 | D93: 523.10 | E93: 513.50 | F93: 501.60 | G93: 492.00 | H93: 535.00 | I93: 544.60 | J93: 556.50 | K93: 532.7 | L93: 511.2 | M93: 17.27081
A94: 85 | B94: HCLTECH | C94: 984.9 | D94: 989.62 | E94: 964.28 | F94: 943.67 | G94: 918.33 | H94: 1010.23 | I94: 1035.57 | J94: 1056.18 | K94: 1014.95 | L94: 969 | M94: 15.27829
A95: 86 | B95: HDFC | C95: 1967.55 | D95: 1958.22 | E95: 1941.13 | F95: 1914.72 | G95: 1897.63 | H95: 1984.63 | I95: 2001.72 | J95: 2028.13 | K95: 1975.3 | L95: 1931.8 | M95: 38.38192
A96: 87 | B96: HDFCBANK | C96: 1991.15 | D96: 1997.15 | E96: 1979.30 | F96: 1967.45 | G96: 1949.60 | H96: 2009.00 | I96: 2026.85 | J96: 2038.70 | K96: 2015 | L96: 1985.3 | M96: 16.30355
A97: 88 | B97: HEROMOTOCO | C97: 3732.95 | D97: 3723.15 | E97: 3702.30 | F97: 3671.65 | G97: 3650.80 | H97: 3753.80 | I97: 3774.65 | J97: 3805.30 | K97: 3744 | L97: 3692.5 | M97: 3.46581
A98: 89 | B98: HEXAWARE | C98: 379.4 | D98: 379.52 | E98: 373.83 | F98: 368.27 | G98: 362.58 | H98: 385.08 | I98: 390.77 | J98: 396.33 | K98: 385.2 | L98: 373.95 | M98: 9.58966
A99: 90 | B99: HINDALCO | C99: 256.25 | D99: 254.83 | E99: 250.17 | F99: 244.08 | G99: 239.42 | H99: 260.92 | I99: 265.58 | J99: 271.67 | K99: 259.5 | L99: 248.75 | M99: 89.40788
A100: 91 | B100: HINDPETRO | C100: 392.35 | D100: 397.45 | E100: 385.10 | F100: 377.85 | G100: 365.50 | H100: 404.70 | I100: 417.05 | J100: 424.30 | K100: 409.8 | L100: 390.2 | M100: 49.27698
A101: 92 | B101: HINDUNILVR | C101: 1371.25 | D101: 1369.02 | E101: 1353.23 | F101: 1335.22 | G101: 1319.43 | H101: 1387.03 | I101: 1402.82 | J101: 1420.83 | K101: 1384.8 | L101: 1351 | M101: 15.63429
A102: 93 | B102: HINDZINC | C102: 307.95 | D102: 306.58 | E102: 301.37 | F102: 294.78 | G102: 289.57 | H102: 313.17 | I102: 318.38 | J102: 324.97 | K102: 311.8 | L102: 300 | M102: 15.1127
A103: 94 | B103: IBULHSGFIN | C103: 1377.45 | D103: 1367.78 | E103: 1322.72 | F103: 1267.98 | G103: 1222.92 | H103: 1422.52 | I103: 1467.58 | J103: 1522.32 | K103: 1412.85 | L103: 1313.05 | M103: 20.27712
A104: 95 | B104: ICICIBANK | C104: 346.2 | D104: 348.63 | E104: 341.37 | F104: 336.53 | G104: 329.27 | H104: 353.47 | I104: 360.73 | J104: 365.57 | K104: 355.9 | L104: 343.8 | M104: 294.72295
A105: 96 | B105: ICICIPRULI | C105: 424.9 | D105: 417.10 | E105: 405.20 | F105: 385.50 | G105: 373.60 | H105: 436.80 | I105: 448.70 | J105: 468.40 | K105: 429 | L105: 397.4 | M105: 35.25925
A106: 97 | B106: IDBI | C106: 63.65 | D106: 62.32 | E106: 59.83 | F106: 56.02 | G106: 53.53 | H106: 66.13 | I106: 68.62 | J106: 72.43 | K106: 64.8 | L106: 58.5 | M106: 157.00229
A107: 98 | B107: IDEA | C107: 91.3 | D107: 91.73 | E107: 89.92 | F107: 88.53 | G107: 86.72 | H107: 93.12 | I107: 94.93 | J107: 96.32 | K107: 93.55 | L107: 90.35 | M107: 97.83796
A108: 99 | B108: IDFC | C108: 55.65 | D108: 55.73 | E108: 54.27 | F108: 52.88 | G108: 51.42 | H108: 57.12 | I108: 58.58 | J108: 59.97 | K108: 57.2 | L108: 54.35 | M108: 89.02739
A109: 100 | B109: IDFCBANK | C109: 56.1 | D109: 56.23 | E109: 55.37 | F109: 54.63 | G109: 53.77 | H109: 56.97 | I109: 57.83 | J109: 58.57 | K109: 57.1 | L109: 55.5 | M109: 87.73135
A110: 101 | B110: IGL | C110: 302.9 | D110: 303.12 | E110: 299.28 | F110: 295.67 | G110: 291.83 | H110: 306.73 | I110: 310.57 | J110: 314.18 | K110: 306.95 | L110: 299.5 | M110: 26.17303
A111: 102 | B111: INDHOTEL | C111: 138.35 | D111: 139.63 | E111: 134.72 | F111: 131.08 | G111: 126.17 | H111: 143.27 | I111: 148.18 | J111: 151.82 | K111: 144.55 | L111: 136 | M111: 10.03034
A112: 103 | B112: INDIANB | C112: 353.6 | D112: 356.80 | E112: 345.80 | F112: 338.00 | G112: 327.00 | H112: 364.60 | I112: 375.60 | J112: 383.40 | K112: 367.8 | L112: 349 | M112: 9.42302
A113: 104 | B113: INDIGO | C113: 1216.8 | D113: 1215.97 | E113: 1198.03 | F113: 1179.27 | G113: 1161.33 | H113: 1234.73 | I113: 1252.67 | J113: 1271.43 | K113: 1233.9 | L113: 1197.2 | M113: 5.44967
A114: 105 | B114: INDUSINDBK | C114: 1795.45 | D114: 1782.37 | E114: 1746.93 | F114: 1698.42 | G114: 1662.98 | H114: 1830.88 | I114: 1866.32 | J114: 1914.83 | K114: 1817.8 | L114: 1733.85 | M114: 37.20115
A115: 106 | B115: INFRATEL | C115: 346.85 | D115: 348.12 | E115: 342.23 | F115: 337.62 | G115: 331.73 | H115: 352.73 | I115: 358.62 | J115: 363.23 | K115: 354 | L115: 343.5 | M115: 30.45857
A116: 107 | B116: INFY | C116: 1144.6 | D116: 1140.35 | E116: 1122.80 | F116: 1101.00 | G116: 1083.45 | H116: 1162.15 | I116: 1179.70 | J116: 1201.50 | K116: 1157.9 | L116: 1118.55 | M116: 65.02727
A117: 108 | B117: IOC | C117: 417.9 | D117: 416.83 | E117: 411.47 | F117: 405.03 | G117: 399.67 | H117: 423.27 | I117: 428.63 | J117: 435.07 | K117: 422.2 | L117: 410.4 | M117: 58.51539
A118: 109 | B118: IPCALAB | C118: 562.35 | D118: 566.38 | E118: 553.72 | F118: 545.08 | G118: 532.42 | H118: 575.02 | I118: 587.68 | J118: 596.32 | K118: 579.05 | L118: 557.75 | M118: 1.28721
A119: 110 | B119: IRB | C119: 243.15 | D119: 241.68 | E119: 235.67 | F119: 228.18 | G119: 222.17 | H119: 249.17 | I119: 255.18 | J119: 262.67 | K119: 247.7 | L119: 234.2 | M119: 28.54333
A120: 111 | B120: ITC | C120: 275.3 | D120: 277.67 | E120: 265.03 | F120: 254.77 | G120: 242.13 | H120: 287.93 | I120: 300.57 | J120: 310.83 | K120: 290.3 | L120: 267.4 | M120: 593.62154
A121: 112 | B121: JINDALSTEL | C121: 265.95 | D121: 263.63 | E121: 255.37 | F121: 244.78 | G121: 236.52 | H121: 274.22 | I121: 282.48 | J121: 293.07 | K121: 271.9 | L121: 253.05 | M121: 93.65791
A122: 113 | B122: JSWENERGY | C122: 87.35 | D122: 86.75 | E122: 83.90 | F122: 80.45 | G122: 77.60 | H122: 90.20 | I122: 93.05 | J122: 96.50 | K122: 89.6 | L122: 83.3 | M122: 38.87201
A123: 114 | B123: JSWSTEEL | C123: 302.65 | D123: 298.28 | E123: 289.77 | F123: 276.88 | G123: 268.37 | H123: 311.17 | I123: 319.68 | J123: 332.57 | K123: 306.8 | L123: 285.4 | M123: 80.31105
A124: 115 | B124: JUBILANT | C124: 919.85 | D124: 919.82 | E124: 900.63 | F124: 881.42 | G124: 862.23 | H124: 939.03 | I124: 958.22 | J124: 977.43 | K124: 939 | L124: 900.6 | M124: 7.71291
A125: 116 | B125: JUBLFOOD | C125: 2047.35 | D125: 2044.23 | E125: 1994.47 | F125: 1941.58 | G125: 1891.82 | H125: 2097.12 | I125: 2146.88 | J125: 2199.77 | K125: 2094 | L125: 1991.35 | M125: 10.86776
A126: 117 | B126: KARURVYSYA | C126: 114.2 | D126: 113.07 | E126: 111.13 | F126: 108.07 | G126: 106.13 | H126: 116.13 | I126: 118.07 | J126: 121.13 | K126: 115 | L126: 110 | M126: 25.36526
A127: 118 | B127: KOTAKBANK | C127: 1120.95 | D127: 1119.02 | E127: 1107.03 | F127: 1093.12 | G127: 1081.13 | H127: 1132.93 | I127: 1144.92 | J127: 1158.83 | K127: 1131 | L127: 1105.1 | M127: 38.56283
A128: 119 | B128: L&TFH | C128: 171.05 | D128: 171.63 | E128: 167.77 | F128: 164.48 | G128: 160.62 | H128: 174.92 | I128: 178.78 | J128: 182.07 | K128: 175.5 | L128: 168.35 | M128: 41.87437
A129: 120 | B129: LALPATHLAB | C129: 910.45 | D129: 908.82 | E129: 902.63 | F129: 894.82 | G129: 888.63 | H129: 916.63 | I129: 922.82 | J129: 930.63 | K129: 915 | L129: 901 | M129: 0.35347
A130: 121 | B130: LICHSGFIN | C130: 531.85 | D130: 534.60 | E130: 524.40 | F130: 516.95 | G130: 506.75 | H130: 542.05 | I130: 552.25 | J130: 559.70 | K130: 544.8 | L130: 527.15 | M130: 27.16764
A131: 122 | B131: LT | C131: 1455.6 | D131: 1443.60 | E131: 1417.20 | F131: 1378.80 | G131: 1352.40 | H131: 1482.00 | I131: 1508.40 | J131: 1546.80 | K131: 1470 | L131: 1405.2 | M131: 81.8773
A132: 123 | B132: LTTS | C132: 1311.8 | D132: 1285.85 | E132: 1242.70 | F132: 1173.60 | G132: 1130.45 | H132: 1354.95 | I132: 1398.10 | J132: 1467.20 | K132: 1329 | L132: 1216.75 | M132: 2.13461
A133: 124 | B133: LUPIN | C133: 860.4 | D133: 866.28 | E133: 846.32 | F133: 832.23 | G133: 812.27 | H133: 880.37 | I133: 900.33 | J133: 914.42 | K133: 886.25 | L133: 852.2 | M133: 18.34018
A134: 125 | B134: M&M | C134: 798.75 | D134: 788.10 | E134: 773.65 | F134: 748.55 | G134: 734.10 | H134: 813.20 | I134: 827.65 | J134: 852.75 | K134: 802.55 | L134: 763 | M134: 68.9606
A135: 126 | B135: M&MFIN | C135: 470.6 | D135: 466.35 | E135: 454.25 | F135: 437.90 | G135: 425.80 | H135: 482.70 | I135: 494.80 | J135: 511.15 | K135: 478.45 | L135: 450 | M135: 26.40468
A136: 127 | B136: MANAPPURAM | C136: 116.05 | D136: 114.82 | E136: 112.23 | F136: 108.42 | G136: 105.83 | H136: 118.63 | I136: 121.22 | J136: 125.03 | K136: 117.4 | L136: 111 | M136: 113.86994
A137: 128 | B137: MARICO | C137: 310.7 | D137: 309.75 | E137: 306.95 | F137: 303.20 | G137: 300.40 | H137: 313.50 | I137: 316.30 | J137: 320.05 | K137: 312.55 | L137: 306 | M137: 8.53132
A138: 129 | B138: MARUTI | C138: 9401.85 | D138: 9425.85 | E138: 9288.00 | F138: 9174.15 | G138: 9036.30 | H138: 9539.70 | I138: 9677.55 | J138: 9791.40 | K138: 9563.7 | L138: 9312 | M138: 5.50971
A139: 130 | B139: MCDOWELL-N | C139: 3302.8 | D139: 3280.30 | E139: 3173.00 | F139: 3043.20 | G139: 2935.90 | H139: 3410.10 | I139: 3517.40 | J139: 3647.20 | K139: 3387.6 | L139: 3150.5 | M139: 7.61358
A140: 131 | B140: MINDTREE | C140: 753.6 | D140: 755.88 | E140: 742.77 | F140: 731.93 | G140: 718.82 | H140: 766.72 | I140: 779.83 | J140: 790.67 | K140: 769 | L140: 745.05 | M140: 9.36
A141: 132 | B141: MOTHERSUMI | C141: 362.75 | D141: 363.25 | E141: 357.30 | F141: 351.85 | G141: 345.90 | H141: 368.70 | I141: 374.65 | J141: 380.10 | K141: 369.2 | L141: 357.8 | M141: 28.3238
A142: 133 | B142: MPHASIS | C142: 879.65 | D142: 884.13 | E142: 858.42 | F142: 837.18 | G142: 811.47 | H142: 905.37 | I142: 931.08 | J142: 952.32 | K142: 909.85 | L142: 862.9 | M142: 2.54028
A143: 134 | B143: MRF | C143: 71776.65 | D143: 70575.55 | E143: 68401.10 | F143: 65025.55 | G143: 62851.10 | H143: 73951.10 | I143: 76125.55 | J143: 79501.10 | K143: 72750 | L143: 67200 | M143: 0.29028
A144: 135 | B144: MUTHOOTFIN | C144: 437.4 | D144: 428.50 | E144: 417.05 | F144: 396.70 | G144: 385.25 | H144: 448.85 | I144: 460.30 | J144: 480.65 | K144: 439.95 | L144: 408.15 | M144: 16.78218
A145: 136 | B145: NATCOPHARM | C145: 944.15 | D145: 951.05 | E145: 928.10 | F145: 912.05 | G145: 889.10 | H145: 967.10 | I145: 990.05 | J145: 1006.10 | K145: 974 | L145: 935 | M145: 1.42812
A146: 137 | B146: NATIONALUM | C146: 74.6 | D146: 74.47 | E146: 73.03 | F146: 71.47 | G146: 70.03 | H146: 76.03 | I146: 77.47 | J146: 79.03 | K146: 75.9 | L146: 72.9 | M146: 58.31028
A147: 138 | B147: NAUKRI | C147: 1326.85 | D147: 1331.33 | E147: 1311.67 | F147: 1296.48 | G147: 1276.82 | H147: 1346.52 | I147: 1366.18 | J147: 1381.37 | K147: 1351 | L147: 1316.15 | M147: 0.6989
A148: 139 | B148: NBCC | C148: 228.85 | D148: 230.18 | E148: 224.67 | F148: 220.48 | G148: 214.97 | H148: 234.37 | I148: 239.88 | J148: 244.07 | K148: 235.7 | L148: 226 | M148: 42.82715
A149: 140 | B149: NHPC | C149: 29.15 | D149: 29.32 | E149: 28.83 | F149: 28.52 | G149: 28.03 | H149: 29.63 | I149: 30.12 | J149: 30.43 | K149: 29.8 | L149: 29 | M149: 74.69641
A150: 141 | B150: NMDC | C150: 141.7 | D150: 140.82 | E150: 137.93 | F150: 134.17 | G150: 131.28 | H150: 144.58 | I150: 147.47 | J150: 151.23 | K150: 143.7 | L150: 137.05 | M150: 43.39124
A151: 142 | B151: NTPC | C151: 169.05 | D151: 168.75 | E151: 167.70 | F151: 166.35 | G151: 165.30 | H151: 170.10 | I151: 171.15 | J151: 172.50 | K151: 169.8 | L151: 167.4 | M151: 91.87297
A152: 143 | B152: OBEROIRLTY | C152: 521.7 | D152: 520.08 | E152: 505.67 | F152: 489.63 | G152: 475.22 | H152: 536.12 | I152: 550.53 | J152: 566.57 | K152: 534.5 | L152: 504.05 | M152: 2.48924
A153: 144 | B153: OFSS | C153: 4207.95 | D153: 4203.10 | E153: 4165.00 | F153: 4122.05 | G153: 4083.95 | H153: 4246.05 | I153: 4284.15 | J153: 4327.10 | K153: 4241.2 | L153: 4160.15 | M153: 0.52194
A154: 145 | B154: OIL | C154: 357.9 | D154: 359.88 | E154: 353.77 | F154: 349.63 | G154: 343.52 | H154: 364.02 | I154: 370.13 | J154: 374.27 | K154: 366 | L154: 355.75 | M154: 6.59151
A155: 146 | B155: ONGC | C155: 194.9 | D155: 198.65 | E155: 190.25 | F155: 185.60 | G155: 177.20 | H155: 203.30 | I155: 211.70 | J155: 216.35 | K155: 207.05 | L155: 194 | M155: 100.15459
A156: 147 | B156: PAGEIND | C156: 21294.55 | D156: 21458.28 | E156: 20991.72 | F156: 20688.88 | G156: 20222.32 | H156: 21761.12 | I156: 22227.68 | J156: 22530.52 | K156: 21924.85 | L156: 21155.45 | M156: 0.17719
A157: 148 | B157: PCJEWELLER | C157: 484.3 | D157: 484.78 | E157: 470.72 | F157: 457.13 | G157: 443.07 | H157: 498.37 | I157: 512.43 | J157: 526.02 | K157: 498.85 | L157: 471.2 | M157: 61.99876
A158: 149 | B158: PEL | C158: 2749.15 | D158: 2742.90 | E158: 2705.80 | F158: 2662.45 | G158: 2625.35 | H158: 2786.25 | I158: 2823.35 | J158: 2866.70 | K158: 2780 | L158: 2699.55 | M158: 2.48875
A159: 150 | B159: PETRONET | C159: 252.1 | D159: 251.85 | E159: 248.25 | F159: 244.40 | G159: 240.80 | H159: 255.70 | I159: 259.30 | J159: 263.15 | K159: 255.45 | L159: 248 | M159: 33.58587
A160: 151 | B160: PFC | C160: 117 | D160: 117.10 | E160: 115.20 | F160: 113.40 | G160: 111.50 | H160: 118.90 | I160: 120.80 | J160: 122.60 | K160: 119 | L160: 115.3 | M160: 69.83235
A161: 152 | B161: PGHH | C161: 9259.25 | D161: 9244.75 | E161: 9194.50 | F161: 9129.75 | G161: 9079.50 | H161: 9309.50 | I161: 9359.75 | J161: 9424.50 | K161: 9295 | L161: 9180 | M161: 0.02157
A162: 153 | B162: PIDILITIND | C162: 899 | D162: 893.40 | E162: 877.80 | F162: 856.60 | G162: 841.00 | H162: 914.60 | I162: 930.20 | J162: 951.40 | K162: 909 | L162: 872.2 | M162: 9.70796
A163: 154 | B163: PIIND | C163: 913.5 | D163: 916.87 | E163: 893.73 | F163: 873.97 | G163: 850.83 | H163: 936.63 | I163: 959.77 | J163: 979.53 | K163: 940 | L163: 897.1 | M163: 2.38155
A164: 155 | B164: PNB | C164: 167.55 | D164: 169.38 | E164: 164.17 | F164: 160.78 | G164: 155.57 | H164: 172.77 | I164: 177.98 | J164: 181.37 | K164: 174.6 | L164: 166 | M164: 158.01115
A165: 156 | B165: POWERGRID | C165: 194.85 | D165: 193.00 | E165: 190.85 | F165: 186.85 | G165: 184.70 | H165: 197.00 | I165: 199.15 | J165: 203.15 | K165: 195.15 | L165: 189 | M165: 95.78382
A166: 157 | B166: PRESTIGE | C166: 327.05 | D166: 323.32 | E166: 317.73 | F166: 308.42 | G166: 302.83 | H166: 332.63 | I166: 338.22 | J166: 347.53 | K166: 328.9 | L166: 314 | M166: 4.63918
A167: 158 | B167: QUESS | C167: 1019.25 | D167: 1009.63 | E167: 981.27 | F167: 943.28 | G167: 914.92 | H167: 1047.62 | I167: 1075.98 | J167: 1113.97 | K167: 1038 | L167: 971.65 | M167: 8.60014
A168: 159 | B168: RAJESHEXPO | C168: 820.6 | D168: 820.72 | E168: 813.43 | F168: 806.27 | G168: 798.98 | H168: 827.88 | I168: 835.17 | J168: 842.33 | K168: 828 | L168: 813.55 | M168: 3.89756
A169: 160 | B169: RAMCOCEM | C169: 758.7 | D169: 754.43 | E169: 740.27 | F169: 721.83 | G169: 707.67 | H169: 772.87 | I169: 787.03 | J169: 805.47 | K169: 768.6 | L169: 736 | M169: 3.3045
A170: 161 | B170: RBLBANK | C170: 504.6 | D170: 502.85 | E170: 494.20 | F170: 483.80 | G170: 475.15 | H170: 513.25 | I170: 521.90 | J170: 532.30 | K170: 511.5 | L170: 492.45 | M170: 10.62229
A171: 162 | B171: RCOM | C171: 28.6 | D171: 28.97 | E171: 28.03 | F171: 27.47 | G171: 26.53 | H171: 29.53 | I171: 30.47 | J171: 31.03 | K171: 29.9 | L171: 28.4 | M171: 611.28408
A172: 163 | B172: RECLTD | C172: 153.45 | D172: 154.72 | E172: 150.73 | F172: 148.02 | G172: 144.03 | H172: 157.43 | I172: 161.42 | J172: 164.13 | K172: 158.7 | L172: 152 | M172: 60.96903
A173: 164 | B173: RELCAPITAL | C173: 486.2 | D173: 485.55 | E173: 467.10 | F173: 448.00 | G173: 429.55 | H173: 504.65 | I173: 523.10 | J173: 542.20 | K173: 504 | L173: 466.45 | M173: 52.87941
A174: 165 | B174: RELIANCE | C174: 943.85 | D174: 951.02 | E174: 929.43 | F174: 915.02 | G174: 893.43 | H174: 965.43 | I174: 987.02 | J174: 1001.43 | K174: 972.6 | L174: 936.6 | M174: 75.54587
A175: 166 | B175: RELINFRA | C175: 492.75 | D175: 492.27 | E175: 480.48 | F175: 468.22 | G175: 456.43 | H175: 504.53 | I175: 516.32 | J175: 528.58 | K175: 504.05 | L175: 480 | M175: 21.54522
A176: 167 | B176: RPOWER | C176: 44.2 | D176: 44.50 | E176: 42.75 | F176: 41.30 | G176: 39.55 | H176: 45.95 | I176: 47.70 | J176: 49.15 | K176: 46.25 | L176: 43.05 | M176: 120.462
A177: 168 | B177: SAIL | C177: 89.35 | D177: 88.80 | E177: 86.65 | F177: 83.95 | G177: 81.80 | H177: 91.50 | I177: 93.65 | J177: 96.35 | K177: 90.95 | L177: 86.1 | M177: 135.93547
A178: 169 | B178: SBIN | C178: 306.05 | D178: 309.48 | E178: 301.57 | F178: 297.08 | G178: 289.17 | H178: 313.97 | I178: 321.88 | J178: 326.37 | K178: 317.4 | L178: 305 | M178: 195.15991
A179: 170 | B179: SHREECEM | C179: 17453.05 | D179: 17397.40 | E179: 17239.85 | F179: 17026.65 | G179: 16869.10 | H179: 17610.60 | I179: 17768.15 | J179: 17981.35 | K179: 17554.95 | L179: 17184.2 | M179: 0.20836
A180: 171 | B180: SIEMENS | C180: 1323.75 | D180: 1308.35 | E180: 1280.70 | F180: 1237.65 | G180: 1210.00 | H180: 1351.40 | I180: 1379.05 | J180: 1422.10 | K180: 1336 | L180: 1265.3 | M180: 3.05415
A181: 172 | B181: SPARC | C181: 454.35 | D181: 452.98 | E181: 443.42 | F181: 432.48 | G181: 422.92 | H181: 463.92 | I181: 473.48 | J181: 484.42 | K181: 462.55 | L181: 442.05 | M181: 1.56685
A182: 173 | B182: SRF | C182: 1806.3 | D182: 1787.30 | E182: 1752.60 | F182: 1698.90 | G182: 1664.20 | H182: 1841.00 | I182: 1875.70 | J182: 1929.40 | K182: 1822 | L182: 1733.6 | M182: 1.41309
A183: 174 | B183: SRTRANSFIN | C183: 1380.05 | D183: 1388.43 | E183: 1354.87 | F183: 1329.68 | G183: 1296.12 | H183: 1413.62 | I183: 1447.18 | J183: 1472.37 | K183: 1422 | L183: 1363.25 | M183: 7.21851
A184: 175 | B184: STAR | C184: 746.65 | D184: 749.88 | E184: 731.77 | F184: 716.88 | G184: 698.77 | H184: 764.77 | I184: 782.88 | J184: 797.77 | K184: 768 | L184: 735 | M184: 4.94974
A185: 176 | B185: SUNPHARMA | C185: 554.3 | D185: 561.28 | E185: 542.57 | F185: 530.83 | G185: 512.12 | H185: 573.02 | I185: 591.73 | J185: 603.47 | K185: 580 | L185: 549.55 | M185: 87.89899
A186: 177 | B186: SUNTV | C186: 1012.4 | D186: 1006.07 | E186: 982.83 | F186: 953.27 | G186: 930.03 | H186: 1035.63 | I186: 1058.87 | J186: 1088.43 | K186: 1029.3 | L186: 976.5 | M186: 6.51336
A187: 178 | B187: SUZLON | C187: 14.6 | D187: 14.68 | E187: 14.27 | F187: 13.93 | G187: 13.52 | H187: 15.02 | I187: 15.43 | J187: 15.77 | K187: 15.1 | L187: 14.35 | M187: 388.19609
A188: 179 | B188: SYNDIBANK | C188: 69.35 | D188: 70.55 | E188: 67.85 | F188: 66.35 | G188: 63.65 | H188: 72.05 | I188: 74.75 | J188: 76.25 | K188: 73.25 | L188: 69.05 | M188: 60.54524
A189: 180 | B189: SYNGENE | C189: 598.4 | D189: 596.32 | E189: 592.58 | F189: 586.77 | G189: 583.03 | H189: 602.13 | I189: 605.87 | J189: 611.68 | K189: 600.05 | L189: 590.5 | M189: 0.40971
A190: 181 | B190: TATACHEM | C190: 718.95 | D190: 717.33 | E190: 708.67 | F190: 698.38 | G190: 689.72 | H190: 727.62 | I190: 736.28 | J190: 746.57 | K190: 726 | L190: 707.05 | M190: 11.58653
A191: 182 | B191: TATACOMM | C191: 623.1 | D191: 620.23 | E191: 609.62 | F191: 596.13 | G191: 585.52 | H191: 633.72 | I191: 644.33 | J191: 657.82 | K191: 630.85 | L191: 606.75 | M191: 5.495
A192: 183 | B192: TATAGLOBAL | C192: 288.35 | D192: 287.28 | E192: 279.67 | F192: 270.98 | G192: 263.37 | H192: 295.97 | I192: 303.58 | J192: 312.27 | K192: 294.9 | L192: 278.6 | M192: 45.93306
A193: 184 | B193: TATAMOTORS | C193: 393.65 | D193: 396.00 | E193: 388.20 | F193: 382.75 | G193: 374.95 | H193: 401.45 | I193: 409.25 | J193: 414.70 | K193: 403.8 | L193: 390.55 | M193: 72.59426
A194: 185 | B194: TATAMTRDVR | C194: 222.05 | D194: 222.27 | E194: 217.78 | F194: 213.52 | G194: 209.03 | H194: 226.53 | I194: 231.02 | J194: 235.28 | K194: 226.75 | L194: 218 | M194: 21.02467
A195: 186 | B195: TATAPOWER | C195: 89.7 | D195: 89.43 | E195: 88.02 | F195: 86.33 | G195: 84.92 | H195: 91.12 | I195: 92.53 | J195: 94.22 | K195: 90.85 | L195: 87.75 | M195: 90.55967
A196: 187 | B196: TATASTEEL | C196: 696.75 | D196: 697.03 | E196: 681.32 | F196: 665.88 | G196: 650.17 | H196: 712.47 | I196: 728.18 | J196: 743.62 | K196: 712.75 | L196: 681.6 | M196: 74.03931
A197: 188 | B197: TCS | C197: 3138.6 | D197: 3139.13 | E197: 3088.27 | F197: 3037.93 | G197: 2987.07 | H197: 3189.47 | I197: 3240.33 | J197: 3290.67 | K197: 3190 | L197: 3088.8 | M197: 12.00315
A198: 189 | B198: TECHM | C198: 611.05 | D198: 612.53 | E198: 605.57 | F198: 600.08 | G198: 593.12 | H198: 618.02 | I198: 624.98 | J198: 630.47 | K198: 619.5 | L198: 607.05 | M198: 24.79739
A199: 190 | B199: THERMAX | C199: 1284.1 | D199: 1276.00 | E199: 1242.20 | F199: 1200.30 | G199: 1166.50 | H199: 1317.90 | I199: 1351.70 | J199: 1393.60 | K199: 1309.8 | L199: 1234.1 | M199: 1.0818
A200: 191 | B200: TITAN | C200: 831 | D200: 840.95 | E200: 802.80 | F200: 774.60 | G200: 736.45 | H200: 869.15 | I200: 907.30 | J200: 935.50 | K200: 879.1 | L200: 812.75 | M200: 60.97492
A201: 192 | B201: TORNTPHARM | C201: 1354.9 | D201: 1358.27 | E201: 1341.63 | F201: 1328.37 | G201: 1311.73 | H201: 1371.53 | I201: 1388.17 | J201: 1401.43 | K201: 1374.9 | L201: 1345 | M201: 2.88717
A202: 193 | B202: TORNTPOWER | C202: 277.5 | D202: 278.73 | E202: 272.47 | F202: 267.43 | G202: 261.17 | H202: 283.77 | I202: 290.03 | J202: 295.07 | K202: 285 | L202: 273.7 | M202: 8.75146
A203: 194 | B203: TV18BRDCST | C203: 59.75 | D203: 60.18 | E203: 57.92 | F203: 56.08 | G203: 53.82 | H203: 62.02 | I203: 64.28 | J203: 66.12 | K203: 62.45 | L203: 58.35 | M203: 105.98484
A204: 195 | B204: TVSMOTOR | C204: 671.2 | D204: 678.80 | E204: 660.80 | F204: 650.40 | G204: 632.40 | H204: 689.20 | I204: 707.20 | J204: 717.60 | K204: 696.8 | L204: 668.4 | M204: 14.12636
A205: 196 | B205: UBL | C205: 1193.55 | D205: 1176.18 | E205: 1152.37 | F205: 1111.18 | G205: 1087.37 | H205: 1217.37 | I205: 1241.18 | J205: 1282.37 | K205: 1200 | L205: 1135 | M205: 4.32108
... 29 more rows

Sheet MidCap Intra
L5: Back To Main Page
A6: FOR INTRA DAY TRADING | K6: =Main!B10 -> 2018-02-02
A9: Sr.no | B9: Scrip | C9: CLOSE RATE | D9: Pivot Point | E9: Supports | H9: Resistances
C10: Point | E10: S1 | F10: S2 | G10: S3 | H10: R1 | I10: R2 | J10: R3 | K10: HIGH | L10: LOW | M10: Total Trade Quanity in Lakhs
A11: 1 | B11: 3MINDIA | C11: 19282.05 | D11: 19181.35 | E11: 18875.70 | F11: 18469.35 | G11: 18163.70 | H11: 19587.70 | I11: 19893.35 | J11: 20299.70 | K11: 19487 | L11: 18775 | M11: 0.02613
A12: 2 | B12: 8KMILES | C12: 718.15 | D12: 721.38 | E12: 698.77 | F12: 679.38 | G12: 656.77 | H12: 740.77 | I12: 763.38 | J12: 782.77 | K12: 744 | L12: 702 | M12: 1.64687
A13: 3 | B13: AARTIIND | C13: 1100.1 | D13: 1082.45 | E13: 1060.00 | F13: 1019.90 | G13: 997.45 | H13: 1122.55 | I13: 1145.00 | J13: 1185.10 | K13: 1104.9 | L13: 1042.35 | M13: 0.60307
A14: 4 | B14: ABAN | C14: 206.6 | D14: 208.03 | E14: 203.17 | F14: 199.73 | G14: 194.87 | H14: 211.47 | I14: 216.33 | J14: 219.77 | K14: 212.9 | L14: 204.6 | M14: 14.13772
A15: 5 | B15: ABB | C15: 1700.45 | D15: 1686.45 | E15: 1651.00 | F15: 1601.55 | G15: 1566.10 | H15: 1735.90 | I15: 1771.35 | J15: 1820.80 | K15: 1721.9 | L15: 1637 | M15: 2.00484
A16: 6 | B16: ABFRL | C16: 163.6 | D16: 162.57 | E16: 159.63 | F16: 155.67 | G16: 152.73 | H16: 166.53 | I16: 169.47 | J16: 173.43 | K16: 165.5 | L16: 158.6 | M16: 3.0368
A17: 7 | B17: ACC | C17: 1737 | D17: 1725.65 | E17: 1706.45 | F17: 1675.90 | G17: 1656.70 | H17: 1756.20 | I17: 1775.40 | J17: 1805.95 | K17: 1744.85 | L17: 1695.1 | M17: 3.00979
A18: 8 | B18: ADANIENT | C18: 214 | D18: 211.58 | E18: 206.12 | F18: 198.23 | G18: 192.77 | H18: 219.47 | I18: 224.93 | J18: 232.82 | K18: 217.05 | L18: 203.7 | M18: 49.05671
A19: 9 | B19: ADANIPORTS | C19: 428.75 | D19: 425.40 | E19: 417.80 | F19: 406.85 | G19: 399.25 | H19: 436.35 | I19: 443.95 | J19: 454.90 | K19: 433 | L19: 414.45 | M19: 16.81704
A20: 10 | B20: ADANIPOWER | C20: 36.75 | D20: 36.23 | E20: 35.22 | F20: 33.68 | G20: 32.67 | H20: 37.77 | I20: 38.78 | J20: 40.32 | K20: 37.25 | L20: 34.7 | M20: 109.04549
A21: 11 | B21: ADANITRANS | C21: 207.3 | D21: 208.57 | E21: 204.43 | F21: 201.57 | G21: 197.43 | H21: 211.43 | I21: 215.57 | J21: 218.43 | K21: 212.7 | L21: 205.7 | M21: 7.66441
A22: 12 | B22: ADVENZYMES | C22: 261.4 | D22: 263.10 | E22: 258.40 | F22: 255.40 | G22: 250.70 | H22: 266.10 | I22: 270.80 | J22: 273.80 | K22: 267.8 | L22: 260.1 | M22: 1.40606
A23: 13 | B23: AEGISCHEM | C23: 274.95 | D23: 267.68 | E23: 253.37 | F23: 231.78 | G23: 217.47 | H23: 289.27 | I23: 303.58 | J23: 325.17 | K23: 282 | L23: 246.1 | M23: 8.12492
A24: 14 | B24: AHLUCONT | C24: 353.6 | D24: 354.53 | E24: 349.07 | F24: 344.53 | G24: 339.07 | H24: 359.07 | I24: 364.53 | J24: 369.07 | K24: 360 | L24: 350 | M24: 0.1342
A25: 15 | B25: AIAENG | C25: 1500.6 | D25: 1506.92 | E25: 1473.68 | F25: 1446.77 | G25: 1413.53 | H25: 1533.83 | I25: 1567.07 | J25: 1593.98 | K25: 1540.15 | L25: 1480 | M25: 0.48541
A26: 16 | B26: AJANTPHARM | C26: 1403.4 | D26: 1406.65 | E26: 1348.30 | F26: 1293.20 | G26: 1234.85 | H26: 1461.75 | I26: 1520.10 | J26: 1575.20 | K26: 1465 | L26: 1351.55 | M26: 2.82193
A27: 17 | B27: AKZOINDIA | C27: 1836.25 | D27: 1832.62 | E27: 1815.28 | F27: 1794.32 | G27: 1776.98 | H27: 1853.58 | I27: 1870.92 | J27: 1891.88 | K27: 1849.95 | L27: 1811.65 | M27: 0.0956
A28: 18 | B28: ALBK | C28: 64.65 | D28: 65.20 | E28: 62.95 | F28: 61.25 | G28: 59.00 | H28: 66.90 | I28: 69.15 | J28: 70.85 | K28: 67.45 | L28: 63.5 | M28: 32.88181
A29: 19 | B29: ALKEM | C29: 2229.85 | D29: 2211.28 | E29: 2183.57 | F29: 2137.28 | G29: 2109.57 | H29: 2257.57 | I29: 2285.28 | J29: 2331.57 | K29: 2239 | L29: 2165 | M29: 0.11453
A30: 20 | B30: ALLCARGO | C30: 193.9 | D30: 193.17 | E30: 187.33 | F30: 180.77 | G30: 174.93 | H30: 199.73 | I30: 205.57 | J30: 212.13 | K30: 199 | L30: 186.6 | M30: 5.96198
A31: 21 | B31: AMARAJABAT | C31: 808.5 | D31: 808.17 | E31: 791.13 | F31: 773.77 | G31: 756.73 | H31: 825.53 | I31: 842.57 | J31: 859.93 | K31: 825.2 | L31: 790.8 | M31: 3.75014
A32: 22 | B32: AMBUJACEM | C32: 266.45 | D32: 265.62 | E32: 261.73 | F32: 257.02 | G32: 253.13 | H32: 270.33 | I32: 274.22 | J32: 278.93 | K32: 269.5 | L32: 260.9 | M32: 33.55964
A33: 23 | B33: ANANTRAJ | C33: 66.45 | D33: 66.90 | E33: 65.55 | F33: 64.65 | G33: 63.30 | H33: 67.80 | I33: 69.15 | J33: 70.05 | K33: 68.25 | L33: 66 | M33: 14.40628
A34: 24 | B34: ANDHRABANK | C34: 51.25 | D34: 51.62 | E34: 50.33 | F34: 49.42 | G34: 48.13 | H34: 52.53 | I34: 53.82 | J34: 54.73 | K34: 52.9 | L34: 50.7 | M34: 38.34591
A35: 25 | B35: APARINDS | C35: 742.55 | D35: 742.52 | E35: 730.03 | F35: 717.52 | G35: 705.03 | H35: 755.03 | I35: 767.52 | J35: 780.03 | K35: 755 | L35: 730 | M35: 0.19634
A36: 26 | B36: APLAPOLLO | C36: 2126.1 | D36: 2101.30 | E36: 2022.80 | F36: 1919.50 | G36: 1841.00 | H36: 2204.60 | I36: 2283.10 | J36: 2386.40 | K36: 2179.8 | L36: 1998 | M36: 1.41688
A37: 27 | B37: APLLTD | C37: 551.45 | D37: 557.02 | E37: 540.03 | F37: 528.62 | G37: 511.63 | H37: 568.43 | I37: 585.42 | J37: 596.83 | K37: 574 | L37: 545.6 | M37: 0.43746
A38: 28 | B38: APOLLOHOSP | C38: 1218.55 | D38: 1201.13 | E38: 1177.72 | F38: 1136.88 | G38: 1113.47 | H38: 1241.97 | I38: 1265.38 | J38: 1306.22 | K38: 1224.55 | L38: 1160.3 | M38: 10.36405
A39: 29 | B39: APOLLOTYRE | C39: 262.35 | D39: 259.75 | E39: 251.00 | F39: 239.65 | G39: 230.90 | H39: 271.10 | I39: 279.85 | J39: 291.20 | K39: 268.5 | L39: 248.4 | M39: 46.93162
A40: 30 | B40: ARVIND | C40: 406.1 | D40: 406.35 | E40: 396.40 | F40: 386.70 | G40: 376.75 | H40: 416.05 | I40: 426.00 | J40: 435.70 | K40: 416.3 | L40: 396.65 | M40: 21.01659
A41: 31 | B41: ASAHIINDIA | C41: 360 | D41: 358.62 | E41: 349.28 | F41: 338.57 | G41: 329.23 | H41: 369.33 | I41: 378.67 | J41: 389.38 | K41: 367.95 | L41: 347.9 | M41: 0.6361
A42: 32 | B42: ASHOKA | C42: 230 | D42: 230.02 | E42: 226.08 | F42: 222.17 | G42: 218.23 | H42: 233.93 | I42: 237.87 | J42: 241.78 | K42: 233.95 | L42: 226.1 | M42: 5.00813
A43: 33 | B43: ASHOKLEY | C43: 123.35 | D43: 122.20 | E43: 117.45 | F43: 111.55 | G43: 106.80 | H43: 128.10 | I43: 132.85 | J43: 138.75 | K43: 126.95 | L43: 116.3 | M43: 159.46691
A44: 34 | B44: ASIANPAINT | C44: 1153 | D44: 1145.45 | E44: 1133.55 | F44: 1114.10 | G44: 1102.20 | H44: 1164.90 | I44: 1176.80 | J44: 1196.25 | K44: 1157.35 | L44: 1126 | M44: 11.03162
A45: 35 | B45: ASTRAL | C45: 793.2 | D45: 798.83 | E45: 775.92 | F45: 758.63 | G45: 735.72 | H45: 816.12 | I45: 839.03 | J45: 856.32 | K45: 821.75 | L45: 781.55 | M45: 0.25183
A46: 36 | B46: ASTRAZEN | C46: 1150.3 | D46: 1144.43 | E46: 1128.87 | F46: 1107.43 | G46: 1091.87 | H46: 1165.87 | I46: 1181.43 | J46: 1202.87 | K46: 1160 | L46: 1123 | M46: 0.02178
A47: 37 | B47: ATUL | C47: 2721.05 | D47: 2720.37 | E47: 2666.73 | F47: 2612.42 | G47: 2558.78 | H47: 2774.68 | I47: 2828.32 | J47: 2882.63 | K47: 2774 | L47: 2666.05 | M47: 0.09434
A48: 38 | B48: AUROPHARMA | C48: 611.2 | D48: 615.85 | E48: 600.35 | F48: 589.50 | G48: 574.00 | H48: 626.70 | I48: 642.20 | J48: 653.05 | K48: 631.35 | L48: 605 | M48: 26.65368
A49: 39 | B49: AVANTIFEED | C49: 2400.55 | D49: 2393.98 | E49: 2242.97 | F49: 2085.38 | G49: 1934.37 | H49: 2551.57 | I49: 2702.58 | J49: 2860.17 | K49: 2545 | L49: 2236.4 | M49: 4.959
A50: 40 | B50: AXISBANK | C50: 592.8 | D50: 596.30 | E50: 582.60 | F50: 572.40 | G50: 558.70 | H50: 606.50 | I50: 620.20 | J50: 630.40 | K50: 610 | L50: 586.1 | M50: 78.39731
A51: 41 | B51: BAJAJ-AUTO | C51: 3412.95 | D51: 3374.72 | E51: 3328.23 | F51: 3243.52 | G51: 3197.03 | H51: 3459.43 | I51: 3505.92 | J51: 3590.63 | K51: 3421.2 | L51: 3290 | M51: 4.39064
A52: 42 | B52: BAJAJCORP | C52: 488.15 | D52: 487.42 | E52: 482.93 | F52: 477.72 | G52: 473.23 | H52: 492.63 | I52: 497.12 | J52: 502.33 | K52: 491.9 | L52: 482.2 | M52: 0.23025
A53: 43 | B53: BAJAJELEC | C53: 470.65 | D53: 479.68 | E53: 460.97 | F53: 451.28 | G53: 432.57 | H53: 489.37 | I53: 508.08 | J53: 517.77 | K53: 498.4 | L53: 470 | M53: 2.89734
A54: 44 | B54: BAJAJFINSV | C54: 5038.4 | D54: 4962.80 | E54: 4845.60 | F54: 4652.80 | G54: 4535.60 | H54: 5155.60 | I54: 5272.80 | J54: 5465.60 | K54: 5080 | L54: 4770 | M54: 3.50858
A55: 45 | B55: BAJAJHIND | C55: 13.95 | D55: 14.05 | E55: 13.75 | F55: 13.55 | G55: 13.25 | H55: 14.25 | I55: 14.55 | J55: 14.75 | K55: 14.35 | L55: 13.85 | M55: 25.05592
A56: 46 | B56: BAJAJHLDNG | C56: 2801.95 | D56: 2799.70 | E56: 2769.25 | F56: 2736.55 | G56: 2706.10 | H56: 2832.40 | I56: 2862.85 | J56: 2895.55 | K56: 2830.15 | L56: 2767 | M56: 0.1405
A57: 47 | B57: BAJFINANCE | C57: 1729.45 | D57: 1711.40 | E57: 1662.80 | F57: 1596.15 | G57: 1547.55 | H57: 1778.05 | I57: 1826.65 | J57: 1893.30 | K57: 1760 | L57: 1644.75 | M57: 19.39812
A58: 48 | B58: BALKRISIND | C58: 1131.15 | D58: 1128.90 | E58: 1106.10 | F58: 1081.05 | G58: 1058.25 | H58: 1153.95 | I58: 1176.75 | J58: 1201.80 | K58: 1151.7 | L58: 1103.85 | M58: 5.33285
A59: 49 | B59: BALLARPUR | C59: 15.25 | D59: 15.48 | E59: 14.82 | F59: 14.38 | G59: 13.72 | H59: 15.92 | I59: 16.58 | J59: 17.02 | K59: 16.15 | L59: 15.05 | M59: 11.88735
A60: 50 | B60: BALMLAWRIE | C60: 238.3 | D60: 239.10 | E60: 235.20 | F60: 232.10 | G60: 228.20 | H60: 242.20 | I60: 246.10 | J60: 249.20 | K60: 243 | L60: 236 | M60: 0.79413
A61: 51 | B61: BALRAMCHIN | C61: 118.4 | D61: 118.98 | E61: 115.52 | F61: 112.63 | G61: 109.17 | H61: 121.87 | I61: 125.33 | J61: 128.22 | K61: 122.45 | L61: 116.1 | M61: 15.19691
A62: 52 | B62: BANKBARODA | C62: 152.35 | D62: 154.23 | E62: 149.87 | F62: 147.38 | G62: 143.02 | H62: 156.72 | I62: 161.08 | J62: 163.57 | K62: 158.6 | L62: 151.75 | M62: 120.39264
A63: 53 | B63: BANKINDIA | C63: 153.5 | D63: 155.07 | E63: 151.18 | F63: 148.87 | G63: 144.98 | H63: 157.38 | I63: 161.27 | J63: 163.58 | K63: 158.95 | L63: 152.75 | M63: 37.354
A64: 54 | B64: BASF | C64: 2062.25 | D64: 2110.77 | E64: 1996.53 | F64: 1930.82 | G64: 1816.58 | H64: 2176.48 | I64: 2290.72 | J64: 2356.43 | K64: 2225 | L64: 2045.05 | M64: 0.40921
A65: 55 | B65: BATAINDIA | C65: 710.3 | D65: 707.63 | E65: 697.32 | F65: 684.33 | G65: 674.02 | H65: 720.62 | I65: 730.93 | J65: 743.92 | K65: 717.95 | L65: 694.65 | M65: 6.66174
A66: 56 | B66: BBTC | C66: 1419.65 | D66: 1409.58 | E66: 1371.17 | F66: 1322.68 | G66: 1284.27 | H66: 1458.07 | I66: 1496.48 | J66: 1544.97 | K66: 1448 | L66: 1361.1 | M66: 1.54166
A67: 57 | B67: BEL | C67: 161.55 | D67: 164.62 | E67: 158.03 | F67: 154.52 | G67: 147.93 | H67: 168.13 | I67: 174.72 | J67: 178.23 | K67: 171.2 | L67: 161.1 | M67: 137.87038
A68: 58 | B68: BEML | C68: 1455.75 | D68: 1461.32 | E68: 1427.63 | F68: 1399.52 | G68: 1365.83 | H68: 1489.43 | I68: 1523.12 | J68: 1551.23 | K68: 1495 | L68: 1433.2 | M68: 4.58769
A69: 59 | B69: BERGEPAINT | C69: 260.15 | D69: 257.28 | E69: 253.37 | F69: 246.58 | G69: 242.67 | H69: 264.07 | I69: 267.98 | J69: 274.77 | K69: 261.2 | L69: 250.5 | M69: 11.25258
A70: 60 | B70: BFUTILITIE | C70: 469 | D70: 471.25 | E70: 454.30 | F70: 439.60 | G70: 422.65 | H70: 485.95 | I70: 502.90 | J70: 517.60 | K70: 488.2 | L70: 456.55 | M70: 5.02332
A71: 61 | B71: BGRENERGY | C71: 131.65 | D71: 131.83 | E71: 129.67 | F71: 127.68 | G71: 125.52 | H71: 133.82 | I71: 135.98 | J71: 137.97 | K71: 134 | L71: 129.85 | M71: 0.58386
A72: 62 | B72: BHARATFIN | C72: 1066.75 | D72: 1062.33 | E72: 1043.22 | F72: 1019.68 | G72: 1000.57 | H72: 1085.87 | I72: 1104.98 | J72: 1128.52 | K72: 1081.45 | L72: 1038.8 | M72: 12.2204
A73: 63 | B73: BHARATFORG | C73: 724.45 | D73: 722.80 | E73: 713.60 | F73: 702.75 | G73: 693.55 | H73: 733.65 | I73: 742.85 | J73: 753.70 | K73: 732 | L73: 711.95 | M73: 8.31151
A74: 64 | B74: BHARTIARTL | C74: 438.4 | D74: 438.50 | E74: 430.00 | F74: 421.60 | G74: 413.10 | H74: 446.90 | I74: 455.40 | J74: 463.80 | K74: 447 | L74: 430.1 | M74: 72.97226
A75: 65 | B75: BHEL | C75: 100.35 | D75: 99.85 | E75: 97.65 | F75: 94.95 | G75: 92.75 | H75: 102.55 | I75: 104.75 | J75: 107.45 | K75: 102.05 | L75: 97.15 | M75: 105.2023
A76: 66 | B76: BHUSANSTL | C76: 50.1 | D76: 50.65 | E76: 48.65 | F76: 47.20 | G76: 45.20 | H76: 52.10 | I76: 54.10 | J76: 55.55 | K76: 52.65 | L76: 49.2 | M76: 44.57171
A77: 67 | B77: BIOCON | C77: 619.1 | D77: 616.52 | E77: 606.08 | F77: 593.07 | G77: 582.63 | H77: 629.53 | I77: 639.97 | J77: 652.98 | K77: 626.95 | L77: 603.5 | M77: 18.99153
A78: 68 | B78: BIRLACORPN | C78: 1187.1 | D78: 1172.10 | E78: 1135.00 | F78: 1082.90 | G78: 1045.80 | H78: 1224.20 | I78: 1261.30 | J78: 1313.40 | K78: 1209.2 | L78: 1120 | M78: 0.41322
A79: 69 | B79: BLISSGVS | C79: 205.5 | D79: 206.13 | E79: 204.27 | F79: 203.03 | G79: 201.17 | H79: 207.37 | I79: 209.23 | J79: 210.47 | K79: 208 | L79: 204.9 | M79: 5.13571
A80: 70 | B80: BLUEDART | C80: 4673.9 | D80: 4671.63 | E80: 4633.27 | F80: 4592.63 | G80: 4554.27 | H80: 4712.27 | I80: 4750.63 | J80: 4791.27 | K80: 4710 | L80: 4631 | M80: 0.02764
A81: 71 | B81: BLUESTARCO | C81: 731.55 | D81: 740.18 | E81: 716.37 | F81: 701.18 | G81: 677.37 | H81: 755.37 | I81: 779.18 | J81: 794.37 | K81: 764 | L81: 725 | M81: 0.75403
A82: 72 | B82: BOMDYEING | C82: 221.55 | D82: 220.18 | E82: 207.42 | F82: 193.28 | G82: 180.52 | H82: 234.32 | I82: 247.08 | J82: 261.22 | K82: 232.95 | L82: 206.05 | M82: 41.91036
A83: 73 | B83: BOSCHLTD | C83: 19517.85 | D83: 19478.95 | E83: 19338.90 | F83: 19159.95 | G83: 19019.90 | H83: 19657.90 | I83: 19797.95 | J83: 19976.90 | K83: 19619 | L83: 19300 | M83: 0.14331
A84: 74 | B84: BPCL | C84: 490.35 | D84: 488.57 | E84: 483.23 | F84: 476.12 | G84: 470.78 | H84: 495.68 | I84: 501.02 | J84: 508.13 | K84: 493.9 | L84: 481.45 | M84: 36.49443
A85: 75 | B85: BRITANNIA | C85: 4740.5 | D85: 4719.35 | E85: 4677.00 | F85: 4613.50 | G85: 4571.15 | H85: 4782.85 | I85: 4825.20 | J85: 4888.70 | K85: 4761.7 | L85: 4655.85 | M85: 1.48844
A86: 76 | B86: CADILAHC | C86: 417.65 | D86: 420.40 | E86: 412.25 | F86: 406.85 | G86: 398.70 | H86: 425.80 | I86: 433.95 | J86: 439.35 | K86: 428.55 | L86: 415 | M86: 13.18106
A87: 77 | B87: CANBK | C87: 329.9 | D87: 334.20 | E87: 324.40 | F87: 318.90 | G87: 309.10 | H87: 339.70 | I87: 349.50 | J87: 355.00 | K87: 344 | L87: 328.7 | M87: 32.11448
A88: 78 | B88: CANFINHOME | C88: 446.25 | D88: 449.25 | E88: 439.50 | F88: 432.75 | G88: 423.00 | H88: 456.00 | I88: 465.75 | J88: 472.50 | K88: 459 | L88: 442.5 | M88: 9.9183
A89: 79 | B89: CAPF | C89: 726.15 | D89: 729.72 | E89: 716.43 | F89: 706.72 | G89: 693.43 | H89: 739.43 | I89: 752.72 | J89: 762.43 | K89: 743 | L89: 720 | M89: 9.43976
A90: 80 | B90: CAPLIPOINT | C90: 571.8 | D90: 575.93 | E90: 550.87 | F90: 529.93 | G90: 504.87 | H90: 596.87 | I90: 621.93 | J90: 642.87 | K90: 601 | L90: 555 | M90: 0.84636
A91: 81 | B91: CARBORUNIV | C91: 376.45 | D91: 375.15 | E91: 368.30 | F91: 360.15 | G91: 353.30 | H91: 383.30 | I91: 390.15 | J91: 398.30 | K91: 382 | L91: 367 | M91: 0.60829
A92: 82 | B92: CARERATING | C92: 1361.75 | D92: 1361.87 | E92: 1349.88 | F92: 1338.02 | G92: 1326.03 | H92: 1373.73 | I92: 1385.72 | J92: 1397.58 | K92: 1373.85 | L92: 1350 | M92: 0.39444
A93: 83 | B93: CASTROLIND | C93: 183.75 | D93: 183.80 | E93: 180.60 | F93: 177.45 | G93: 174.25 | H93: 186.95 | I93: 190.15 | J93: 193.30 | K93: 187 | L93: 180.65 | M93: 19.37262
A94: 84 | B94: CCL | C94: 294.75 | D94: 291.87 | E94: 284.88 | F94: 275.02 | G94: 268.03 | H94: 301.73 | I94: 308.72 | J94: 318.58 | K94: 298.85 | L94: 282 | M94: 0.62027
A95: 85 | B95: CEATLTD | C95: 1884.95 | D95: 1847.98 | E95: 1793.97 | F95: 1702.98 | G95: 1648.97 | H95: 1938.97 | I95: 1992.98 | J95: 2083.97 | K95: 1902 | L95: 1757 | M95: 8.29657
A96: 86 | B96: CENTRALBK | C96: 72.7 | D96: 73.28 | E96: 71.97 | F96: 71.23 | G96: 69.92 | H96: 74.02 | I96: 75.33 | J96: 76.07 | K96: 74.6 | L96: 72.55 | M96: 2.87038
A97: 87 | B97: CENTURYPLY | C97: 322.9 | D97: 322.13 | E97: 314.77 | F97: 306.63 | G97: 299.27 | H97: 330.27 | I97: 337.63 | J97: 345.77 | K97: 329.5 | L97: 314 | M97: 1.8233
A98: 88 | B98: CENTURYTEX | C98: 1383.1 | D98: 1372.52 | E98: 1347.23 | F98: 1311.37 | G98: 1286.08 | H98: 1408.38 | I98: 1433.67 | J98: 1469.53 | K98: 1397.8 | L98: 1336.65 | M98: 7.91779
A99: 89 | B99: CERA | C99: 3436.75 | D99: 3452.58 | E99: 3379.17 | F99: 3321.58 | G99: 3248.17 | H99: 3510.17 | I99: 3583.58 | J99: 3641.17 | K99: 3526 | L99: 3395 | M99: 0.11853
A100: 90 | B100: CESC | C100: 1045.35 | D100: 1044.10 | E100: 1020.45 | F100: 995.55 | G100: 971.90 | H100: 1069.00 | I100: 1092.65 | J100: 1117.55 | K100: 1067.75 | L100: 1019.2 | M100: 5.32387
A101: 91 | B101: CGPOWER | C101: 91.45 | D101: 90.60 | E101: 88.80 | F101: 86.15 | G101: 84.35 | H101: 93.25 | I101: 95.05 | J101: 97.70 | K101: 92.4 | L101: 87.95 | M101: 40.10086
A102: 92 | B102: CHAMBLFERT | C102: 154.25 | D102: 157.22 | E102: 149.73 | F102: 145.22 | G102: 137.73 | H102: 161.73 | I102: 169.22 | J102: 173.73 | K102: 164.7 | L102: 152.7 | M102: 20.92165
A103: 93 | B103: CHENNPETRO | C103: 406.75 | D103: 409.53 | E103: 401.62 | F103: 396.48 | G103: 388.57 | H103: 414.67 | I103: 422.58 | J103: 427.72 | K103: 417.45 | L103: 404.4 | M103: 3.04561
A104: 94 | B104: CHOLAFIN | C104: 1334.8 | D104: 1320.18 | E104: 1300.72 | F104: 1266.63 | G104: 1247.17 | H104: 1354.27 | I104: 1373.73 | J104: 1407.82 | K104: 1339.65 | L104: 1286.1 | M104: 2.32788
A105: 95 | B105: CIPLA | C105: 587.05 | D105: 588.08 | E105: 579.17 | F105: 571.28 | G105: 562.37 | H105: 595.97 | I105: 604.88 | J105: 612.77 | K105: 597 | L105: 580.2 | M105: 10.50098
A106: 96 | B106: COALINDIA | C106: 295.6 | D106: 295.90 | E106: 290.65 | F106: 285.70 | G106: 280.45 | H106: 300.85 | I106: 306.10 | J106: 311.05 | K106: 301.15 | L106: 290.95 | M106: 45.33542
A107: 97 | B107: COFFEEDAY | C107: 326.35 | D107: 326.28 | E107: 316.07 | F107: 305.78 | G107: 295.57 | H107: 336.57 | I107: 346.78 | J107: 357.07 | K107: 336.5 | L107: 316 | M107: 5.16673
A108: 98 | B108: COLPAL | C108: 1130.45 | D108: 1126.20 | E108: 1117.25 | F108: 1104.05 | G108: 1095.10 | H108: 1139.40 | I108: 1148.35 | J108: 1161.55 | K108: 1135.15 | L108: 1113 | M108: 1.20516
A109: 99 | B109: CONCOR | C109: 1387.3 | D109: 1386.98 | E109: 1367.12 | F109: 1346.93 | G109: 1327.07 | H109: 1407.17 | I109: 1427.03 | J109: 1447.22 | K109: 1406.85 | L109: 1366.8 | M109: 4.19912
A110: 100 | B110: COROMANDEL | C110: 549 | D110: 547.85 | E110: 532.25 | F110: 515.50 | G110: 499.90 | H110: 564.60 | I110: 580.20 | J110: 596.95 | K110: 563.45 | L110: 531.1 | M110: 2.49101
A111: 101 | B111: CORPBANK | C111: 38.4 | D111: 38.52 | E111: 37.98 | F111: 37.57 | G111: 37.03 | H111: 38.93 | I111: 39.47 | J111: 39.88 | K111: 39.05 | L111: 38.1 | M111: 2.66833
A112: 102 | B112: COX&KINGS | C112: 243.6 | D112: 245.60 | E112: 237.30 | F112: 231.00 | G112: 222.70 | H112: 251.90 | I112: 260.20 | J112: 266.50 | K112: 253.9 | L112: 239.3 | M112: 0.88998
A113: 103 | B113: CRISIL | C113: 1978.5 | D113: 1962.13 | E113: 1940.37 | F113: 1902.23 | G113: 1880.47 | H113: 2000.27 | I113: 2022.03 | J113: 2060.17 | K113: 1983.9 | L113: 1924 | M113: 0.09284
A114: 104 | B114: CROMPTON | C114: 253.4 | D114: 255.62 | E114: 246.28 | F114: 239.17 | G114: 229.83 | H114: 262.73 | I114: 272.07 | J114: 279.18 | K114: 264.95 | L114: 248.5 | M114: 11.40961
A115: 105 | B115: CUB | C115: 161.3 | D115: 160.93 | E115: 158.37 | F115: 155.43 | G115: 152.87 | H115: 163.87 | I115: 166.43 | J115: 169.37 | K115: 163.5 | L115: 158 | M115: 17.29425
A116: 106 | B116: CUMMINSIND | C116: 903.05 | D116: 899.38 | E116: 889.87 | F116: 876.68 | G116: 867.17 | H116: 912.57 | I116: 922.08 | J116: 935.27 | K116: 908.9 | L116: 886.2 | M116: 4.11736
A117: 107 | B117: CYIENT | C117: 641.85 | D117: 638.77 | E117: 629.73 | F117: 617.62 | G117: 608.58 | H117: 650.88 | I117: 659.92 | J117: 672.03 | K117: 647.8 | L117: 626.65 | M117: 2.36991
A118: 108 | B118: DABUR | C118: 349.7 | D118: 352.35 | E118: 345.85 | F118: 342.00 | G118: 335.50 | H118: 356.20 | I118: 362.70 | J118: 366.55 | K118: 358.85 | L118: 348.5 | M118: 24.38075
A119: 109 | B119: DALMIABHA | C119: 2972 | D119: 2981.72 | E119: 2918.43 | F119: 2864.87 | G119: 2801.58 | H119: 3035.28 | I119: 3098.57 | J119: 3152.13 | K119: 3045 | L119: 2928.15 | M119: 2.15502
A120: 110 | B120: DBCORP | C120: 330 | D120: 329.50 | E120: 327.50 | F120: 325.00 | G120: 323.00 | H120: 332.00 | I120: 334.00 | J120: 336.50 | K120: 331.5 | L120: 327 | M120: 12.00474
A121: 111 | B121: DBL | C121: 960.55 | D121: 947.15 | E121: 924.55 | F121: 888.55 | G121: 865.95 | H121: 983.15 | I121: 1005.75 | J121: 1041.75 | K121: 969.75 | L121: 911.15 | M121: 5.60695
A122: 112 | B122: DBREALTY | C122: 61.95 | D122: 61.57 | E122: 58.98 | F122: 56.02 | G122: 53.43 | H122: 64.53 | I122: 67.12 | J122: 70.08 | K122: 64.15 | L122: 58.6 | M122: 11.5719
A123: 113 | B123: DCBBANK | C123: 175.7 | D123: 174.73 | E123: 172.32 | F123: 168.93 | G123: 166.52 | H123: 178.12 | I123: 180.53 | J123: 183.92 | K123: 177.15 | L123: 171.35 | M123: 10.01727
A124: 114 | B124: DCMSHRIRAM | C124: 575.2 | D124: 573.98 | E124: 549.02 | F124: 522.83 | G124: 497.87 | H124: 600.17 | I124: 625.13 | J124: 651.32 | K124: 598.95 | L124: 547.8 | M124: 3.0935
A125: 115 | B125: DEEPAKFERT | C125: 381.8 | D125: 391.27 | E125: 370.53 | F125: 359.27 | G125: 338.53 | H125: 402.53 | I125: 423.27 | J125: 434.53 | K125: 412 | L125: 380 | M125: 4.83352
A126: 116 | B126: DELTACORP | C126: 356.4 | D126: 354.07 | E126: 344.33 | F126: 332.27 | G126: 322.53 | H126: 366.13 | I126: 375.87 | J126: 387.93 | K126: 363.8 | L126: 342 | M126: 33.77701
A127: 117 | B127: DEN | C127: 106.75 | D127: 107.82 | E127: 104.03 | F127: 101.32 | G127: 97.53 | H127: 110.53 | I127: 114.32 | J127: 117.03 | K127: 111.6 | L127: 105.1 | M127: 3.74869
A128: 118 | B128: DENABANK | C128: 24.8 | D128: 24.95 | E128: 24.40 | F128: 24.00 | G128: 23.45 | H128: 25.35 | I128: 25.90 | J128: 26.30 | K128: 25.5 | L128: 24.55 | M128: 18.2241
A129: 119 | B129: DHANUKA | C129: 725.55 | D129: 740.03 | E129: 705.57 | F129: 685.58 | G129: 651.12 | H129: 760.02 | I129: 794.48 | J129: 814.47 | K129: 774.5 | L129: 720.05 | M129: 0.68433
A130: 120 | B130: DHFL | C130: 568.35 | D130: 576.13 | E130: 556.52 | F130: 544.68 | G130: 525.07 | H130: 587.97 | I130: 607.58 | J130: 619.42 | K130: 595.75 | L130: 564.3 | M130: 35.76004
A131: 121 | B131: DISHTV | C131: 77.35 | D131: 76.65 | E131: 74.40 | F131: 71.45 | G131: 69.20 | H131: 79.60 | I131: 81.85 | J131: 84.80 | K131: 78.9 | L131: 73.7 | M131: 69.41568
A132: 122 | B132: DIVISLAB | C132: 1043.8 | D132: 1041.63 | E132: 1024.67 | F132: 1005.53 | G132: 988.57 | H132: 1060.77 | I132: 1077.73 | J132: 1096.87 | K132: 1058.6 | L132: 1022.5 | M132: 7.63908
A133: 123 | B133: DLF | C133: 245 | D133: 245.13 | E133: 236.57 | F133: 228.13 | G133: 219.57 | H133: 253.57 | I133: 262.13 | J133: 270.57 | K133: 253.7 | L133: 236.7 | M133: 105.09963
A134: 124 | B134: DREDGECORP | C134: 730.95 | D134: 741.15 | E134: 707.10 | F134: 683.25 | G134: 649.20 | H134: 765.00 | I134: 799.05 | J134: 822.90 | K134: 775.2 | L134: 717.3 | M134: 8.01285
A135: 125 | B135: DRREDDY | C135: 2157.95 | D135: 2178.68 | E135: 2132.37 | F135: 2106.78 | G135: 2060.47 | H135: 2204.27 | I135: 2250.58 | J135: 2276.17 | K135: 2225 | L135: 2153.1 | M135: 9.68321
A136: 126 | B136: ECLERX | C136: 1558.45 | D136: 1540.68 | E136: 1517.87 | F136: 1477.28 | G136: 1454.47 | H136: 1581.27 | I136: 1604.08 | J136: 1644.67 | K136: 1563.5 | L136: 1500.1 | M136: 1.20364
A137: 127 | B137: EDELWEISS | C137: 281.6 | D137: 280.55 | E137: 272.50 | F137: 263.40 | G137: 255.35 | H137: 289.65 | I137: 297.70 | J137: 306.80 | K137: 288.6 | L137: 271.45 | M137: 28.27151
A138: 128 | B138: EICHERMOT | C138: 28047.35 | D138: 27687.28 | E138: 27074.57 | F138: 26101.78 | G138: 25489.07 | H138: 28660.07 | I138: 29272.78 | J138: 30245.57 | K138: 28300 | L138: 26714.5 | M138: 1.25564
A139: 129 | B139: EIDPARRY | C139: 327.35 | D139: 328.45 | E139: 322.90 | F139: 318.45 | G139: 312.90 | H139: 332.90 | I139: 338.45 | J139: 342.90 | K139: 334 | L139: 324 | M139: 0.83104
A140: 130 | B140: EIHOTEL | C140: 190.05 | D140: 192.00 | E140: 186.10 | F140: 182.15 | G140: 176.25 | H140: 195.95 | I140: 201.85 | J140: 205.80 | K140: 197.9 | L140: 188.05 | M140: 3.49522
A141: 131 | B141: EMAMILTD | C141: 1142.1 | D141: 1134.02 | E141: 1118.13 | F141: 1094.17 | G141: 1078.28 | H141: 1157.98 | I141: 1173.87 | J141: 1197.83 | K141: 1149.9 | L141: 1110.05 | M141: 1.31864
A142: 132 | B142: ENDURANCE | C142: 1200 | D142: 1203.32 | E142: 1176.68 | F142: 1153.37 | G142: 1126.73 | H142: 1226.63 | I142: 1253.27 | J142: 1276.58 | K142: 1229.95 | L142: 1180 | M142: 0.36977
A143: 133 | B143: ENGINERSIN | C143: 172.5 | D143: 173.83 | E143: 169.67 | F143: 166.83 | G143: 162.67 | H143: 176.67 | I143: 180.83 | J143: 183.67 | K143: 178 | L143: 171 | M143: 26.61235
A144: 134 | B144: EQUITAS | C144: 150.9 | D144: 149.70 | E144: 145.40 | F144: 139.90 | G144: 135.60 | H144: 155.20 | I144: 159.50 | J144: 165.00 | K144: 154 | L144: 144.2 | M144: 38.00116
A145: 135 | B145: EROSMEDIA | C145: 201.65 | D145: 201.92 | E145: 197.33 | F145: 193.02 | G145: 188.43 | H145: 206.23 | I145: 210.82 | J145: 215.13 | K145: 206.5 | L145: 197.6 | M145: 5.14063
A146: 136 | B146: ESCORTS | C146: 872.95 | D146: 856.50 | E146: 830.50 | F146: 788.05 | G146: 762.05 | H146: 898.95 | I146: 924.95 | J146: 967.40 | K146: 882.5 | L146: 814.05 | M146: 78.6236
A147: 137 | B147: ESSELPACK | C147: 286.75 | D147: 287.98 | E147: 282.77 | F147: 278.78 | G147: 273.57 | H147: 291.97 | I147: 297.18 | J147: 301.17 | K147: 293.2 | L147: 284 | M147: 0.30396
A148: 138 | B148: EVEREADY | C148: 414.3 | D148: 415.37 | E148: 409.23 | F148: 404.17 | G148: 398.03 | H148: 420.43 | I148: 426.57 | J148: 431.63 | K148: 421.5 | L148: 410.3 | M148: 0.96446
A149: 139 | B149: EXIDEIND | C149: 219.75 | D149: 220.28 | E149: 214.82 | F149: 209.88 | G149: 204.42 | H149: 225.22 | I149: 230.68 | J149: 235.62 | K149: 225.75 | L149: 215.35 | M149: 26.67975
A150: 140 | B150: FCONSUMER | C150: 63.5 | D150: 63.70 | E150: 62.20 | F150: 60.90 | G150: 59.40 | H150: 65.00 | I150: 66.50 | J150: 67.80 | K150: 65.2 | L150: 62.4 | M150: 56.59404
A151: 141 | B151: FDC | C151: 232.25 | D151: 231.65 | E151: 227.60 | F151: 222.95 | G151: 218.90 | H151: 236.30 | I151: 240.35 | J151: 245.00 | K151: 235.7 | L151: 227 | M151: 0.35954
A152: 142 | B152: FEDERALBNK | C152: 97.55 | D152: 98.72 | E152: 96.13 | F152: 94.72 | G152: 92.13 | H152: 100.13 | I152: 102.72 | J152: 104.13 | K152: 101.3 | L152: 97.3 | M152: 101.1037
A153: 143 | B153: FINCABLES | C153: 723.7 | D153: 722.17 | E153: 708.43 | F153: 693.17 | G153: 679.43 | H153: 737.43 | I153: 751.17 | J153: 766.43 | K153: 735.9 | L153: 706.9 | M153: 1.39385
A154: 144 | B154: FINPIPE | C154: 646.85 | D154: 652.55 | E154: 636.30 | F154: 625.75 | G154: 609.50 | H154: 663.10 | I154: 679.35 | J154: 689.90 | K154: 668.8 | L154: 642 | M154: 0.69989
A155: 145 | B155: FMGOETZE | C155: 536.2 | D155: 539.33 | E155: 531.87 | F155: 527.53 | G155: 520.07 | H155: 543.67 | I155: 551.13 | J155: 555.47 | K155: 546.8 | L155: 535 | M155: 0.01452
A156: 146 | B156: FORTIS | C156: 132.6 | D156: 131.58 | E156: 126.17 | F156: 119.73 | G156: 114.32 | H156: 138.02 | I156: 143.43 | J156: 149.87 | K156: 137 | L156: 125.15 | M156: 329.23073
A157: 147 | B157: FSL | C157: 41.05 | D157: 41.13 | E157: 39.92 | F157: 38.78 | G157: 37.57 | H157: 42.27 | I157: 43.48 | J157: 44.62 | K157: 42.35 | L157: 40 | M157: 32.06384
A158: 148 | B158: GAIL | C158: 486.25 | D158: 486.68 | E158: 477.57 | F158: 468.88 | G158: 459.77 | H158: 495.37 | I158: 504.48 | J158: 513.17 | K158: 495.8 | L158: 478 | M158: 46.1045
A159: 149 | B159: GATI | C159: 128.35 | D159: 129.58 | E159: 125.82 | F159: 123.28 | G159: 119.52 | H159: 132.12 | I159: 135.88 | J159: 138.42 | K159: 133.35 | L159: 127.05 | M159: 14.13504
A160: 150 | B160: GAYAPROJ
A161: 151 | B161: GDL | C161: 227.15 | D161: 228.40 | E161: 224.80 | F161: 222.45 | G161: 218.85 | H161: 230.75 | I161: 234.35 | J161: 236.70 | K161: 232 | L161: 226.05 | M161: 2.83443
A162: 152 | B162: GEPIL | C162: 922.85 | D162: 923.82 | E162: 877.63 | F162: 832.42 | G162: 786.23 | H162: 969.03 | I162: 1015.22 | J162: 1060.43 | K162: 970 | L162: 878.6 | M162: 1.43191
A163: 153 | B163: GESHIP | C163: 396.95 | D163: 397.98 | E163: 392.97 | F163: 388.98 | G163: 383.97 | H163: 401.97 | I163: 406.98 | J163: 410.97 | K163: 403 | L163: 394 | M163: 0.41019
A164: 154 | B164: GET&D | C164: 423.75 | D164: 429.28 | E164: 414.57 | F164: 405.38 | G164: 390.67 | H164: 438.47 | I164: 453.18 | J164: 462.37 | K164: 444 | L164: 420.1 | M164: 0.7812
A165: 155 | B165: GHCL | C165: 318.85 | D165: 316.28 | E165: 311.57 | F165: 304.28 | G165: 299.57 | H165: 323.57 | I165: 328.28 | J165: 335.57 | K165: 321 | L165: 309 | M165: 7.66224
A166: 156 | B166: GILLETTE | C166: 6550.85 | D166: 6550.60 | E166: 6451.25 | F166: 6351.65 | G166: 6252.30 | H166: 6650.20 | I166: 6749.55 | J166: 6849.15 | K166: 6649.95 | L166: 6451 | M166: 0.09304
A167: 157 | B167: GLAXO | C167: 2459.15 | D167: 2453.08 | E167: 2441.17 | F167: 2423.18 | G167: 2411.27 | H167: 2471.07 | I167: 2482.98 | J167: 2500.97 | K167: 2465 | L167: 2435.1 | M167: 0.08351
A168: 158 | B168: GLENMARK | C168: 588.15 | D168: 592.73 | E168: 576.47 | F168: 564.78 | G168: 548.52 | H168: 604.42 | I168: 620.68 | J168: 632.37 | K168: 609 | L168: 581.05 | M168: 7.80428
A169: 159 | B169: GMDCLTD | C169: 146.6 | D169: 146.83 | E169: 144.77 | F169: 142.93 | G169: 140.87 | H169: 148.67 | I169: 150.73 | J169: 152.57 | K169: 148.9 | L169: 145 | M169: 2.21986
A170: 160 | B170: GMRINFRA | C170: 22.75 | D170: 22.57 | E170: 21.23 | F170: 19.72 | G170: 18.38 | H170: 24.08 | I170: 25.42 | J170: 26.93 | K170: 23.9 | L170: 21.05 | M170: 1045.02685
A171: 161 | B171: GNFC | C171: 467.3 | D171: 475.23 | E171: 455.67 | F171: 444.03 | G171: 424.47 | H171: 486.87 | I171: 506.43 | J171: 518.07 | K171: 494.8 | L171: 463.6 | M171: 17.18854
A172: 162 | B172: GODFRYPHLP | C172: 926 | D172: 937.10 | E172: 890.20 | F172: 854.40 | G172: 807.50 | H172: 972.90 | I172: 1019.80 | J172: 1055.60 | K172: 984 | L172: 901.3 | M172: 3.25535
A173: 163 | B173: GODREJCP | C173: 1053.3 | D173: 1051.05 | E173: 1039.30 | F173: 1025.30 | G173: 1013.55 | H173: 1065.05 | I173: 1076.80 | J173: 1090.80 | K173: 1062.8 | L173: 1037.05 | M173: 5.50552
A174: 164 | B174: GODREJIND | C174: 611.55 | D174: 611.58 | E174: 604.32 | F174: 597.08 | G174: 589.82 | H174: 618.82 | I174: 626.08 | J174: 633.32 | K174: 618.85 | L174: 604.35 | M174: 4.78158
A175: 165 | B175: GODREJPROP | C175: 807.45 | D175: 805.62 | E175: 787.83 | F175: 768.22 | G175: 750.43 | H175: 825.23 | I175: 843.02 | J175: 862.63 | K175: 823.4 | L175: 786 | M175: 3.03427
A176: 166 | B176: GPPL | C176: 142.25 | D176: 143.42 | E176: 138.93 | F176: 135.62 | G176: 131.13 | H176: 146.73 | I176: 151.22 | J176: 154.53 | K176: 147.9 | L176: 140.1 | M176: 1.81999
A177: 167 | B177: GRANULES | C177: 127.55 | D177: 128.52 | E177: 124.83 | F177: 122.12 | G177: 118.43 | H177: 131.23 | I177: 134.92 | J177: 137.63 | K177: 132.2 | L177: 125.8 | M177: 24.95024
A178: 168 | B178: GRASIM | C178: 1188.9 | D178: 1173.87 | E178: 1148.63 | F178: 1108.37 | G178: 1083.13 | H178: 1214.13 | I178: 1239.37 | J178: 1279.63 | K178: 1199.1 | L178: 1133.6 | M178: 9.36996
A179: 169 | B179: GREAVESCOT | C179: 138.75 | D179: 138.42 | E179: 135.43 | F179: 132.12 | G179: 129.13 | H179: 141.73 | I179: 144.72 | J179: 148.03 | K179: 141.4 | L179: 135.1 | M179: 7.49744
A180: 170 | B180: GREENPLY | C180: 339.45 | D180: 341.82 | E180: 333.63 | F180: 327.82 | G180: 319.63 | H180: 347.63 | I180: 355.82 | J180: 361.63 | K180: 350 | L180: 336 | M180: 0.45925
A181: 171 | B181: GRINDWELL | C181: 512 | D181: 513.50 | E181: 508.55 | F181: 505.10 | G181: 500.15 | H181: 516.95 | I181: 521.90 | J181: 525.35 | K181: 518.45 | L181: 510.05 | M181: 0.07363
A182: 172 | B182: GRUH | C182: 576.5 | D182: 579.58 | E182: 569.17 | F182: 561.83 | G182: 551.42 | H182: 586.92 | I182: 597.33 | J182: 604.67 | K182: 590 | L182: 572.25 | M182: 3.72279
A183: 173 | B183: GSFC | C183: 140.1 | D183: 142.35 | E183: 134.50 | F183: 128.90 | G183: 121.05 | H183: 147.95 | I183: 155.80 | J183: 161.40 | K183: 150.2 | L183: 136.75 | M183: 47.80246
A184: 174 | B184: GSKCONS | C184: 6716.8 | D184: 6723.93 | E184: 6647.87 | F184: 6578.93 | G184: 6502.87 | H184: 6792.87 | I184: 6868.93 | J184: 6937.87 | K184: 6800 | L184: 6655 | M184: 0.08517
A185: 175 | B185: GSPL | C185: 200.4 | D185: 200.53 | E185: 197.57 | F185: 194.73 | G185: 191.77 | H185: 203.37 | I185: 206.33 | J185: 209.17 | K185: 203.5 | L185: 197.7 | M185: 3.17328
A186: 176 | B186: GUJALKALI | C186: 753.45 | D186: 747.90 | E186: 738.65 | F186: 723.85 | G186: 714.60 | H186: 762.70 | I186: 771.95 | J186: 786.75 | K186: 757.15 | L186: 733.1 | M186: 1.30134
A187: 177 | B187: GUJFLUORO | C187: 819.55 | D187: 819.73 | E187: 803.07 | F187: 786.58 | G187: 769.92 | H187: 836.22 | I187: 852.88 | J187: 869.37 | K187: 836.4 | L187: 803.25 | M187: 0.2603
A188: 178 | B188: GUJGASLTD | C188: 845.4 | D188: 848.13 | E188: 837.27 | F188: 829.13 | G188: 818.27 | H188: 856.27 | I188: 867.13 | J188: 875.27 | K188: 859 | L188: 840 | M188: 0.11365
A189: 179 | B189: GULFOILLUB | C189: 904.1 | D189: 901.67 | E189: 893.43 | F189: 882.77 | G189: 874.53 | H189: 912.33 | I189: 920.57 | J189: 931.23 | K189: 909.9 | L189: 891 | M189: 0.08452
A190: 180 | B190: HATHWAY | C190: 38.1 | D190: 38.73 | E190: 37.07 | F190: 36.03 | G190: 34.37 | H190: 39.77 | I190: 41.43 | J190: 42.47 | K190: 40.4 | L190: 37.7 | M190: 8.28838
A191: 181 | B191: HAVELLS | C191: 525.4 | D191: 523.10 | E191: 513.50 | F191: 501.60 | G191: 492.00 | H191: 535.00 | I191: 544.60 | J191: 556.50 | K191: 532.7 | L191: 511.2 | M191: 17.27081
A192: 182 | B192: HCC | C192: 39.45 | D192: 39.65 | E192: 38.30 | F192: 37.15 | G192: 35.80 | H192: 40.80 | I192: 42.15 | J192: 43.30 | K192: 41 | L192: 38.5 | M192: 199.37914
A193: 183 | B193: HCL-INSYS | C193: 57.1 | D193: 56.47 | E193: 54.73 | F193: 52.37 | G193: 50.63 | H193: 58.83 | I193: 60.57 | J193: 62.93 | K193: 58.2 | L193: 54.1 | M193: 51.4973
A194: 184 | B194: HCLTECH | C194: 984.9 | D194: 989.62 | E194: 964.28 | F194: 943.67 | G194: 918.33 | H194: 1010.23 | I194: 1035.57 | J194: 1056.18 | K194: 1014.95 | L194: 969 | M194: 15.27829
A195: 185 | B195: HDFC | C195: 1967.55 | D195: 1958.22 | E195: 1941.13 | F195: 1914.72 | G195: 1897.63 | H195: 1984.63 | I195: 2001.72 | J195: 2028.13 | K195: 1975.3 | L195: 1931.8 | M195: 38.38192
A196: 186 | B196: HDFCBANK | C196: 1991.15 | D196: 1997.15 | E196: 1979.30 | F196: 1967.45 | G196: 1949.60 | H196: 2009.00 | I196: 2026.85 | J196: 2038.70 | K196: 2015 | L196: 1985.3 | M196: 16.30355
A197: 187 | B197: HDIL | C197: 56.65 | D197: 57.18 | E197: 55.27 | F197: 53.88 | G197: 51.97 | H197: 58.57 | I197: 60.48 | J197: 61.87 | K197: 59.1 | L197: 55.8 | M197: 134.31374
A198: 188 | B198: HEIDELBERG | C198: 160 | D198: 158.03 | E198: 153.67 | F198: 147.33 | G198: 142.97 | H198: 164.37 | I198: 168.73 | J198: 175.07 | K198: 162.4 | L198: 151.7 | M198: 2.05277
A199: 189 | B199: HEROMOTOCO | C199: 3732.95 | D199: 3723.15 | E199: 3702.30 | F199: 3671.65 | G199: 3650.80 | H199: 3753.80 | I199: 3774.65 | J199: 3805.30 | K199: 3744 | L199: 3692.5 | M199: 3.46581
A200: 190 | B200: HEXAWARE | C200: 379.4 | D200: 379.52 | E200: 373.83 | F200: 368.27 | G200: 362.58 | H200: 385.08 | I200: 390.77 | J200: 396.33 | K200: 385.2 | L200: 373.95 | M200: 9.58966
A201: 191 | B201: HFCL | C201: 29.45 | D201: 29.47 | E201: 28.48 | F201: 27.52 | G201: 26.53 | H201: 30.43 | I201: 31.42 | J201: 32.38 | K201: 30.45 | L201: 28.5 | M201: 91.65494
A202: 192 | B202: HIMATSEIDE | C202: 346.9 | D202: 349.27 | E202: 341.63 | F202: 336.37 | G202: 328.73 | H202: 354.53 | I202: 362.17 | J202: 367.43 | K202: 356.9 | L202: 344 | M202: 0.7196
A203: 193 | B203: HINDALCO | C203: 256.25 | D203: 254.83 | E203: 250.17 | F203: 244.08 | G203: 239.42 | H203: 260.92 | I203: 265.58 | J203: 271.67 | K203: 259.5 | L203: 248.75 | M203: 89.40788
A204: 194 | B204: HINDCOPPER | C204: 80.15 | D204: 80.88 | E204: 77.77 | F204: 75.38 | G204: 72.27 | H204: 83.27 | I204: 86.38 | J204: 88.77 | K204: 84 | L204: 78.5 | M204: 43.65717
A205: 195 | B205: HINDPETRO | C205: 392.35 | D205: 397.45 | E205: 385.10 | F205: 377.85 | G205: 365.50 | H205: 404.70 | I205: 417.05 | J205: 424.30 | K205: 409.8 | L205: 390.2 | M205: 49.27698
A206: 196 | B206: HINDUNILVR | C206: 1371.25 | D206: 1369.02 | E206: 1353.23 | F206: 1335.22 | G206: 1319.43 | H206: 1387.03 | I206: 1402.82 | J206: 1420.83 | K206: 1384.8 | L206: 1351 | M206: 15.63429
... 294 more rows

Sheet Bulk Deals
E6: Back To Main Page
A7: Subject : | B7: BULK DEAL | D7: =Main!B10 -> 2018-02-02
A9: Date | B9: Scrip code | C9: Scrip Name | D9: Client Name | E9: Buy / Sell | F9: Quantity Traded | G9: Trade Price / Wt.Avg.trade price | H9: Exchange
A10: 2018-02-01 | B10: 540697 | C10: AMFL | D10: PINALBEN R. SHAH | E10: SELL | F10: 152,000 | G10: 22.76 | H10: BSE
A11: 2018-02-01 | B11: 540697 | C11: AMFL | D11: VIVIDOFFSET PRINTERS PRIVATELIMITED | E11: SELL | F11: 496,000 | G11: 22.8 | H11: BSE
A12: 2018-02-01 | B12: 540697 | C12: AMFL | D12: SAGAR RAJESHBHAI JHAVERI | E12: BUY | F12: 520,000 | G12: 22.74 | H12: BSE
A13: 2018-02-01 | B13: 538716 | C13: ARYACAPM | D13: NIDHI BANSAL | E13: BUY | F13: 70,000 | G13: 25 | H13: BSE
A14: 2018-02-01 | B14: 538716 | C14: ARYACAPM | D14: NAMRATA SAJANKUMAR BAJAJ | E14: SELL | F14: 70,000 | G14: 25 | H14: BSE
A15: 2018-02-01 | B15: 538716 | C15: ARYACAPM | D15: NAMRATA SAJANKUMAR BAJAJ | E15: BUY | F15: 30,000 | G15: 24.8 | H15: BSE
A16: 2018-02-01 | B16: 540361 | C16: DANUBE | D16: RAVIKUMAR SUDHIRKUMAR MAHETA | E16: SELL | F16: 100,000 | G16: 4.07 | H16: BSE
A17: 2018-02-01 | B17: 540361 | C17: DANUBE | D17: S N SHAH (HUF) | E17: BUY | F17: 279,000 | G17: 4.07 | H17: BSE
A18: 2018-02-01 | B18: 540361 | C18: DANUBE | D18: RENUKABEN CHANDRAKANT SHAH | E18: SELL | F18: 100,000 | G18: 4.07 | H18: BSE
A19: 2018-02-01 | B19: 540361 | C19: DANUBE | D19: ASHKA DHVANIT SHAH | E19: SELL | F19: 50,000 | G19: 4.07 | H19: BSE
A20: 2018-02-01 | B20: 539770 | C20: DARJEELING | D20: PALLAVIBEN SHASHIKANT KAPADIA | E20: SELL | F20: 20,000 | G20: 15.83 | H20: BSE
A21: 2018-02-01 | B21: 538653 | C21: EML | D21: MAYUR MAHESHKUMAR PANCHAL | E21: SELL | F21: 286,903 | G21: 73.2 | H21: BSE
A22: 2018-02-01 | B22: 538653 | C22: EML | D22: MAYUR MAHESHKUMAR PANCHAL | E22: BUY | F22: 286,903 | G22: 73.15 | H22: BSE
A23: 2018-02-01 | B23: 538653 | C23: EML | D23: BHAVISHYA ECOMMERCE PRIVATE LIMITED . | E23: SELL | F23: 155,000 | G23: 73.15 | H23: BSE
A24: 2018-02-01 | B24: 538653 | C24: EML | D24: BP FINTRADE PRIVATE LIMITED | E24: SELL | F24: 75,020 | G24: 73.19 | H24: BSE
A25: 2018-02-01 | B25: 538653 | C25: EML | D25: BP FINTRADE PRIVATE LIMITED | E25: BUY | F25: 70,020 | G25: 73.2 | H25: BSE
A26: 2018-02-01 | B26: 514474 | C26: FAIRDSY | D26: GUINEA SECURITIES AND FINANCIALS PRIVATE LIMITED | E26: SELL | F26: 50,000 | G26: 42.5 | H26: BSE
A27: 2018-02-01 | B27: 540267 | C27: FLORACORP | D27: BP COMTRADE PVT LTD | E27: BUY | F27: 60,990 | G27: 11.08 | H27: BSE
A28: 2018-02-01 | B28: 539169 | C28: FUNNY | D28: WAVE MERCANTILE PRIVATE LIMITED | E28: SELL | F28: 397,297 | G28: 9.32 | H28: BSE
A29: 2018-02-01 | B29: 539169 | C29: FUNNY | D29: NINJA HEALTHCARE LIMITED | E29: SELL | F29: 173,100 | G29: 9.28 | H29: BSE
A30: 2018-02-01 | B30: 539169 | C30: FUNNY | D30: DHANLAXMI BUILDERS AND DEVELOPERS PRIVATE LIMITED | E30: SELL | F30: 109,057 | G30: 9.39 | H30: BSE
A31: 2018-02-01 | B31: 539169 | C31: FUNNY | D31: DHANLAXMI BUILDERS AND DEVELOPERS PRIVATE LIMITED | E31: BUY | F31: 176,419 | G31: 9.36 | H31: BSE
A32: 2018-02-01 | B32: 530005 | C32: INDIACEM | D32: ERROR ACCOUNT HDFC SECURITIES LTD | E32: SELL | F32: 1,974,000 | G32: 165.49 | H32: BSE
A33: 2018-02-01 | B33: 530005 | C33: INDIACEM | D33: ERROR ACCOUNT HDFC SECURITIES LTD | E33: BUY | F33: 1,974,000 | G33: 165.52 | H33: BSE
A34: 2018-02-01 | B34: 513693 | C34: KAJARIR | D34: MANPHOOL EXPORTS LIMITED | E34: BUY | F34: 45,000 | G34: 221.09 | H34: BSE
A35: 2018-02-01 | B35: 539679 | C35: KAPILRAJ | D35: AJAY DHIRAJLAL NATHWANI | E35: SELL | F35: 190,267 | G35: 41.48 | H35: BSE
A36: 2018-02-01 | B36: 539679 | C36: KAPILRAJ | D36: AJAY DHIRAJLAL NATHWANI | E36: BUY | F36: 191,887 | G36: 39.39 | H36: BSE
A37: 2018-02-01 | B37: 539679 | C37: KAPILRAJ | D37: AKRAM DUSHANI | E37: SELL | F37: 42,128 | G37: 43.5 | H37: BSE
A38: 2018-02-01 | B38: 539679 | C38: KAPILRAJ | D38: AKRAM DUSHANI | E38: BUY | F38: 42,128 | G38: 43.56 | H38: BSE
A39: 2018-02-01 | B39: 539679 | C39: KAPILRAJ | D39: DEEPAK PARSHARAM SALVI | E39: SELL | F39: 65,135 | G39: 39.2 | H39: BSE
A40: 2018-02-01 | B40: 539679 | C40: KAPILRAJ | D40: SHETH BROTHER | E40: SELL | F40: 33,978 | G40: 41.84 | H40: BSE
A41: 2018-02-01 | B41: 539679 | C41: KAPILRAJ | D41: SHETH BROTHER | E41: BUY | F41: 33,978 | G41: 41.51 | H41: BSE
A42: 2018-02-01 | B42: 539679 | C42: KAPILRAJ | D42: VIDHI PARAG SHAH | E42: SELL | F42: 35,000 | G42: 35 | H42: BSE
A43: 2018-02-01 | B43: 539679 | C43: KAPILRAJ | D43: VIJAY AMOLACHAND CHOPDA | E43: BUY | F43: 26,500 | G43: 46.69 | H43: BSE
A44: 2018-02-01 | B44: 539679 | C44: KAPILRAJ | D44: BP FINTRADE PRIVATE LIMITED | E44: SELL | F44: 49,088 | G44: 43.02 | H44: BSE
A45: 2018-02-01 | B45: 539679 | C45: KAPILRAJ | D45: BP FINTRADE PRIVATE LIMITED | E45: BUY | F45: 41,588 | G45: 39.9 | H45: BSE
A46: 2018-02-01 | B46: 540698 | C46: NEL | D46: SUNIYOJIT MERCHANTS PRIVATE LIMITED | E46: SELL | F46: 92,000 | G46: 8.5 | H46: BSE
A47: 2018-02-01 | B47: 540698 | C47: NEL | D47: BRIJ MOHAN GUPTA | E47: SELL | F47: 96,000 | G47: 8.5 | H47: BSE
A48: 2018-02-01 | B48: 540698 | C48: NEL | D48: AMIT RAJENDRA PRASAD AGARWAL | E48: BUY | F48: 112,000 | G48: 8.5 | H48: BSE
A49: 2018-02-01 | B49: 540796 | C49: RATNABHUMI | D49: ARYAMAN BROKING LIMITED | E49: SELL | F49: 144,000 | G49: 32.5 | H49: BSE
A50: 2018-02-01 | B50: 533569 | C50: SRSLTD | D50: PARAMI INVESTMENTS PVT. LTD. | E50: SELL | F50: 1,794,200 | G50: 1.3 | H50: BSE
A51: 2018-02-01 | B51: 532070 | C51: SUPRBPA | D51: KRUPALI SHAH | E51: BUY | F51: 30,000 | G51: 30 | H51: BSE
A52: 2018-02-01 | B52: 526365 | C52: SWARNSAR | D52: SHEELA SUNIL KOTHARI | E52: BUY | F52: 118,000 | G52: 21.25 | H52: BSE
A53: 2018-02-01 | B53: 540108 | C53: TAHL | D53: MAMTA S SHANBHAG | E53: SELL | F53: 30,169 | G53: 18.54 | H53: BSE
A54: 2018-02-01 | B54: 540108 | C54: TAHL | D54: MAMTA S SHANBHAG | E54: BUY | F54: 14,992 | G54: 18.34 | H54: BSE
A55: 2018-02-01 | B55: 540108 | C55: TAHL | D55: RESHMA B DEMBLA | E55: SELL | F55: 22,689 | G55: 18.5 | H55: BSE
A56: 2018-02-01 | B56: 540108 | C56: TAHL | D56: SHOAIB S KHAN | E56: SELL | F56: 13,012 | G56: 18.34 | H56: BSE
A57: 2018-02-01 | B57: 540108 | C57: TAHL | D57: SHOAIB S KHAN | E57: BUY | F57: 29,440 | G57: 18.38 | H57: BSE
A58: 2018-02-01 | B58: 540726 | C58: TTFL | D58: MIKER FINANCIAL CONSULTANTS PRIVATE LIMITED | E58: BUY | F58: 52,000 | G58: 85.31 | H58: BSE
A59: 2018-02-01 | B59: 540726 | C59: TTFL | D59: SHOBHA BRIJMOHAN AGARWAL | E59: SELL | F59: 44,000 | G59: 85 | H59: BSE
A60: 2018-02-01 | B60: 534976 | C60: VMART | D60: CITIGROUP GLOBAL MARKETS MAURITIUS PRIVATE LIMITED | E60: SELL | F60: 105,873 | G60: 1515 | H60: BSE
A61: 2018-02-01 | B61: 534976 | C61: VMART | D61: BOTTOM BILLION FUND | E61: BUY | F61: 105,873 | G61: 1515 | H61: BSE
A62: 2018-02-01 | B62: JALAN | C62: Jalan Transolu. India Ltd | D62: RELIABLE PROPERTIES | E62: BUY | F62: 75,000 | G62: 60 | H62: NSE
A63: 2018-02-01 | B63: JISLJALEQS | C63: Jain Irrigation Systems L | D63: CROSSLAND TRADING CO | E63: BUY | F63: 2,808,229 | G63: 134.14 | H63: NSE
A64: 2018-02-01 | B64: JISLJALEQS | C64: Jain Irrigation Systems L | D64: SOCIETE GENERALE | E64: BUY | F64: 3,096,442 | G64: 135.01 | H64: NSE
A65: 2018-02-01 | B65: MAHASTEEL | C65: Mahamaya Steel Inds Ltd | D65: KULIN SHANTILAL VORA | E65: BUY | F65: 85,000 | G65: 85 | H65: NSE
A66: 2018-02-01 | B66: MAHASTEEL | C66: Mahamaya Steel Inds Ltd | D66: SAMIR THAKKAR | E66: BUY | F66: 8,938 | G66: 96.64 | H66: NSE
A67: 2018-02-01 | B67: FORTIS | C67: Fortis Healthcare Limited | D67: SOCIETE GENERALE | E67: SELL | F67: 3,456,616 | G67: 130.26 | H67: NSE
A68: 2018-02-01 | B68: JALAN | C68: Jalan Transolu. India Ltd | D68: ALOK KUMAR | E68: SELL | F68: 105,000 | G68: 60.19 | H68: NSE
A69: 2018-02-01 | B69: JALAN | C69: Jalan Transolu. India Ltd | D69: SHIKHAR GUPTA | E69: SELL | F69: 105,000 | G69: 60.17 | H69: NSE
A70: 2018-02-01 | B70: JISLJALEQS | C70: Jain Irrigation Systems L | D70: CROSSLAND TRADING CO | E70: SELL | F70: 2,808,229 | G70: 134.32 | H70: NSE
A71: 2018-02-01 | B71: MAHASTEEL | C71: Mahamaya Steel Inds Ltd | D71: ACESTAR INFOSOLUTIONS PVT LTD | E71: SELL | F71: 150,000 | G71: 85.16 | H71: NSE
A72: 2018-02-01 | B72: MAHASTEEL | C72: Mahamaya Steel Inds Ltd | D72: SAMIR THAKKAR | E72: SELL | F72: 79,385 | G72: 91.33 | H72: NSE

Sheet Call Tracker (Equity & F&O)
N5: Back To Main Page
A6: Retail Research Technical Calls & Fundamental Performance Report for the month of February -2018
N7: =Main!B10 -> 2018-02-02
B8: Positional Call
A9: Sr.no | B9: Date | D9: Company | E9: Rec | F9: Rec Price | G9: Stop Loss*** | H9: Call Closed At | I9: Target | J9: Remark | L9: Profit / Loss per Share | M9: Gain / Loss % | N9: Status | O9: Closed Date | P9: NSE Closed Price
A10: 1 | B10: 2017-12-21 | D10: M&M | E10: Sell | F10: 750 | G10: 825 | I10: 600 | J10: Open | P10: =VLOOKUP(D10,Sheet2!$A$1:M2036,6,0) -> 798.75 | S10: P
A11: 2 | B11: 2018-01-11 | D11: SUNPHARMA | E11: Buy | F11: 593.5 | G11: 560 | H11: 557.5 | I11: 650 | J11: Loss of Rs.36/- | L11: =H11-F11-K11 -> -36.00 | M11: =L11/F11 -> -6.07% | N11: Unsuccessful | O11: 2018-02-01 | S11: R
A12: 3 | B12: 2018-01-12 | D12: GRANULES | E12: Buy$ | F12: =(145.5+133.5)/2 -> 139.5 | G12: 131 | H12: 131 | I12: 160-162 | J12: Loss of Rs.8.5/- | L12: =H12-F12-K12 -> -8.50 | M12: =L12/F12 -> -6.09% | N12: Unsuccessful | O12: 2018-02-01 | S12: H
A13: 4 | B13: 2018-01-16 | D13: PIDILITIND | E13: Buy | F13: 905-908 | G13: 880 | I13: 965 | J13: Open | P13: =VLOOKUP(D13,Sheet2!$A$1:M2071,6,0) -> 899 | S13: R
A14: 5 | B14: 2018-01-18 | D14: AUROPHARMA | E14: Buy | F14: 660.5 | G14: 634 | H14: 626 | I14: 720-730 | J14: Loss of Rs.34.5/- | L14: =H14-F14-K14 -> -34.50 | M14: =L14/F14 -> -5.22% | N14: Unsuccessful | O14: 2018-02-01 | S14: H
A15: 6 | B15: 2018-01-19 | D15: ENGINERSIN | E15: Buy | F15: 179-181 | G15: 170.5 | I15: 195-200 | J15: Open | P15: =VLOOKUP(D15,Sheet2!$A$1:M2077,6,0) -> 172.5 | S15: H
A16: 7 | B16: 2018-01-22 | D16: LT | E16: Sell | F16: 1381.5 | G16: 1444 | H16: 1455 | I16: 1250 | J16: Loss of Rs.73.5/- | L16: =F16-H16 -> -73.5 | M16: -5.32% | N16: Unsuccessful | O16: 2018-02-01 | S16: R
A17: 8 | B17: 2018-01-23 | D17: ADANIPORTS | E17: Sell | F17: 435 | G17: 455 | H17: 417.5 | I17: 390 | J17: Profit of Rs.17.5/- | L17: =F17-H17 -> 17.5 | M17: =L17/F17 -> 4.02% | N17: Successful | O17: 2018-02-01 | S17: R
A18: 9 | B18: 2018-01-30 | D18: CESC | E18: Buy | F18: 1062-1072 | G18: 1020 | I18: 1140 | J18: Open | P18: =VLOOKUP(D18,Sheet2!$A$1:M2082,6,0) -> 1045.35 | S18: R
A19: 10 | B19: 2018-01-30 | D19: TATAMOTORS | E19: Buy | F19: 399-402 | G19: 385 | I19: 430-440 | J19: Open | P19: =VLOOKUP(D19,Sheet2!$A$1:M2083,6,0) -> 393.65 | S19: H
A22: CLBS = Closing Basis *** | F22: Reinitiated $
A23: Dividend adjusted <> | F23: Revised stoploss #
A25: Master Trade High Risk
A26: Sr.no | B26: Date | D26: Company | E26: Rec | F26: Rec Price | G26: Stop Loss | H26: Call Closed At | I26: Target | J26: Remark | L26: Profit / Loss per share | M26: Gain / Loss per Lot | N26: Lot | O26: Status | P26: Closed Date
A27: 1 | B27: 2018-02-01 | D27: NIFTY FEB FUT | E27: Sell | F27: 11110 | G27: 11230 | H27: 11025 | I27: 10900 | J27: Profit of Rs.85/- | L27: =F27-H27 -> 85.00 | M27: =L27*N27 -> 6375 | N27: 75 | O27: Successful | P27: 2018-02-01 | S27: H
A33: Master Trade Medium Risk
A34: Sr.no | B34: Date | D34: Company | E34: Rec | F34: Rec Price | G34: Stop Loss | H34: Call Closed At | I34: Target | J34: Remark | L34: Profit/Loss per lot | M34: Gain / Loss per Lot | N34: Lot | O34: Status | P34: Closed Date
A35: 1 | B35: 2018-01-31 | D35: NIFTY FEB 10900 PE | E35: Buy | F35: 105-107 | I35: 350 | J35: Open | S35: A
D36: NIFTY FEB 11300 CE | E36: Buy | F36: 65-67
B43: Smart Delivery Trade
A44: Sr.no | B44: Date | D44: Company | E44: Rec | F44: Rec Price | G44: Stop Loss*** | H44: Call Closed At | I44: Target | J44: Remark | L44: Profit / Loss per Share | M44: Gain / Loss % | N44: Status | O44: Closed Date | P44: NSE Closed Price
A45: 1 | B45: 2018-01-01 | D45: BRITANNIA | E45: Buy | F45: 4740-4760 | G45: 4610 | I45: 4980-5000 | J45: Open | P45: =VLOOKUP(D45,Sheet2!$A$1:M2077,6,0) -> 4740.5 | S45: R
A46: 2 | B46: 2018-01-17 | D46: BATAINDIA | E46: Buy | F46: 725-727 | G46: 704 | I46: 770 | J46: Open | P46: =VLOOKUP(D46,Sheet2!$A$1:M2089,6,0) -> 710.3 | S46: R
A47: 3 | B47: 2018-01-30 | D47: MCDOWELL-N | E47: Buy | F47: 3302.5 | G47: 3200 | H47: 3200 | I47: 3500 | J47: Loss of Rs.102.5/- | L47: =H47-F47-K47 -> -102.50 | M47: =L47/F47 -> -3.10% | N47: Unsuccessful | O47: 2018-02-01 | S47: R
A52: CLBS = Closing Basis *** | F52: Reinitiated $
A53: Dividend adjusted <> | F53: Revised stoploss #
A56: Techno -Funda (positional)
A57: Sr.no | B57: Date | D57: Company | E57: Rec | F57: Rec Price | G57: Stop Loss*** | H57: Call Closed At | I57: Target | J57: Remark | L57: Profit / Loss per Share | M57: Gain / Loss % | N57: Status | O57: Closed Date | P57: NSE Closed Price
A59: CLBS = Closing Basis *** | F59: Reinitiated $
A60: Dividend adjusted <> | F60: Revised stoploss #
B64: Momentum Call
A65: Sr.no | B65: Date | D65: Company | E65: Rec | F65: Rec Price | G65: Stop Loss | H65: Call Closed At | I65: Target | J65: Remark | L65: Profit / Loss per Share/Lot | M65: Gain / Loss % | N65: Gain / Loss per Lot | O65: Lot | P65: Status | Q65: Closed Date | R65: NSE Closed Price
A66: 1 | B66: 2018-01-31 | D66: BOMDYEING | E66: Buy | F66: 232.5 | G66: 225 | H66: 218 | I66: 250 | J66: Loss of Rs.14.5/- | L66: =H66-F66-K66 -> -14.50 | M66: =L66/F66 -> -6.24% | P66: Unsuccessful | Q66: 2018-02-01 | S66: R
A68: CLBS = Closing Basis *** | F68: Reinitiated $
A69: Dividend adjusted <> | F69: Revised stoploss #
B73: Quick Pick Intraday
A74: Sr.no | B74: Date | D74: Company | E74: Rec | F74: Rec Price | G74: Stop Loss*** | H74: Call Closed At | I74: Target | J74: Remark | L74: Profit / Loss per Share | M74: Gain / Loss % | N74: Status | O74: Closed Date
B82: Investment Idea
A83: Sr.no | B83: Date | D83: Company | E83: Rec | F83: Rec Price | G83: Point of Review | H83: Close Rate | I83: Target | J83: Remark | L83: Profit / Loss per Share | M83: Gain / Loss % | N83: Status | O83: Closed Date
A84: 1 | B84: 2013-11-01 | D84: L&T Finance Holding | E84: Accu | F84: 82.00 | G84: - | H84: 100 | I84: 100.00 | J84: Target Achieved | L84: =H84-F84-K84 -> 18.00 | M84: =L84/F84 -> 21.95% | N84: Successful | O84: 2016-10-14
A85: 2 | B85: 2014-06-04 | D85: Finolex Inds | E85: Buy | F85: 257.00 | G85: - | H85: 300 | I85: 300.00 | J85: Target Achieved | L85: 43.00 | M85: 16.73% | N85: Successful | O85: 2014-07-02
A86: =1+A85 -> 3 | B86: 2014-07-08 | D86: JK Cement | E86: Buy | F86: 393.00 | G86: - | H86: 468 | I86: 468.00 | J86: Target Achieved | L86: 75.00 | M86: 19.08% | N86: Successful | O86: 2014-08-12
A87: 4 | B87: 2014-08-06 | D87: Finolex Cables | E87: Buy | F87: 205.00 | G87: - | H87: 275 | I87: 250.00 | J87: Target Achieved | L87: 70.00 | M87: 34.15% | N87: Successful | O87: 2014-11-19
A88: 5 | B88: 2014-09-04 | D88: Exide Inds | E88: Buy | F88: 162.00 | G88: - | H88: 190 | I88: 190.00 | J88: Target Achieved | L88: 28.00 | M88: 17.28% | N88: Successful | O88: 2015-01-02
A89: 6 | B89: 2014-09-04 | D89: Deepak Nitrite | E89: Buy | F89: 75.00 | G89: - | H89: 91.5 | I89: 95-100 | J89: Profit of Rs.16.50/- | L89: 16.50 | M89: 22.00% | N89: Successful | O89: 2014-11-11
A90: 7 | B90: 2014-10-01 | D90: Mercks | E90: Buy | F90: 850.00 | G90: - | H90: 982.5 | I90: 1050.00 | J90: Profit of Rs.132.50/- | L90: 132.50 | M90: 15.59% | N90: Successful | O90: 2015-02-04
A91: 8 | B91: 2014-10-01 | D91: Grindwell Norton | E91: Buy | F91: 475.00 | G91: - | H91: 515 | I91: 600.00 | J91: Profit of Rs.40/- | L91: 40.00 | M91: 8.42% | N91: Successful | O91: 2014-10-27
A92: 9 | B92: 2014-10-01 | D92: Snowman Logistics | E92: Buy | F92: 86.00 | G92: - | H92: 99 | I92: 140.00 | J92: Profit of Rs.13.00/- | L92: 13.00 | M92: 15.12% | N92: Successful | O92: 2014-10-27
A93: 10 | B93: 2014-10-14 | D93: Birla Corp | E93: Buy | F93: 496.60 | G93: - | H93: 621 | I93: 580.00 | J93: Target Achieved | L93: 124.40 | M93: 25.05% | N93: Successful | O93: 2016-08-23
A94: 11 | B94: 2014-10-14 | D94: Ultratech Cem | E94: Buy | F94: 2481.90 | G94: - | H94: 2840 | I94: 2870.00 | J94: Profit of Rs.358.10/- | L94: 358.10 | M94: 14.43% | N94: Successful | O94: 2015-01-13
A95: =1+A92 -> 10 | B95: 2014-10-16 | D95: Sintex Inds | E95: Buy | F95: 84.50 | G95: - | H95: 93 | I95: 110.00 | J95: Profit of Rs.8.50/- | L95: 8.50 | M95: 10.06% | N95: Successful | O95: 2014-10-27
A96: =1+A95 -> 11 | B96: 2014-10-16 | D96: HSIL | E96: Buy | F96: 401.00 | G96: - | H96: 428 | I96: 450.00 | J96: Profit of Rs.27.00/- | L96: 27.00 | M96: 6.73% | N96: Successful | O96: 2015-01-16
A97: 12 | B97: 2014-10-16 | D97: Eveready Inds | E97: Buy | F97: 101.00 | G97: - | H97: 112 | I97: 120.00 | J97: Profit of Rs.11.00/- | L97: 11.00 | M97: 10.89% | N97: Successful | O97: 2014-10-27
A98: 13 | B98: 2014-11-11 | D98: Pennar Inds | E98: Buy | F98: 59.00 | G98: - | H98: 76 | I98: 76.00 | J98: Target Achieved | L98: 17.00 | M98: 28.81% | N98: Successful | O98: 2017-10-24
A99: 14 | B99: 2014-11-11 | D99: Snowman Logistics | E99: Buy | F99: 99.00 | G99: - | H99: 120 | I99: 120.00 | J99: Profit of Rs.21/- | L99: 21.00 | M99: 21.21% | N99: Successful | O99: 2014-11-17
A100: 15 | B100: 2014-11-13 | D100: Dharamsi Morarji Chem | E100: Buy | F100: 22.00 | G100: - | H100: 33.55 | I100: 32.00 | J100: Profit of Rs 11.55/- | L100: 11.55 | M100: 52.50% | N100: Successful | O100: 2015-07-03
A101: 16 | B101: 2014-12-03 | D101: Tatachem | E101: Buy | F101: 440.00 | G101: - | H101: 520 | I101: 520.00 | J101: Profit of Rs 80.00/- | L101: 80.00 | M101: 18.18% | N101: Successful | O101: 2015-07-23
A102: 17 | B102: 2014-12-03 | D102: Advanta | E102: Buy | F102: 360.00 | G102: - | H102: 427 | I102: 425.00 | J102: Profit of Rs.67.00/- | L102: 67.00 | M102: 18.61% | N102: Successful | O102: 2015-02-23
A103: 18 | B103: 2015-01-08 | D103: GDL | E103: Buy | F103: 360.00 | G103: - | H103: 455 | I103: 420.00 | J103: Profit of Rs.95.00/- | L103: 95.00 | M103: 26.39% | N103: Successful | O103: 2015-01-20
A104: 19 | B104: 2015-01-08 | D104: NRB Bearing | E104: Buy | F104: 130.00 | H104: 175.5 | I104: 165.00 | J104: Profit of Rs 45.50/- | L104: 45.50 | M104: 35.00% | N104: Successful | O104: 2017-12-19
A105: 20 | B105: 2015-02-05 | D105: GSFC | E105: Accu | F105: 98.00 | H105: 120 | I105: 120.00 | J105: Target Achieved | L105: 22.00 | M105: 22.45% | N105: Successful | O105: 2017-01-18
A106: 21 | B106: 2015-02-05 | D106: Sundrmfast | E106: Accu | F106: 196.00 | H106: 262 | I106: 255.00 | J106: Target Achieved | L106: 66.00 | M106: 33.67% | N106: Successful | O106: 2016-08-17
A107: 22 | B107: 2015-03-04 | D107: GPPL | E107: Accu | F107: 230-240 | I107: 280-285 | J107: Open
A108: 23 | B108: 2015-03-04 | D108: ORIENTCEM | E108: Accu | F108: 185.00 | H108: 224 | I108: 220-225 | J108: Target Achieved | L108: =H108-F108-K108 -> 39.00 | M108: =L108/F108 -> 21.08% | N108: Successful | O108: 2016-10-04
A109: 24 | B109: 2015-03-27 | D109: PFS | E109: Accu | F109: 49-50 | I109: 67.00 | J109: Open
A110: 25 | B110: 2015-03-30 | D110: Walchandnagar Ind Ltd | E110: Accu | F110: 183.50 | H110: 219 | I110: 218.00 | J110: Profit of Rs.35.50/- | L110: =H110-F110-K110 -> 35.50 | M110: =L110/F110 -> 19.35% | N110: Successful | O110: 2015-04-09
A111: 26 | B111: 2015-04-20 | D111: Kalpataru Power Transmission Ltd | E111: Accu | F111: =(227+237)/2 -> 232.00 | H111: 298 | I111: 298.00 | J111: Target Achieved | L111: 66.00 | M111: 28.45% | N111: Successful | O111: 2017-03-29
A112: 27 | B112: 2015-05-04 | D112: Mastek Ltd | E112: Buy | F112: 385.00 | H112: =212.5+331 -> 543.5 | I112: 510.00 | J112: Profit of Rs 158.50/- | L112: 158.50 | M112: 41.17% | N112: Successful | O112: 2015-08-19
A113: 28 | B113: 2015-05-04 | D113: Suprajit Eng | E113: Buy | F113: 115.50 | H113: 146 | I113: 142.00 | J113: Profit of Rs 30.50/- | L113: 30.50 | M113: 26.41% | N113: Successful | O113: 2015-07-17
A114: 29 | B114: 2015-05-27 | D114: TCI | E114: Buy | F114: 237.50 | H114: 279.5 | I114: 278.00 | J114: Target Achieved | L114: 42.00 | M114: 17.68% | N114: Successful | O114: 2015-08-06
A115: 30 | B115: 2015-06-19 | D115: HSIL | E115: Accu | F115: 340.00 | H115: 448 | I115: 448.00 | J115: Target Achieved | L115: 108.00 | M115: 31.76% | N115: Successful | O115: 2017-10-10
A116: 31 | B116: 2015-07-06 | D116: Capital First | E116: Accu | F116: 390.00 | H116: 460 | I116: 460.00 | J116: Target Achieved | L116: 70.00 | M116: 17.95% | N116: Successful | O116: 2016-04-18
A117: 32 | B117: 2015-07-10 | D117: Dolphin OffShore | E117: Accu | F117: 118-127 | I117: 172.00 | J117: Open
A118: 33 | B118: 2015-08-03 | D118: Allcargo logistics | E118: Accu | F118: 297.50 | H118: 350 | I118: 360.00 | J118: Profit of Rs 52.50/- | L118: =H118-F118-K118 -> 52.50 | M118: =L118/F118 -> 17.65% | N118: Successful | O118: 2015-08-16
A119: 34 | B119: 2015-08-03 | D119: Camline Fine | E119: Accu | F119: 115.50 | H119: 149 | I119: 140.00 | J119: Profit of Rs 33.50/- | L119: 33.50 | M119: 29.00% | N119: Successful | O119: 2017-01-05
A120: 35 | B120: 2015-09-04 | D120: TCI | E120: Accu | F120: 226.00 | H120: 292 | I120: 292.00 | J120: Target Achieved | L120: 66.00 | M120: 29.20% | N120: Successful | O120: 2015-10-09
A121: 36 | B121: 2015-09-07 | D121: Kalpataru Power Transmission Ltd | E121: Accu | F121: 232.50 | H121: 312.5 | I121: 310.00 | J121: Target Achieved | L121: 80.00 | M121: 34.41% | N121: Successful | O121: 2017-03-29
A122: 37 | B122: 2015-09-21 | D122: LLOYD ELECTRIC & ENG LTD | E122: Accu | F122: 196.50 | H122: 238 | I122: 238.00 | J122: Target Achieved | L122: 41.50 | M122: 21.12% | N122: Successful | O122: 2015-10-14
A123: 38 | B123: 2015-09-24 | D123: L&T Finance Holding | E123: Accu | F123: 65.00 | H123: 82 | I123: 82.00 | J123: Target Achieved | L123: 17.00 | M123: 26.15% | N123: Successful | O123: 2016-07-27
A124: 39 | B124: 2015-10-14 | D124: KEC International ltd | E124: Accu | F124: 144.00 | H124: 182.5 | I124: 181.00 | J124: Target Achieved | L124: 38.50 | M124: 26.74% | N124: Successful | O124: 2017-03-23
A125: 40 | B125: 2015-10-14 | D125: Gruh Finance | E125: Accu | F125: 264.00 | H125: 311 | I125: 311.00 | J125: Target Achieved | L125: 47.00 | M125: 17.80% | N125: Successful | O125: 2016-08-22
A126: 41 | B126: 2015-11-10 | D126: Pidilitind | E126: Buy | F126: 549.50 | H126: 630 | I126: 630.00 | J126: Target Achieved | L126: 80.50 | M126: 14.65% | N126: Successful | O126: 2016-02-19
A127: 42 | B127: 2015-12-04 | D127: Zensar Technology | E127: Accu | F127: 1020-1035 | I127: 1250.00 | J127: Open
A128: 43 | B128: 2015-12-29 | D128: Vinati Organics Ltd | E128: Accu | F128: 465.00 | H128: 540 | I128: 540.00 | J128: Target Achieved | L128: =H128-F128-K128 -> 75.00 | M128: =L128/F128 -> 16.13% | N128: Successful | O128: 2016-06-09
A129: 44 | B129: 2016-01-11 | D129: GSFC | E129: Buy | F129: 81.00 | H129: 110 | I129: 110.00 | J129: Target Achieved | L129: 29.00 | M129: 35.80% | N129: Successful | O129: 2017-01-10
A130: 45 | B130: 2016-01-13 | D130: SSWL | E130: Buy | F130: 417.50 | H130: 547 | I130: 535.00 | J130: Target Achieved | L130: 129.50 | M130: 31.02% | N130: Successful | O130: 2016-07-27
A131: 46 | B131: 2016-02-08 | D131: Persistent System Ltd | E131: Accu | F131: 650 | H131: 767.50 | I131: 800.00 | J131: Part profit of Rs.117.50/- | L131: 117.50 | M131: 18% | N131: Successful | O131: 2016-03-21
A132: 47 | B132: 2016-03-04 | D132: UPL | E132: Accu | F132: 437.50 | H132: 504.5 | I132: 522.00 | J132: Profit of Rs.67/- | L132: 67.00 | M132: 15.31% | N132: Successful | O132: 2016-04-20
A133: 48 | B133: 2016-03-09 | D133: Ashoka Buildcon Ltd | E133: Accu | F133: 189.50 | H133: 218 | I133: 218.00 | J133: Target Achieved | L133: 28.50 | M133: 15.04% | N133: Successful | O133: 2017-10-26
A134: 49 | B134: 2016-04-11 | D134: PTC INDIA FIN SERV LTD | E134: Accu | F134: 36-37 | I134: 60.00 | J134: Open
A135: 50 | B135: 2016-04-12 | D135: CAMLINFINE $ | E135: Accu | F135: 93.00 | H135: 149 | I135: 140.00 | J135: Profit of Rs 56/- | L135: =H135-F135-K135 -> 56.00 | M135: =L135/F135 -> 60.22% | N135: Successful | O135: 2017-01-05
A136: 51 | B136: 2016-04-12 | D136: Greaves Cotton Ltd. | E136: Accu | F136: 130.00 | H136: 150 | I136: 150-155 | J136: Target Achieved | L136: =H136-F136-K136 -> 20.00 | M136: =L136/F136 -> 15.38% | N136: Successful | O136: 2016-07-13
A137: 52 | B137: 2016-04-13 | D137: DHFL | E137: Accu | F137: 196.00 | H137: 299 | I137: 299.00 | J137: Target Achieved | L137: =H137-F137-K137 -> 103.00 | M137: =L137/F137 -> 52.55% | N137: Successful | O137: 2016-09-07
A138: 53 | B138: 2016-04-13 | D138: Magma | E138: Accu | F138: 88.00 | H138: 103 | I138: 103.00 | J138: Target Achieved | L138: =H138-F138-K138 -> 15.00 | M138: =L138/F138 -> 17.05% | N138: Successful | O138: 2016-06-09
A139: 54 | B139: 2016-05-02 | D139: KEC International ltd $ | E139: Accu | F139: 127.50 | H139: 148 | I139: 148-150 | J139: Target Achieved | L139: =H139-F139-K139 -> 20.50 | M139: =L139/F139 -> 16.08% | N139: Successful | O139: 2016-07-13
A140: 55 | B140: 2016-05-03 | D140: Mindtree | E140: Accu | F140: 670-680 | I140: 790-800 | J140: Open
A141: 56 | B141: 2016-06-01 | D141: Atulauto | E141: Accu | F141: 495-505 | I141: 565-570 | J141: Open
A142: 57 | B142: 2016-06-06 | D142: TRITURBINE | E142: Accu | F142: 110.00 | H142: 126.5 | I142: 125.00 | J142: Profit of Rs.16.50/- | L142: =H142-F142-K142 -> 16.50 | M142: =L142/F142 -> 15.00% | N142: Successful | O142: 2016-07-01
A143: 58 | B143: 2016-06-17 | D143: Pennar Industries Ltd | E143: Accu | F143: 44 | H143: 64.50 | I143: 69.50 | J143: Part profit of Rs.20.50/- | L143: =H143-F143-K143 -> 20.50 | M143: =L143/F143 -> 47% | N143: Successful | O143: 2017-08-30
A144: 59 | B144: 2016-06-28 | D144: EVEREADY INDS. IND. LTD. | E144: Accu | F144: 262.50 | H144: 340 | I144: 333.00 | J144: Profit of Rs.77.50/- | L144: =H144-F144-K144 -> 77.50 | M144: =L144/F144 -> 29.52% | N144: Successful | O144: 2017-10-09
A145: 60 | B145: 2016-06-28 | D145: FIEM INDUSTRIES LIMITED | E145: Accu | F145: 840.00 | H145: 1230 | I145: 1230.00 | J145: Target Achieved | L145: =H145-F145-K145 -> 390.00 | M145: =L145/F145 -> 46.43% | N145: Successful | O145: 2016-10-06
A146: 61 | B146: 2016-07-05 | D146: Bajaj Corp Ltd | E146: Accu | F146: 395 | H146: 468.50 | I146: 510.00 | J146: Part profit of Rs.73.50/- | L146: =H146-F146-K146 -> 73.50 | M146: =L146/F146 -> 19% | N146: Successful | O146: 2017-08-30
A147: 62 | B147: 2016-08-02 | D147: GPPL $ | E147: Buy | F147: 167-172 | I147: 198-200 | J147: Open
A148: 63 | B148: 2016-08-04 | D148: WONDERLA HOLIDAYS LTD | E148: Accu | F148: 395-405 | I148: 475.00 | J148: Open
A149: 64 | B149: 2016-08-11 | D149: CAMLINFINE | E149: Accu | F149: 86.50 | H149: 130 | I149: 130.00 | J149: Profit of Rs.43.50/- | L149: =H149-F149-K149 -> 43.50 | M149: =L149/F149 -> 50.29% | N149: Successful | O149: 2017-12-22
A150: 65 | B150: 2016-08-18 | D150: GRANULES | E150: Accu | F150: 133.5 | H150: 126.50 | I150: 178.00 | J150: Exit | L150: -7.00 | M150: -5.24% | N150: Unsuccessful | O150: 2016-09-02
A151: 66 | B151: 2016-08-31 | D151: VA TECH WABAG | E151: Accu | F151: 560.00 | H151: 725 | I151: 725.00 | J151: Target Achieved | L151: 165.00 | M151: 29.46% | N151: Successful | O151: 2016-03-27
A152: 67 | B152: 2016-09-01 | D152: SKIPPER LIMITED | E152: Accu | F152: 160.50 | H152: 210 | I152: 210.00 | J152: Target Achieved | L152: 49.50 | M152: 30.84% | N152: Successful | O152: 2017-05-16
A153: 68 | B153: 2016-10-03 | D153: IFB Industries | E153: Accu | F153: 430.00 | H153: 596 | I153: 575.00 | J153: Profit of Rs.166/- | L153: 166.00 | M153: 38.60% | N153: Successful | O153: 2017-02-03
A154: 69 | B154: 2016-10-14 | D154: ASIANTILES | E154: Accu | F154: 280.00 | H154: 345 | I154: 345.00 | J154: Target Achieved | L154: 65.00 | M154: 23.21% | N154: Successful | O154: 2017-03-20
A155: 70 | B155: 2016-10-14 | D155: DEEPIND | E155: Accu | F155: 245.00 | H155: 325.5 | I155: 330.00 | J155: Profit of Rs.80.5/- | L155: 80.50 | M155: 32.86% | N155: Successful | O155: 2017-02-03
A156: 71 | B156: 2016-10-17 | D156: DCBBANK | E156: Accu | F156: 125.00 | H156: 160 | I156: 160.00 | J156: Target Achieved | L156: 35.00 | M156: 28.00% | N156: Successful | O156: 2017-03-09
A157: 72 | B157: 2016-10-17 | D157: ORIENTREF | E157: Accu | F157: 114.00 | H157: 145 | I157: 145.00 | J157: Target Achieved | L157: =H157-F157-K157 -> 31.00 | M157: =L157/F157 -> 27.19% | N157: Successful | O157: 2017-05-04
A158: 73 | B158: 2016-10-17 | D158: GANECOS | E158: Accu | F158: 212.00 | H158: 280 | I158: 276.00 | J158: Profit of Rs.68/- | L158: =H158-F158-K158 -> 68.00 | M158: =L158/F158 -> 32.08% | N158: Successful | O158: 2017-05-03
A159: 74 | B159: 2016-11-04 | D159: NBCC | E159: Accu | F159: 155.00 | H159: 210 | I159: 210.00 | J159: Profit of Rs.55/- | L159: =H159-F159-K159 -> 55.00 | M159: =L159/F159 -> 35.48% | N159: Successful | O159: 2017-07-28
A160: 75 | B160: 2016-12-06 | D160: PRECAM | E160: Accu | F160: 148-153 | I160: 174.00 | J160: Open
A161: 76 | B161: 2016-12-08 | D161: INFRATEL | E161: Accu | F161: 380.00 | H161: 478 | I161: 468.00 | J161: Target Achieved | L161: =H161-F161-K161 -> 98.00 | M161: =L161/F161 -> 25.79% | N161: Successful | O161: 2017-10-17
A162: 77 | B162: 2016-12-30 | D162: GODREJPROP | E162: Accu | F162: 305.00 | H162: 375 | I162: 375.00 | J162: Target Achieved | L162: 70.00 | M162: 22.95% | N162: Successful | O162: 2017-02-02
A163: 78 | B163: 2017-01-04 | D163: DEEPAKNTR | E163: Accu | F163: 99.50 | H163: 158 | I163: 158.00 | J163: Target Achieved | L163: 58.50 | M163: 58.79% | N163: Successful | O163: 2017-06-12
A164: 79 | B164: 2017-02-20 | D164: SUBROS | E164: Accu | F164: 202.50 | H164: 234 | I164: 234.00 | J164: Target Achieved | L164: 31.50 | M164: 15.56% | N164: Successful | O164: 2017-04-11
A165: 80 | B165: 2017-02-20 | D165: RECLTD | E165: Accu | F165: 140.50 | H165: 220 | I165: 220.00 | J165: Target Achieved | L165: 79.50 | M165: 56.58% | N165: Successful | O165: 2017-05-09
A166: 81 | B166: 2017-03-24 | D166: VRLLOG | E166: Accu | F166: 300.50 | H166: 417.5 | I166: 420.00 | J166: Profit of Rs.117/- | L166: 117.00 | M166: 38.94% | N166: Successful | O166: 2017-12-01
A167: 82 | B167: 2017-03-24 | D167: FIEMIND | E167: Accu | F167: 850.00 | H167: 1042.5 | I167: 1023.00 | J167: Profit of Rs 192.50/- | L167: 192.50 | M167: 22.65% | N167: Successful | O167: 2017-04-05
A168: 83 | B168: 2017-04-05 | D168: RATNAMANI | E168: Accu | F168: 785.00 | H168: 930 | I168: 920.00 | J168: Profit of Rs.145/- | L168: 145.00 | M168: 18.47% | N168: Successful | O168: 2017-08-29
A169: 84 | B169: 2017-04-06 | D169: ZEEMEDIA | E169: Accu | F169: 39-41 | I169: 60.00 | J169: Open
A170: 85 | B170: 2017-04-12 | D170: DABUR | E170: Accu | F170: 289.50 | H170: 354 | I170: 360.00 | J170: Profit of Rs.64.5/- | L170: =H170-F170-K170 -> 64.50 | M170: =L170/F170 -> 22.28% | N170: Successful | O170: 2017-11-01
A171: 86 | B171: 2017-04-20 | D171: KPRMILL | E171: Accu | F171: 700.00 | H171: 840 | I171: 840.00 | J171: Profit of Rs.140/- | L171: =H171-F171-K171 -> 140.00 | M171: =L171/F171 -> 20.00% | N171: Successful | O171: 2017-06-07
A172: 87 | B172: 2017-05-22 | D172: GREAVESCOT | E172: Accu | F172: 153-158 | I172: 190.00 | J172: Open
A173: 88 | B173: 2017-06-01 | D173: ESSELPACK | E173: Accu | F173: 260 | H173: 311.00 | I173: 340.00 | J173: Part profit of Rs.51/- | L173: =H173-F173-K173 -> 51.00 | M173: =L173/F173 -> 20% | N173: Successful | O173: 2017-11-17
A174: 89 | B174: 2017-06-15 | D174: KEI | E174: Accu | F174: 214.50 | H174: 262 | I174: 262.00 | J174: Profit of Rs.47.5/- | L174: 47.50 | M174: 22.14% | N174: Successful | O174: 2017-08-30
A175: 90 | B175: 2017-07-17 | D175: MAYURUNIQ | E175: Accu | F175: 370.00 | H175: 447.5 | I175: 450.00 | J175: Target Achieved | L175: 77.50 | M175: 20.95% | N175: Successful | O175: 2017-10-27
A176: 91 | B176: 2017-07-27 | D176: RAMCOCEM | E176: Accu | F176: 657.50 | H176: 825 | I176: 820.00 | J176: Target Achieved | L176: 167.50 | M176: 25.48% | N176: Successful | O176: 2017-12-21
A177: 92 | B177: 2017-08-17 | D177: FINPIPE | E177: Accu | F177: 605.00 | H177: 750 | I177: 750.00 | J177: Profit of Rs.145/- | L177: 145.00 | M177: 23.97% | N177: Successful | O177: 2017-10-19
A178: 93 | B178: 2017-09-01 | D178: SHK | E178: Accu | F178: 255 | H178: 307.50 | I178: 320.00 | J178: Part profit of Rs.52.5/- | L178: 52.50 | M178: 21% | N178: Successful | O178: 2017-12-29
A179: 94 | B179: 2017-09-19 | D179: SKIPPER | E179: Accu | F179: 215.00 | H179: 258 | I179: 258.00 | J179: Target Achieved | L179: 43.00 | M179: 20.00% | N179: Successful | O179: 2017-11-01
A180: 95 | B180: 2017-09-20 | D180: CAMLINFINE | E180: Accu | F180: 75.00 | H180: 90 | I180: 90.00 | J180: Profit of Rs.15.00/- | L180: 15.00 | M180: 20.00% | N180: Successful | O180: 2017-10-11
A181: 96 | B181: 2017-10-03 | D181: GNA | E181: Accu | F181: 315.00 | H181: 392 | I181: 384.00 | J181: Profit of Rs.77/- | L181: 77.00 | M181: 24.44% | N181: Successful | O181: 2017-10-09
A182: 97 | B182: 2017-10-05 | D182: NOCIL | E182: Accu | F182: 145.00 | H182: 179 | I182: 180.00 | J182: Profit of Rs.34/- | L182: 34.00 | M182: 23.45% | N182: Successful | O182: 2017-10-17
A183: 98 | B183: 2017-10-06 | D183: CENTURYPLY | E183: Accu | F183: 256.00 | H183: 323 | I183: 320.00 | J183: Target Achieved | L183: 67.00 | M183: 26.17% | N183: Successful | O183: 2017-11-28
A184: 99 | B184: 2017-10-09 | D184: RECLTD | E184: Accu | F184: 152.5 | H184: 183.50 | I184: 210.00 | J184: Part Profit of Rs.31/- | L184: 31.00 | M184: 20% | N184: Successful | O184: 2017-11-03
A185: 100 | B185: 2017-10-09 | D185: EIHOTEL | E185: Accu | F185: 137.50 | H185: 184 | I185: 183.00 | J185: Profit of Rs.32.5/- | L185: 46.50 | M185: 33.82% | N185: Successful | O185: 2018-01-08
A186: 101 | B186: 2017-10-10 | D186: BOROSIL | E186: Accu | F186: 895.00 | H186: 1122.5 | I186: 1078.00 | J186: Profit of Rs.227.5/- | L186: 227.50 | M186: 25.42% | N186: Successful | O186: 2018-01-17
A187: 102 | B187: 2017-10-10 | D187: NRBBEARING | E187: Accu | F187: 125.50 | H187: 158 | I187: 155.00 | J187: Profit of Rs.32.5/- | L187: 32.50 | M187: 25.90% | N187: Successful | O187: 2017-11-28
A188: 103 | B188: 2017-10-12 | D188: CYIENT | E188: Accu | F188: 525.00 | H188: 629 | I188: 629.00 | J188: Target Achieved | L188: 104.00 | M188: 19.81% | N188: Successful | O188: 2018-01-19
A189: 104 | B189: 2017-11-07 | D189: HATSUN | E189: Accu | F189: 740.00 | H189: 892.5 | I189: 900.00 | J189: Profit of Rs.152.5/- | L189: 152.50 | M189: 20.61% | N189: Successful | O189: 2017-11-13
A190: 105 | B190: 2017-12-04 | D190: SANGHIIND | E190: Accu | F190: 118.50 | H190: 143.5 | I190: 145.00 | J190: Profit of Rs.25/- | L190: 25.00 | M190: 21.10% | N190: Successful | O190: 2017-12-28
A191: 106 | B191: 2017-12-05 | D191: ALLCARGO | E191: Accu | F191: 177.5 | H191: 215.00 | I191: 230.00 | J191: Part Profit of Rs.37.5/- | L191: 37.50 | M191: 21% | N191: Successful | O191: 2017-12-27
A192: 107 | B192: 2017-12-21 | D192: KAJARIACER | E192: Accu | F192: 710-720 | I192: 872.00 | J192: Open
A193: 108 | B193: 2017-12-29 | D193: GNA | E193: Accu | F193: 430-440 | I193: 539.00 | J193: Open
A194: 109 | B194: 2017-12-29 | D194: ZENSARTECH | E194: Accu | F194: 880-890 | I194: 1084.00 | J194: Open
F197: Reinitiated $
A199: Disclaimer:
A200: This document has been prepared by the Retail Research Desk of Asit C Mehta
A201: Investment Intermediates Ltd. and is meant for use of the recipient only
A202: and is not for circulation. This document is not to be reported or
A203: copied or made available to others. It should not be considered to be
A204: taken as an offer to sell or a solicitation to buy any security. The
A205: information contained herein is from sources believed reliable. We do
A206: not represent that it is accurate or complete and it should not be
A207: relied upon as such. We may from time to time have positions in and buy
A208: and sell securities referred to herein

Sheet Sheet2 (hidden)
A1: SYMBOL | B1: SERIES | C1: OPEN | D1: HIGH | E1: LOW | F1: CLOSE | G1: LAST | H1: PREVCLOSE | I1: TOTTRDQTY | J1: TOTTRDVAL | K1: TIMESTAMP | L1: TOTALTRADES | M1: ISIN
A2: 20MICRONS | B2: EQ | C2: 53 | D2: 53 | E2: 50.5 | F2: 52.15 | G2: 52.05 | H2: 52.75 | I2: 53466 | J2: 2789881.45 | K2: 2018-02-01 | L2: 549 | M2: INE144J01027
A3: 3IINFOTECH | B3: EQ | C3: 6.25 | D3: 6.3 | E3: 5.9 | F3: 5.9 | G3: 5.95 | H3: 6.15 | I3: 7116046 | J3: 43282929 | K3: 2018-02-01 | L3: 3399 | M3: INE748C01020
A4: 3MINDIA | B4: EQ | C4: 18995 | D4: 19487 | E4: 18775 | F4: 19282.05 | G4: 19305 | H4: 18796.15 | I4: 2613 | J4: 50184486.15 | K4: 2018-02-01 | L4: 839 | M4: INE470A01017
A5: 5PAISA | B5: EQ | C5: 287 | D5: 304.7 | E5: 287 | F5: 304.7 | G5: 304.7 | H5: 290.2 | I5: 8463 | J5: 2559413.9 | K5: 2018-02-01 | L5: 310 | M5: INE618L01018
A6: 63MOONS | B6: EQ | C6: 105.65 | D6: 109 | E6: 100.7 | F6: 103.45 | G6: 104.05 | H6: 104.8 | I6: 324922 | J6: 34001319.4 | K6: 2018-02-01 | L6: 4657 | M6: INE111B01023
A7: 8KMILES | B7: EQ | C7: 741.35 | D7: 744 | E7: 702 | F7: 718.15 | G7: 717.5 | H7: 736.85 | I7: 164687 | J7: 118730879 | K7: 2018-02-01 | L7: 7609 | M7: INE650K01021
A8: A2ZINFRA | B8: EQ | C8: 38.1 | D8: 38.65 | E8: 37.3 | F8: 37.5 | G8: 37.5 | H8: 37.95 | I8: 896717 | J8: 34089625.45 | K8: 2018-02-01 | L8: 3882 | M8: INE619I01012
A9: AARTIDRUGS | B9: EQ | C9: 621.25 | D9: 636 | E9: 618.05 | F9: 622.5 | G9: 621 | H9: 624.95 | I9: 6188 | J9: 3879363.45 | K9: 2018-02-01 | L9: 604 | M9: INE767A01016
A10: AARTIIND | B10: EQ | C10: 1065 | D10: 1104.9 | E10: 1042.35 | F10: 1100.1 | G10: 1100.1 | H10: 1056.75 | I10: 60307 | J10: 65847650.25 | K10: 2018-02-01 | L10: 3761 | M10: INE769A01020
A11: AARVEEDEN | B11: EQ | C11: 48.7 | D11: 50.5 | E11: 48.5 | F11: 48.85 | G11: 49.5 | H11: 49.6 | I11: 33294 | J11: 1635819.6 | K11: 2018-02-01 | L11: 168 | M11: INE273D01019
A12: ABAN | B12: EQ | C12: 211.75 | D12: 212.9 | E12: 204.6 | F12: 206.6 | G12: 206.1 | H12: 211 | I12: 1413772 | J12: 294671339.6 | K12: 2018-02-01 | L12: 15312 | M12: INE421A01028
A13: ABB | B13: EQ | C13: 1650 | D13: 1721.9 | E13: 1637 | F13: 1700.45 | G13: 1700 | H13: 1653.2 | I13: 200484 | J13: 336011229.4 | K13: 2018-02-01 | L13: 7977 | M13: INE117A01022
A14: ABBOTINDIA | B14: EQ | C14: 5570.1 | D14: 5625 | E14: 5510 | F14: 5554.5 | G14: 5550 | H14: 5625.05 | I14: 4145 | J14: 23001766.5 | K14: 2018-02-01 | L14: 738 | M14: INE358A01014
A15: ABCAPITAL | B15: EQ | C15: 171 | D15: 175 | E15: 169.95 | F15: 174.2 | G15: 174.9 | H15: 170.85 | I15: 2092606 | J15: 361783199.4 | K15: 2018-02-01 | L15: 22305 | M15: INE674K01013
A16: ABFRL | B16: EQ | C16: 163.8 | D16: 165.5 | E16: 158.6 | F16: 163.6 | G16: 164.9 | H16: 163.05 | I16: 303680 | J16: 49168205.7 | K16: 2018-02-01 | L16: 2895 | M16: INE647O01011
A17: ACC | B17: EQ | C17: 1723 | D17: 1744.85 | E17: 1695.1 | F17: 1737 | G17: 1730.2 | H17: 1715.25 | I17: 300979 | J17: 518590229.9 | K17: 2018-02-01 | L17: 22783 | M17: INE012A01025
A18: ACCELYA | B18: EQ | C18: 1431.65 | D18: 1459.9 | E18: 1410 | F18: 1423 | G18: 1424.95 | H18: 1441.65 | I18: 26868 | J18: 38402382.55 | K18: 2018-02-01 | L18: 1388 | M18: INE793A01012
A19: ACE | B19: EQ | C19: 173.2 | D19: 184.2 | E19: 165 | F19: 176.4 | G19: 176.5 | H19: 172.05 | I19: 1423109 | J19: 252351889.4 | K19: 2018-02-01 | L19: 15582 | M19: INE731H01025
A20: ADANIENT | B20: EQ | C20: 213 | D20: 217.05 | E20: 203.7 | F20: 214 | G20: 213.6 | H20: 213.2 | I20: 4905671 | J20: 1043896234 | K20: 2018-02-01 | L20: 34143 | M20: INE423A01024
A21: ADANIPORTS | B21: EQ | C21: 431 | D21: 433 | E21: 414.45 | F21: 428.75 | G21: 431 | H21: 428.85 | I21: 1681704 | J21: 717950268.9 | K21: 2018-02-01 | L21: 29810 | M21: INE742F01042
A22: ADANIPOWER | B22: EQ | C22: 36.7 | D22: 37.25 | E22: 34.7 | F22: 36.75 | G22: 36.85 | H22: 36.65 | I22: 10904549 | J22: 399821134.1 | K22: 2018-02-01 | L22: 18936 | M22: INE814H01011
A23: ADANITRANS | B23: EQ | C23: 210 | D23: 212.7 | E23: 205.7 | F23: 207.3 | G23: 208 | H23: 208.9 | I23: 766441 | J23: 160228923.2 | K23: 2018-02-01 | L23: 5912 | M23: INE931S01010
A24: ADFFOODS | B24: EQ | C24: 274.9 | D24: 286 | E24: 268.35 | F24: 270.7 | G24: 271 | H24: 270.7 | I24: 233237 | J24: 64396674 | K24: 2018-02-01 | L24: 4914 | M24: INE982B01019
A25: ADORWELD | B25: EQ | C25: 515 | D25: 515 | E25: 490.6 | F25: 497.4 | G25: 495.5 | H25: 502.1 | I25: 16978 | J25: 8502644.55 | K25: 2018-02-01 | L25: 740 | M25: INE045A01017
A26: ADVANIHOTR | B26: EQ | C26: 72.1 | D26: 74.15 | E26: 72.1 | F26: 72.5 | G26: 72.25 | H26: 72.35 | I26: 9976 | J26: 726739.1 | K26: 2018-02-01 | L26: 129 | M26: INE199C01026
A27: ADVENZYMES | B27: EQ | C27: 267.7 | D27: 267.8 | E27: 260.1 | F27: 261.4 | G27: 261.35 | H27: 264.1 | I27: 140606 | J27: 37070837.4 | K27: 2018-02-01 | L27: 3958 | M27: INE837H01020
A28: AEGISCHEM | B28: EQ | C28: 249 | D28: 282 | E28: 246.1 | F28: 274.95 | G28: 279 | H28: 249 | I28: 812492 | J28: 217829999.8 | K28: 2018-02-01 | L28: 20270 | M28: INE208C01025
A29: AFL | B29: EQ | C29: 59.4 | D29: 59.4 | E29: 56.05 | F29: 57.85 | G29: 58 | H29: 58.35 | I29: 9595 | J29: 550388.1 | K29: 2018-02-01 | L29: 69 | M29: INE020G01017
A30: AGLSL | B30: EQ | C30: 123.15 | D30: 123.15 | E30: 118 | F30: 120.4 | G30: 121.95 | H30: 119.1 | I30: 4373 | J30: 522108.95 | K30: 2018-02-01 | L30: 65 | M30: INE517U01013
A31: AGRITECH | B31: EQ | C31: 108.8 | D31: 116.7 | E31: 108.8 | F31: 116.7 | G31: 116.7 | H31: 106.1 | I31: 115799 | J31: 13343767.5 | K31: 2018-02-01 | L31: 1437 | M31: INE449G01018
A32: AHLEAST | B32: EQ | C32: 353 | D32: 363.85 | E32: 335.05 | F32: 337.15 | G32: 335.05 | H32: 352.4 | I32: 28698 | J32: 10024894.95 | K32: 2018-02-01 | L32: 1040 | M32: INE926K01017
A33: AHLUCONT | B33: EQ | C33: 352 | D33: 360 | E33: 350 | F33: 353.6 | G33: 359 | H33: 350.5 | I33: 13420 | J33: 4738361.2 | K33: 2018-02-01 | L33: 546 | M33: INE758C01029
A34: AIAENG | B34: EQ | C34: 1537.85 | D34: 1540.15 | E34: 1480 | F34: 1500.6 | G34: 1486 | H34: 1535.85 | I34: 48541 | J34: 73588141.95 | K34: 2018-02-01 | L34: 5301 | M34: INE212H01026
A35: AIFL | B35: EQ | C35: 460.8 | D35: 461.1 | E35: 452 | F35: 453.75 | G35: 454 | H35: 459 | I35: 31642 | J35: 14406350.05 | K35: 2018-02-01 | L35: 700 | M35: INE428O01016
A36: AJANTPHARM | B36: EQ | C36: 1460 | D36: 1465 | E36: 1351.55 | F36: 1403.4 | G36: 1403.45 | H36: 1451.55 | I36: 282193 | J36: 396990547.9 | K36: 2018-02-01 | L36: 15381 | M36: INE031B01049
A37: AJMERA | B37: EQ | C37: 314.8 | D37: 328.2 | E37: 310.95 | F37: 325 | G37: 327 | H37: 310.7 | I37: 96203 | J37: 30747875.9 | K37: 2018-02-01 | L37: 2785 | M37: INE298G01027
A38: AKSHARCHEM | B38: EQ | C38: 744.95 | D38: 744.95 | E38: 705.05 | F38: 724.9 | G38: 722.5 | H38: 725.35 | I38: 12837 | J38: 9288931.25 | K38: 2018-02-01 | L38: 738 | M38: INE542B01011
A39: AKZOINDIA | B39: EQ | C39: 1835 | D39: 1849.95 | E39: 1811.65 | F39: 1836.25 | G39: 1840 | H39: 1841.3 | I39: 9560 | J39: 17461676.7 | K39: 2018-02-01 | L39: 1218 | M39: INE133A01011
A40: ALANKIT | B40: EQ | C40: 64.4 | D40: 66.3 | E40: 63.1 | F40: 66.2 | G40: 66.3 | H40: 63.15 | I40: 622895 | J40: 40613949.15 | K40: 2018-02-01 | L40: 2119 | M40: INE914E01040
A41: ALBK | B41: EQ | C41: 66.8 | D41: 67.45 | E41: 63.5 | F41: 64.65 | G41: 64.4 | H41: 66.8 | I41: 3288181 | J41: 216637961.3 | K41: 2018-02-01 | L41: 11135 | M41: INE428A01015
A42: ALEMBICLTD | B42: EQ | C42: 65.25 | D42: 65.25 | E42: 62.3 | F42: 63 | G42: 63.05 | H42: 65.1 | I42: 987331 | J42: 62940089.95 | K42: 2018-02-01 | L42: 4683 | M42: INE426A01027
A43: ALICON | B43: EQ | C43: 675.25 | D43: 699.95 | E43: 669.25 | F43: 688.95 | G43: 691 | H43: 668.7 | I43: 18589 | J43: 12765929.2 | K43: 2018-02-01 | L43: 779 | M43: INE062D01024
A44: ALKALI | B44: EQ | C44: 84.7 | D44: 84.7 | E44: 78.6 | F44: 80.1 | G44: 80.15 | H44: 80 | I44: 7453 | J44: 603742.9 | K44: 2018-02-01 | L44: 221 | M44: INE773I01017
A45: ALKEM | B45: EQ | C45: 2200 | D45: 2239 | E45: 2165 | F45: 2229.85 | G45: 2232 | H45: 2198.75 | I45: 11453 | J45: 25398204.7 | K45: 2018-02-01 | L45: 1991 | M45: INE540L01014
A46: ALKYLAMINE | B46: EQ | C46: 700 | D46: 716 | E46: 680 | F46: 691.1 | G46: 699 | H46: 704.55 | I46: 5291 | J46: 3694822.95 | K46: 2018-02-01 | L46: 311 | M46: INE150B01021
A47: ALLCARGO | B47: EQ | C47: 193 | D47: 199 | E47: 186.6 | F47: 193.9 | G47: 193.95 | H47: 193 | I47: 596198 | J47: 116214288.7 | K47: 2018-02-01 | L47: 7480 | M47: INE418H01029
A48: ALLSEC | B48: EQ | C48: 411 | D48: 429 | E48: 408.3 | F48: 419.5 | G48: 417.05 | H48: 411.25 | I48: 7240 | J48: 3021214.9 | K48: 2018-02-01 | L48: 210 | M48: INE835G01018
A49: ALPA | B49: EQ | C49: 39.8 | D49: 40.65 | E49: 38.5 | F49: 39.65 | G49: 39.45 | H49: 39.95 | I49: 36828 | J49: 1460381.8 | K49: 2018-02-01 | L49: 267 | M49: INE385I01010
A50: ALPHAGEO | B50: EQ | C50: 908.45 | D50: 918.45 | E50: 890 | F50: 897.15 | G50: 895 | H50: 908.45 | I50: 12434 | J50: 11172182.2 | K50: 2018-02-01 | L50: 979 | M50: INE137C01018
A51: AMARAJABAT | B51: EQ | C51: 809.25 | D51: 825.2 | E51: 790.8 | F51: 808.5 | G51: 811 | H51: 810.1 | I51: 375014 | J51: 304505799.4 | K51: 2018-02-01 | L51: 12224 | M51: INE885A01032
A52: AMBER | B52: EQ | C52: 1254.8 | D52: 1328.9 | E52: 1226.6 | F52: 1276.1 | G52: 1278.95 | H52: 1249.65 | I52: 1847017 | J52: 2360963033 | K52: 2018-02-01 | L52: 78015 | M52: INE371P01015
A53: AMBIKCO | B53: EQ | C53: 1345 | D53: 1368 | E53: 1310 | F53: 1326.2 | G53: 1325.05 | H53: 1344.85 | I53: 6247 | J53: 8314026.05 | K53: 2018-02-01 | L53: 471 | M53: INE540G01014
A54: AMBUJACEM | B54: EQ | C54: 263.4 | D54: 269.5 | E54: 260.9 | F54: 266.45 | G54: 265.5 | H54: 261.8 | I54: 3355964 | J54: 890213401.6 | K54: 2018-02-01 | L54: 31030 | M54: INE079A01024
A55: AMDIND | B55: EQ | C55: 40.15 | D55: 41.6 | E55: 40 | F55: 40.45 | G55: 40 | H55: 40.6 | I55: 12164 | J55: 495358.9 | K55: 2018-02-01 | L55: 158 | M55: INE005I01014
A56: AMJLAND | B56: EQ | C56: 25.45 | D56: 26.45 | E56: 24.85 | F56: 26.1 | G56: 26.35 | H56: 25.55 | I56: 21868 | J56: 564721.65 | K56: 2018-02-01 | L56: 89 | M56: INE606A01024
A57: AMRUTANJAN | B57: EQ | C57: 595 | D57: 609 | E57: 591 | F57: 596.75 | G57: 600.1 | H57: 597.1 | I57: 2600 | J57: 1551221.8 | K57: 2018-02-01 | L57: 197 | M57: INE098F01023
A58: ANANTRAJ | B58: EQ | C58: 67 | D58: 68.25 | E58: 66 | F58: 66.45 | G58: 66.25 | H58: 66.7 | I58: 1440628 | J58: 96927461.4 | K58: 2018-02-01 | L58: 7344 | M58: INE242C01024
A59: ANDHRABANK | B59: EQ | C59: 52.55 | D59: 52.9 | E59: 50.7 | F59: 51.25 | G59: 51.35 | H59: 52.55 | I59: 3834591 | J59: 198918425.8 | K59: 2018-02-01 | L59: 15309 | M59: INE434A01013
A60: ANDHRACEMT | B60: EQ | C60: 13.45 | D60: 13.5 | E60: 13 | F60: 13.1 | G60: 13.25 | H60: 13.1 | I60: 306212 | J60: 4051601.7 | K60: 2018-02-01 | L60: 631 | M60: INE666E01012
A61: ANDHRSUGAR | B61: EQ | C61: 622.1 | D61: 640.1 | E61: 595 | F61: 630.1 | G61: 635 | H61: 629.35 | I61: 48892 | J61: 30361682.8 | K61: 2018-02-01 | L61: 1547 | M61: INE715B01013
A62: ANIKINDS | B62: EQ | C62: 42.1 | D62: 42.95 | E62: 38.15 | F62: 42.15 | G62: 42 | H62: 41.3 | I62: 8008 | J62: 335104.2 | K62: 2018-02-01 | L62: 130 | M62: INE087B01017
A63: ANSALAPI | B63: EQ | C63: 26.7 | D63: 27.2 | E63: 25.85 | F63: 26.05 | G63: 26.2 | H63: 26.5 | I63: 228217 | J63: 6029656.45 | K63: 2018-02-01 | L63: 836 | M63: INE436A01026
A64: ANSALHSG | B64: EQ | C64: 28.3 | D64: 28.85 | E64: 26.7 | F64: 26.95 | G64: 26.95 | H64: 28.05 | I64: 137786 | J64: 3826111.95 | K64: 2018-02-01 | L64: 960 | M64: INE880B01015
A65: APARINDS | B65: EQ | C65: 736.45 | D65: 755 | E65: 730 | F65: 742.55 | G65: 740.1 | H65: 736.45 | I65: 19634 | J65: 14541361.75 | K65: 2018-02-01 | L65: 2247 | M65: INE372A01015
A66: APCL | B66: EQ | C66: 225.05 | D66: 243.95 | E66: 225.05 | F66: 227.05 | G66: 227 | H66: 225.35 | I66: 8583 | J66: 1963855.85 | K66: 2018-02-01 | L66: 162 | M66: INE071F01012
A67: APCOTEXIND | B67: EQ | C67: 475.65 | D67: 489.95 | E67: 469 | F67: 471.25 | G67: 471.05 | H67: 478.55 | I67: 8135 | J67: 3855030.9 | K67: 2018-02-01 | L67: 295 | M67: INE116A01024
A68: APEX | B68: EQ | C68: 633.65 | D68: 658.75 | E68: 633.6 | F68: 658.75 | G68: 658.75 | H68: 627.4 | I68: 142411 | J68: 92252073.05 | K68: 2018-02-01 | L68: 4632 | M68: INE346W01013
A69: APLAPOLLO | B69: EQ | C69: 2143.3 | D69: 2179.8 | E69: 1998 | F69: 2126.1 | G69: 2081.05 | H69: 2143.4 | I69: 141688 | J69: 291821777.9 | K69: 2018-02-01 | L69: 8046 | M69: INE702C01019
A70: APLLTD | B70: EQ | C70: 574 | D70: 574 | E70: 545.6 | F70: 551.45 | G70: 551 | H70: 567.1 | I70: 43746 | J70: 24195424.25 | K70: 2018-02-01 | L70: 4529 | M70: INE901L01018
A71: APOLLOHOSP | B71: EQ | C71: 1165 | D71: 1224.55 | E71: 1160.3 | F71: 1218.55 | G71: 1218 | H71: 1162.8 | I71: 1036405 | J71: 1245664950 | K71: 2018-02-01 | L71: 34588 | M71: INE437A01024
A72: APOLLOTYRE | B72: EQ | C72: 255.8 | D72: 268.5 | E72: 248.4 | F72: 262.35 | G72: 261.95 | H72: 254.85 | I72: 4693162 | J72: 1228061470 | K72: 2018-02-01 | L72: 41557 | M72: INE438A01022
A73: APOLSINHOT | B73: EQ | C73: 1356 | D73: 1460 | E73: 1356 | F73: 1396.5 | G73: 1415 | H73: 1390.5 | I73: 745 | J73: 1074514.05 | K73: 2018-02-01 | L73: 71 | M73: INE451F01016
A74: APTECHT | B74: EQ | C74: 305.5 | D74: 309.95 | E74: 288 | F74: 291.2 | G74: 291 | H74: 304.95 | I74: 980041 | J74: 293031296.9 | K74: 2018-02-01 | L74: 19614 | M74: INE266F01018
A75: ARCHIDPLY | B75: EQ | C75: 104 | D75: 105 | E75: 101.05 | F75: 101.9 | G75: 102 | H75: 102.8 | I75: 56885 | J75: 5871699.3 | K75: 2018-02-01 | L75: 811 | M75: INE877I01016
A76: ARCHIES | B76: EQ | C76: 43 | D76: 43.55 | E76: 40.55 | F76: 40.95 | G76: 40.9 | H76: 43 | I76: 283603 | J76: 11858237.6 | K76: 2018-02-01 | L76: 1750 | M76: INE731A01020
A77: ARCOTECH | B77: EQ | C77: 48 | D77: 49 | E77: 46.3 | F77: 47.15 | G77: 47.2 | H77: 47.9 | I77: 181282 | J77: 8656782.05 | K77: 2018-02-01 | L77: 1316 | M77: INE574I01035
A78: ARIHANTSUP | B78: EQ | C78: 159.9 | D78: 169.9 | E78: 153.2 | F78: 165.65 | G78: 165.05 | H78: 157.8 | I78: 467804 | J78: 76491525.65 | K78: 2018-02-01 | L78: 2909 | M78: INE643K01018
A79: AROGRANITE | B79: EQ | C79: 66.85 | D79: 70.6 | E79: 66.6 | F79: 69.05 | G79: 69 | H79: 66.85 | I79: 97768 | J79: 6740314.7 | K79: 2018-02-01 | L79: 955 | M79: INE210C01013
A80: ARROWGREEN | B80: EQ | C80: 483 | D80: 483 | E80: 463 | F80: 475.25 | G80: 475 | H80: 473.9 | I80: 6794 | J80: 3216887.6 | K80: 2018-02-01 | L80: 473 | M80: INE570D01018
A81: ARROWTEX | B81: EQ | C81: 44.9 | D81: 44.9 | E81: 42.7 | F81: 43.15 | G81: 43.4 | H81: 43.6 | I81: 13915 | J81: 602139.35 | K81: 2018-02-01 | L81: 155 | M81: INE933J01015
A82: ARSHIYA | B82: EQ | C82: 94.45 | D82: 97 | E82: 85 | F82: 89.6 | G82: 89 | H82: 93.7 | I82: 112943 | J82: 10335525.5 | K82: 2018-02-01 | L82: 1207 | M82: INE968D01022
A83: ARVIND | B83: EQ | C83: 412.95 | D83: 416.3 | E83: 396.65 | F83: 406.1 | G83: 405.45 | H83: 413.35 | I83: 2101659 | J83: 859561543.9 | K83: 2018-02-01 | L83: 32550 | M83: INE034A01011
A84: ARVSMART | B84: EQ | C84: 201.35 | D84: 205.9 | E84: 196.25 | F84: 197.7 | G84: 198.65 | H84: 197.65 | I84: 54861 | J84: 11017039.65 | K84: 2018-02-01 | L84: 978 | M84: INE034S01021
A85: ASAHIINDIA | B85: EQ | C85: 347.95 | D85: 367.95 | E85: 347.9 | F85: 360 | G85: 362 | H85: 344.45 | I85: 63610 | J85: 22902615.25 | K85: 2018-02-01 | L85: 1342 | M85: INE439A01020
A86: ASAHISONG | B86: EQ | C86: 350.5 | D86: 357.5 | E86: 350.1 | F86: 353.85 | G86: 353.1 | H86: 350.5 | I86: 8331 | J86: 2943206.05 | K86: 2018-02-01 | L86: 269 | M86: INE228I01012
A87: ASAL | B87: EQ | C87: 91.5 | D87: 94 | E87: 85.6 | F87: 88.6 | G87: 89 | H87: 92.35 | I87: 39346 | J87: 3530684.85 | K87: 2018-02-01 | L87: 374 | M87: INE900C01027
A88: ASHAPURMIN | B88: EQ | C88: 89.85 | D88: 92.5 | E88: 85 | F88: 86.6 | G88: 86.5 | H88: 89.15 | I88: 367528 | J88: 32454319.6 | K88: 2018-02-01 | L88: 2517 | M88: INE348A01023
A89: ASHIANA | B89: EQ | C89: 202.45 | D89: 206.5 | E89: 181 | F89: 186.1 | G89: 186 | H89: 199.5 | I89: 1400822 | J89: 272745675.4 | K89: 2018-02-01 | L89: 22408 | M89: INE365D01021
A90: ASHIMASYN | B90: EQ | C90: 30.55 | D90: 30.6 | E90: 29.5 | F90: 30.15 | G90: 30.1 | H90: 30.15 | I90: 236756 | J90: 7128921.9 | K90: 2018-02-01 | L90: 711 | M90: INE440A01010
A91: ASHOKA | B91: EQ | C91: 232 | D91: 233.95 | E91: 226.1 | F91: 230 | G91: 232.1 | H91: 227 | I91: 500813 | J91: 115325006.5 | K91: 2018-02-01 | L91: 13064 | M91: INE442H01029
A92: ASHOKLEY | B92: EQ | C92: 126.95 | D92: 126.95 | E92: 116.3 | F92: 123.35 | G92: 124.5 | H92: 126.1 | I92: 15946691 | J92: 1971698771 | K92: 2018-02-01 | L92: 67731 | M92: INE208A01029
A93: ASIANHOTNR | B93: EQ | C93: 274.9 | D93: 290.7 | E93: 269.05 | F93: 271.05 | G93: 272 | H93: 264.3 | I93: 93808 | J93: 26561194.8 | K93: 2018-02-01 | L93: 1685 | M93: INE363A01022
A94: ASIANPAINT | B94: EQ | C94: 1126 | D94: 1157.35 | E94: 1126 | F94: 1153 | G94: 1152 | H94: 1128.3 | I94: 1103162 | J94: 1264145097 | K94: 2018-02-01 | L94: 36419 | M94: INE021A01026
A95: ASIANTILES | B95: EQ | C95: 557 | D95: 565 | E95: 550 | F95: 557.8 | G95: 560 | H95: 549.9 | I95: 63927 | J95: 35615712.95 | K95: 2018-02-01 | L95: 2662 | M95: INE022I01019
A96: ASPINWALL | B96: EQ | C96: 481.05 | D96: 500 | E96: 473 | F96: 486.15 | G96: 485.5 | H96: 495.9 | I96: 2433 | J96: 1188505.7 | K96: 2018-02-01 | L96: 103 | M96: INE991I01015
A97: ASTEC | B97: EQ | C97: 603 | D97: 605 | E97: 569.95 | F97: 572.75 | G97: 573 | H97: 593.1 | I97: 35269 | J97: 20512802.6 | K97: 2018-02-01 | L97: 1542 | M97: INE563J01010
A98: ASTRAL | B98: EQ | C98: 795 | D98: 821.75 | E98: 781.55 | F98: 793.2 | G98: 783 | H98: 798.75 | I98: 25183 | J98: 20210927.95 | K98: 2018-02-01 | L98: 2773 | M98: INE006I01046
A99: ASTRAMICRO | B99: EQ | C99: 115.1 | D99: 115.5 | E99: 110.1 | F99: 112.3 | G99: 111.45 | H99: 114.05 | I99: 479201 | J99: 54340512.1 | K99: 2018-02-01 | L99: 3989 | M99: INE386C01029
A100: ASTRAZEN | B100: EQ | C100: 1144 | D100: 1160 | E100: 1123 | F100: 1150.3 | G100: 1150 | H100: 1136.45 | I100: 2178 | J100: 2493693.45 | K100: 2018-02-01 | L100: 234 | M100: INE203A01020
A101: ASTRON | B101: EQ | C101: 137.15 | D101: 138.8 | E101: 130.05 | F101: 132.2 | G101: 132.45 | H101: 136.45 | I101: 334697 | J101: 44777626.85 | K101: 2018-02-01 | L101: 5464 | M101: INE646X01014
A102: ATFL | B102: EQ | C102: 665.5 | D102: 688.95 | E102: 639 | F102: 648.25 | G102: 655 | H102: 648 | I102: 23541 | J102: 15492559.8 | K102: 2018-02-01 | L102: 1470 | M102: INE209A01019
A103: ATLANTA | B103: EQ | C103: 109.4 | D103: 111.8 | E103: 105 | F103: 108.95 | G103: 108.85 | H103: 108.8 | I103: 375782 | J103: 41167264.45 | K103: 2018-02-01 | L103: 3059 | M103: INE285H01022
A104: ATUL | B104: EQ | C104: 2758.95 | D104: 2774 | E104: 2666.05 | F104: 2721.05 | G104: 2729 | H104: 2712.45 | I104: 9434 | J104: 25655862 | K104: 2018-02-01 | L104: 1683 | M104: INE100A01010
A105: ATULAUTO | B105: EQ | C105: 414.5 | D105: 442.7 | E105: 409.65 | F105: 416.25 | G105: 415 | H105: 410.95 | I105: 65559 | J105: 27495076.65 | K105: 2018-02-01 | L105: 1710 | M105: INE951D01028
A106: AUBANK | B106: EQ | C106: 652 | D106: 674 | E106: 648 | F106: 662.9 | G106: 661.6 | H106: 656.55 | I106: 147189 | J106: 96981254.35 | K106: 2018-02-01 | L106: 8563 | M106: INE949L01017
A107: AURIONPRO | B107: EQ | C107: 217.3 | D107: 217.35 | E107: 197.55 | F107: 205.8 | G107: 206 | H107: 213.15 | I107: 73104 | J107: 15173793.7 | K107: 2018-02-01 | L107: 1330 | M107: INE132H01018
A108: AUROPHARMA | B108: EQ | C108: 628.6 | D108: 631.35 | E108: 605 | F108: 611.2 | G108: 611.2 | H108: 629.55 | I108: 2665368 | J108: 1642019703 | K108: 2018-02-01 | L108: 64850 | M108: INE406A01037
A109: AUSOMENT | B109: EQ | C109: 81.45 | D109: 81.7 | E109: 76.6 | F109: 78.6 | G109: 79.3 | H109: 79.1 | I109: 11493 | J109: 913733.7 | K109: 2018-02-01 | L109: 171 | M109: INE218C01016
A110: AUTOAXLES | B110: EQ | C110: 1561 | D110: 1614.8 | E110: 1505.05 | F110: 1580.95 | G110: 1591.75 | H110: 1560.5 | I110: 23227 | J110: 36737358 | K110: 2018-02-01 | L110: 3567 | M110: INE449A01011
A111: AUTOLITIND | B111: EQ | C111: 67 | D111: 69.55 | E111: 67 | F111: 68.95 | G111: 68.5 | H111: 65.65 | I111: 13632 | J111: 932101.9 | K111: 2018-02-01 | L111: 195 | M111: INE448A01013
A112: AVADHSUGAR | B112: EQ | C112: 698 | D112: 698 | E112: 667.05 | F112: 674.8 | G112: 673 | H112: 670.95 | I112: 18463 | J112: 12502848.85 | K112: 2018-02-01 | L112: 538 | M112: INE349W01017
A113: AVANTIFEED | B113: EQ | C113: 2254.7 | D113: 2545 | E113: 2236.4 | F113: 2400.55 | G113: 2402.05 | H113: 2217.15 | I113: 495900 | J113: 1200369479 | K113: 2018-02-01 | L113: 38521 | M113: INE871C01020
A114: AVTNPL | B114: EQ | C114: 47.5 | D114: 50.95 | E114: 46 | F114: 49.75 | G114: 50.4 | H114: 45.8 | I114: 448402 | J114: 21699012.05 | K114: 2018-02-01 | L114: 2964 | M114: INE488D01021
A115: AXISBANK | B115: EQ | C115: 593.6 | D115: 610 | E115: 586.1 | F115: 592.8 | G115: 592.45 | H115: 593.6 | I115: 7839731 | J115: 4682507867 | K115: 2018-02-01 | L115: 106898 | M115: INE238A01034
A116: AXISCADES | B116: EQ | C116: 183.4 | D116: 188.85 | E116: 173 | F116: 178.2 | G116: 179.4 | H116: 182.15 | I116: 131319 | J116: 23803265.05 | K116: 2018-02-01 | L116: 1777 | M116: INE555B01013
A117: AXISGOLD | B117: EQ | C117: 2638 | D117: 2638 | E117: 2620 | F117: 2631.3 | G117: 2632 | H117: 2625 | I117: 79 | J117: 207796.75 | K117: 2018-02-01 | L117: 27 | M117: INF846K01347
A118: AXISNIFTY | B118: EQ | C118: 1106 | D118: 1118.9 | E118: 1103 | F118: 1118.9 | G118: 1118.9 | H118: 1102.71 | I118: 35 | J118: 38891.95 | K118: 2018-02-01 | L118: 8 | M118: INF846K01ZL0
A119: AYMSYNTEX | B119: EQ | C119: 63.9 | D119: 70.4 | E119: 62 | F119: 65.4 | G119: 66.3 | H119: 62.9 | I119: 95363 | J119: 6242255.5 | K119: 2018-02-01 | L119: 658 | M119: INE193B01039
A120: BAFNAPHARM | B120: EQ | C120: 24.35 | D120: 25.3 | E120: 24.35 | F120: 24.5 | G120: 24.5 | H120: 24.7 | I120: 6793 | J120: 168087.25 | K120: 2018-02-01 | L120: 100 | M120: INE878I01014
A121: BAJAJ-AUTO | B121: EQ | C121: 3340 | D121: 3421.2 | E121: 3290 | F121: 3412.95 | G121: 3417.65 | H121: 3337.15 | I121: 439064 | J121: 1479486977 | K121: 2018-02-01 | L121: 31924 | M121: INE917I01010
A122: BAJAJCORP | B122: EQ | C122: 489 | D122: 491.9 | E122: 482.2 | F122: 488.15 | G122: 486.9 | H122: 492.1 | I122: 23025 | J122: 11230171.3 | K122: 2018-02-01 | L122: 1885 | M122: INE933K01021
A123: BAJAJELEC | B123: EQ | C123: 489.8 | D123: 498.4 | E123: 470 | F123: 470.65 | G123: 470 | H123: 488.1 | I123: 289734 | J123: 140095500.9 | K123: 2018-02-01 | L123: 6148 | M123: INE193E01025
A124: BAJAJFINSV | B124: EQ | C124: 4811.05 | D124: 5080 | E124: 4770 | F124: 5038.4 | G124: 5070 | H124: 4812.35 | I124: 350858 | J124: 1730360197 | K124: 2018-02-01 | L124: 29286 | M124: INE918I01018
A125: BAJAJHIND | B125: EQ | C125: 14.25 | D125: 14.35 | E125: 13.85 | F125: 13.95 | G125: 13.95 | H125: 14.15 | I125: 2505592 | J125: 35265986.9 | K125: 2018-02-01 | L125: 2778 | M125: INE306A01021
A126: BAJAJHLDNG | B126: EQ | C126: 2808.9 | D126: 2830.15 | E126: 2767 | F126: 2801.95 | G126: 2802 | H126: 2808.45 | I126: 14050 | J126: 39413289.35 | K126: 2018-02-01 | L126: 1937 | M126: INE118A01012
A127: BAJFINANCE | B127: EQ | C127: 1681.8 | D127: 1760 | E127: 1644.75 | F127: 1729.45 | G127: 1742.9 | H127: 1677.85 | I127: 1939812 | J127: 3304341336 | K127: 2018-02-01 | L127: 57513 | M127: INE296A01024
A128: BALAJITELE | B128: EQ | C128: 151.95 | D128: 151.95 | E128: 145 | F128: 145.8 | G128: 147.05 | H128: 150.15 | I128: 103579 | J128: 15332087.85 | K128: 2018-02-01 | L128: 1530 | M128: INE794B01026
A129: BALAMINES | B129: EQ | C129: 656.2 | D129: 685 | E129: 656.2 | F129: 679.65 | G129: 680.45 | H129: 656.65 | I129: 74249 | J129: 49844232 | K129: 2018-02-01 | L129: 2561 | M129: INE050E01027
A130: BALKRISIND | B130: EQ | C130: 1142 | D130: 1151.7 | E130: 1103.85 | F130: 1131.15 | G130: 1135 | H130: 1141.85 | I130: 533285 | J130: 604356408 | K130: 2018-02-01 | L130: 26844 | M130: INE787D01026
A131: BALLARPUR | B131: EQ | C131: 15.75 | D131: 16.15 | E131: 15.05 | F131: 15.25 | G131: 15.2 | H131: 15.7 | I131: 1188735 | J131: 18452857.05 | K131: 2018-02-01 | L131: 1906 | M131: INE294A01037
A132: BALMLAWRIE | B132: EQ | C132: 240.1 | D132: 243 | E132: 236 | F132: 238.3 | G132: 239.1 | H132: 239.85 | I132: 79413 | J132: 19063440.55 | K132: 2018-02-01 | L132: 1830 | M132: INE164A01016
A133: BALPHARMA | B133: EQ | C133: 103.65 | D133: 103.65 | E133: 99.25 | F133: 100.3 | G133: 100.95 | H133: 101.1 | I133: 23388 | J133: 2362241.45 | K133: 2018-02-01 | L133: 434 | M133: INE083D01012
A134: BALRAMCHIN | B134: EQ | C134: 122 | D134: 122.45 | E134: 116.1 | F134: 118.4 | G134: 118.4 | H134: 122.15 | I134: 1519691 | J134: 182183970.4 | K134: 2018-02-01 | L134: 12519 | M134: INE119A01028
A135: BANARISUG | B135: EQ | C135: 1810 | D135: 1910 | E135: 1806 | F135: 1819.25 | G135: 1806 | H135: 1829.15 | I135: 897 | J135: 1667637.4 | K135: 2018-02-01 | L135: 216 | M135: INE459A01010
A136: BANCOINDIA | B136: EQ | C136: 236.7 | D136: 239.85 | E136: 230 | F136: 237.2 | G136: 238 | H136: 232.95 | I136: 68827 | J136: 16236810.95 | K136: 2018-02-01 | L136: 2729 | M136: INE213C01025
A137: BANG | B137: EQ | C137: 35 | D137: 36.5 | E137: 35 | F137: 35.2 | G137: 35.2 | H137: 36.1 | I137: 1765 | J137: 63123.15 | K137: 2018-02-01 | L137: 34 | M137: INE863I01016
A138: BANKBARODA | B138: EQ | C138: 158.05 | D138: 158.6 | E138: 151.75 | F138: 152.35 | G138: 152.25 | H138: 156.8 | I138: 12039264 | J138: 1872204496 | K138: 2018-02-01 | L138: 62803 | M138: INE028A01039
A139: BANKBEES | B139: EQ | C139: 2771 | D139: 2795 | E139: 2746.5 | F139: 2759.99 | G139: 2760 | H139: 2771.53 | I139: 6160 | J139: 17113468.43 | K139: 2018-02-01 | L139: 621 | M139: INF732E01078
A140: BANKINDIA | B140: EQ | C140: 157 | D140: 158.95 | E140: 152.75 | F140: 153.5 | G140: 153.85 | H140: 157.2 | I140: 3735400 | J140: 583353405.2 | K140: 2018-02-01 | L140: 21231 | M140: INE084A01016
A141: BANSWRAS | B141: EQ | C141: 128.95 | D141: 129 | E141: 123.1 | F141: 124.7 | G141: 123.1 | H141: 125.3 | I141: 9048 | J141: 1139677.85 | K141: 2018-02-01 | L141: 168 | M141: INE629D01012
A142: BASF | B142: EQ | C142: 2128 | D142: 2225 | E142: 2045.05 | F142: 2062.25 | G142: 2070 | H142: 2128.35 | I142: 40921 | J142: 85913354.85 | K142: 2018-02-01 | L142: 3380 | M142: INE373A01013
A143: BASML | B143: EQ | C143: 305 | D143: 312.9 | E143: 301.55 | F143: 303.8 | G143: 305.05 | H143: 305.65 | I143: 2047 | J143: 624881 | K143: 2018-02-01 | L143: 74 | M143: INE186H01014
A144: BATAINDIA | B144: EQ | C144: 706.95 | D144: 717.95 | E144: 694.65 | F144: 710.3 | G144: 711 | H144: 705.95 | I144: 666174 | J144: 471660180.9 | K144: 2018-02-01 | L144: 12655 | M144: INE176A01028
A145: BAYERCROP | B145: EQ | C145: 4629.75 | D145: 4629.75 | E145: 4507 | F145: 4582.15 | G145: 4585 | H145: 4551.25 | I145: 32383 | J145: 147960095.1 | K145: 2018-02-01 | L145: 2029 | M145: INE462A01022
A146: BBL | B146: EQ | C146: 1362.9 | D146: 1397 | E146: 1351 | F146: 1373.6 | G146: 1375 | H146: 1355.75 | I146: 22223 | J146: 30501020 | K146: 2018-02-01 | L146: 1710 | M146: INE464A01028
A147: BBTC | B147: EQ | C147: 1409.7 | D147: 1448 | E147: 1361.1 | F147: 1419.65 | G147: 1412 | H147: 1399.95 | I147: 154166 | J147: 218641711.1 | K147: 2018-02-01 | L147: 6531 | M147: INE050A01025
A148: BEARDSELL | B148: EQ | C148: 61.5 | D148: 63 | E148: 60.9 | F148: 62.5 | G148: 62.5 | H148: 60.2 | I148: 1826 | J148: 113730.3 | K148: 2018-02-01 | L148: 26 | M148: INE520H01022
A149: BEDMUTHA | B149: EQ | C149: 24.6 | D149: 25.9 | E149: 23.75 | F149: 25.6 | G149: 25.9 | H149: 24 | I149: 19791 | J149: 497173.4 | K149: 2018-02-01 | L149: 119 | M149: INE844K01012
A150: BEL | B150: EQ | C150: 170 | D150: 171.2 | E150: 161.1 | F150: 161.55 | G150: 161.45 | H150: 169.35 | I150: 13787038 | J150: 2283263202 | K150: 2018-02-01 | L150: 125275 | M150: INE263A01024
A151: BEML | B151: EQ | C151: 1455 | D151: 1495 | E151: 1433.2 | F151: 1455.75 | G151: 1459.05 | H151: 1454.6 | I151: 458769 | J151: 672286452 | K151: 2018-02-01 | L151: 13896 | M151: INE258A01016
A152: BEPL | B152: EQ | C152: 172 | D152: 177.9 | E152: 163.1 | F152: 176.95 | G152: 177.8 | H152: 169.45 | I152: 1288151 | J152: 224131902.3 | K152: 2018-02-01 | L152: 12242 | M152: INE922A01025
A153: BERGEPAINT | B153: EQ | C153: 250.95 | D153: 261.2 | E153: 250.5 | F153: 260.15 | G153: 260.5 | H153: 250.35 | I153: 1125258 | J153: 289094863.3 | K153: 2018-02-01 | L153: 20643 | M153: INE463A01038
A154: BFINVEST | B154: EQ | C154: 306 | D154: 315 | E154: 293.65 | F154: 309.15 | G154: 313 | H154: 307.85 | I154: 77945 | J154: 24047184.75 | K154: 2018-02-01 | L154: 2677 | M154: INE878K01010
A155: BFUTILITIE | B155: EQ | C155: 476.8 | D155: 488.2 | E155: 456.55 | F155: 469 | G155: 472 | H155: 483.85 | I155: 502332 | J155: 239022158.2 | K155: 2018-02-01 | L155: 9924 | M155: INE243D01012
A156: BGRENERGY | B156: EQ | C156: 133 | D156: 134 | E156: 129.85 | F156: 131.65 | G156: 131.3 | H156: 132.8 | I156: 58386 | J156: 7716831.4 | K156: 2018-02-01 | L156: 932 | M156: INE661I01014
A157: BHAGERIA | B157: EQ | C157: 328 | D157: 334.7 | E157: 318.3 | F157: 325.65 | G157: 326 | H157: 316.9 | I157: 150871 | J157: 49305894.55 | K157: 2018-02-01 | L157: 3789 | M157: INE354C01027
A158: BHAGYANGR | B158: EQ | C158: 41 | D158: 42.9 | E158: 39.1 | F158: 41.7 | G158: 41.25 | H158: 41.65 | I158: 20006 | J158: 829897.85 | K158: 2018-02-01 | L158: 340 | M158: INE458B01036
A159: BHAGYAPROP | B159: EQ | C159: 22.1 | D159: 22.6 | E159: 22 | F159: 22.1 | G159: 22.6 | H159: 22 | I159: 967 | J159: 21375.15 | K159: 2018-02-01 | L159: 10 | M159: INE363W01018
A160: BHARATFIN | B160: EQ | C160: 1047.5 | D160: 1081.45 | E160: 1038.8 | F160: 1066.75 | G160: 1062.5 | H160: 1051.65 | I160: 1222040 | J160: 1297352575 | K160: 2018-02-01 | L160: 56709 | M160: INE180K01011
A161: BHARATFORG | B161: EQ | C161: 718.5 | D161: 732 | E161: 711.95 | F161: 724.45 | G161: 720.75 | H161: 717.1 | I161: 831151 | J161: 600312103.9 | K161: 2018-02-01 | L161: 14662 | M161: INE465A01025
A162: BHARATGEAR | B162: EQ | C162: 208.1 | D162: 221 | E162: 193.8 | F162: 209 | G162: 210.8 | H162: 197.1 | I162: 486009 | J162: 103785850.2 | K162: 2018-02-01 | L162: 9064 | M162: INE561C01019
A163: BHARATIWIN | B163: EQ | C163: 38.55 | D163: 38.89 | E163: 37.9 | F163: 38.43 | G163: 38.44 | H163: 38.35 | I163: 2506877 | J163: 96693947.9 | K163: 2018-02-01 | L163: 2633 | M163: INF109KB15Y7
A164: BHARATRAS | B164: EQ | C164: 4016.65 | D164: 4259 | E164: 3954 | F164: 4142.25 | G164: 4101 | H164: 4008.05 | I164: 2050 | J164: 8365761.1 | K164: 2018-02-01 | L164: 371 | M164: INE838B01013
A165: BHARATWIRE | B165: EQ | C165: 124.4 | D165: 132.25 | E165: 124.4 | F165: 127.15 | G165: 127.35 | H165: 125.25 | I165: 163603 | J165: 21073808.6 | K165: 2018-02-01 | L165: 1618 | M165: INE316L01019
A166: BHARTIARTL | B166: EQ | C166: 440.05 | D166: 447 | E166: 430.1 | F166: 438.4 | G166: 440.8 | H166: 439.85 | I166: 7297226 | J166: 3189690678 | K166: 2018-02-01 | L166: 90476 | M166: INE397D01024
A167: BHEL | B167: EQ | C167: 100.5 | D167: 102.05 | E167: 97.15 | F167: 100.35 | G167: 100.45 | H167: 100.2 | I167: 10520230 | J167: 1055726470 | K167: 2018-02-01 | L167: 71640 | M167: INE257A01026
A168: BHUSANSTL | B168: EQ | C168: 52.1 | D168: 52.65 | E168: 49.2 | F168: 50.1 | G168: 50.2 | H168: 51.15 | I168: 4457171 | J168: 226283564.7 | K168: 2018-02-01 | L168: 18894 | M168: INE824B01021
A169: BIGBLOC | B169: EQ | C169: 136.1 | D169: 138.25 | E169: 133.1 | F169: 136.4 | G169: 136.5 | H169: 135.4 | I169: 87344 | J169: 11877539.4 | K169: 2018-02-01 | L169: 765 | M169: INE412U01017
A170: BIL | B170: EQ | C170: 487 | D170: 487 | E170: 465.1 | F170: 467.6 | G170: 467 | H170: 480.4 | I170: 6087 | J170: 2866786.75 | K170: 2018-02-01 | L170: 273 | M170: INE828A01016
A171: BILPOWER | B171: EQ | C171: 1.85 | D171: 1.85 | E171: 1.85 | F171: 1.85 | G171: 1.85 | H171: 1.85 | I171: 530 | J171: 980.5 | K171: 2018-02-01 | L171: 6 | M171: INE952D01018
A172: BINDALAGRO | B172: EQ | C172: 33.35 | D172: 36.95 | E172: 33 | F172: 34.05 | G172: 34.25 | H172: 33.05 | I172: 685112 | J172: 24199456.8 | K172: 2018-02-01 | L172: 3908 | M172: INE143A01010
A173: BIOCON | B173: EQ | C173: 616 | D173: 626.95 | E173: 603.5 | F173: 619.1 | G173: 622 | H173: 614.9 | I173: 1899153 | J173: 1175106203 | K173: 2018-02-01 | L173: 29320 | M173: INE376G01013
A174: BIRLACORPN | B174: EQ | C174: 1135 | D174: 1209.2 | E174: 1120 | F174: 1187.1 | G174: 1209.2 | H174: 1127.8 | I174: 41322 | J174: 48052309.95 | K174: 2018-02-01 | L174: 2663 | M174: INE340A01012
A175: BIRLAMONEY | B175: EQ | C175: 80.5 | D175: 82.3 | E175: 77.6 | F175: 79.35 | G175: 79.85 | H175: 79.7 | I175: 144109 | J175: 11446609.1 | K175: 2018-02-01 | L175: 1840 | M175: INE865C01022
A176: BKMINDST | B176: EQ | C176: 43.4 | D176: 43.5 | E176: 39.8 | F176: 40.6 | G176: 40.4 | H176: 41.75 | I176: 105012 | J176: 4415844.3 | K176: 2018-02-01 | L176: 213 | M176: INE831Q01016
A177: BLISSGVS | B177: EQ | C177: 205 | D177: 208 | E177: 204.9 | F177: 205.5 | G177: 205.5 | H177: 205.7 | I177: 513571 | J177: 105925745.4 | K177: 2018-02-01 | L177: 3189 | M177: INE416D01022
A178: BLKASHYAP | B178: EQ | C178: 57.35 | D178: 57.35 | E178: 52.8 | F178: 54.6 | G178: 54.4 | H178: 55.45 | I178: 262050 | J178: 14426668.45 | K178: 2018-02-01 | L178: 1461 | M178: INE350H01032
A179: BLS | B179: EQ | C179: 200 | D179: 214.9 | E179: 199.9 | F179: 209.45 | G179: 211 | H179: 198.85 | I179: 423810 | J179: 87835997.85 | K179: 2018-02-01 | L179: 7675 | M179: INE153T01027
A180: BLUEBLENDS | B180: EQ | C180: 31.4 | D180: 32.65 | E180: 31.35 | F180: 31.45 | G180: 31.35 | H180: 31.9 | I180: 4564 | J180: 144182.9 | K180: 2018-02-01 | L180: 39 | M180: INE113O01014
A181: BLUECOAST | B181: EQ | C181: 131.65 | D181: 131.65 | E181: 131.65 | F181: 131.65 | G181: 131.65 | H181: 125.4 | I181: 21 | J181: 2764.65 | K181: 2018-02-01 | L181: 3 | M181: INE472B01011
A182: BLUEDART | B182: EQ | C182: 4700 | D182: 4710 | E182: 4631 | F182: 4673.9 | G182: 4665 | H182: 4681.85 | I182: 2764 | J182: 12903579.9 | K182: 2018-02-01 | L182: 548 | M182: INE233B01017
A183: BLUESTARCO | B183: EQ | C183: 762 | D183: 764 | E183: 725 | F183: 731.55 | G183: 727 | H183: 751.2 | I183: 75403 | J183: 56214563.1 | K183: 2018-02-01 | L183: 5202 | M183: INE472A01039
A184: BODALCHEM | B184: EQ | C184: 160.2 | D184: 160.45 | E184: 157 | F184: 158.1 | G184: 158.45 | H184: 159.1 | I184: 103075 | J184: 16335037.7 | K184: 2018-02-01 | L184: 1656 | M184: INE338D01028
A185: BOMDYEING | B185: EQ | C185: 229.35 | D185: 232.95 | E185: 206.05 | F185: 221.55 | G185: 222.45 | H185: 228.15 | I185: 4191036 | J185: 940352473.8 | K185: 2018-02-01 | L185: 30729 | M185: INE032A01023
A186: BOSCHLTD | B186: EQ | C186: 19475 | D186: 19619 | E186: 19300 | F186: 19517.85 | G186: 19485 | H186: 19400.25 | I186: 14331 | J186: 279394367.2 | K186: 2018-02-01 | L186: 4811 | M186: INE323A01026
A187: BPCL | B187: EQ | C187: 491.1 | D187: 493.9 | E187: 481.45 | F187: 490.35 | G187: 489 | H187: 492.3 | I187: 3649443 | J187: 1782741836 | K187: 2018-02-01 | L187: 51609 | M187: INE029A01011
A188: BPL | B188: EQ | C188: 102.35 | D188: 103.9 | E188: 97.7 | F188: 100.5 | G188: 100.3 | H188: 101.9 | I188: 657619 | J188: 66606302.75 | K188: 2018-02-01 | L188: 5597 | M188: INE110A01019
A189: BRFL | B189: EQ | C189: 70.9 | D189: 70.9 | E189: 67.55 | F189: 67.55 | G189: 67.55 | H189: 71.1 | I189: 344777 | J189: 23537580.2 | K189: 2018-02-01 | L189: 3165 | M189: INE589G01011
A190: BRIGADE | B190: EQ | C190: 287.95 | D190: 295.1 | E190: 284.8 | F190: 289.55 | G190: 288.1 | H190: 285.4 | I190: 46525 | J190: 13539794.7 | K190: 2018-02-01 | L190: 1451 | M190: INE791I01019
A191: BRITANNIA | B191: EQ | C191: 4684.25 | D191: 4761.7 | E191: 4655.85 | F191: 4740.5 | G191: 4721 | H191: 4684.15 | I191: 148844 | J191: 703495241.6 | K191: 2018-02-01 | L191: 12504 | M191: INE216A01022
A192: BRNL | B192: EQ | C192: 184.45 | D192: 194 | E192: 181.1 | F192: 183 | G192: 182.1 | H192: 182.7 | I192: 38255 | J192: 7174160.6 | K192: 2018-02-01 | L192: 1511 | M192: INE727S01012
A193: BROOKS | B193: EQ | C193: 103.2 | D193: 106.4 | E193: 102.75 | F193: 103.35 | G193: 103.3 | H193: 103.6 | I193: 47554 | J193: 4952510.2 | K193: 2018-02-01 | L193: 565 | M193: INE650L01011
A194: BSE | B194: EQ | C194: 895 | D194: 895 | E194: 851 | F194: 870.8 | G194: 873 | H194: 892.5 | I194: 622064 | J194: 542072947.9 | K194: 2018-02-01 | L194: 19830 | M194: INE118H01025
A195: BSL | B195: EQ | C195: 93.1 | D195: 94.55 | E195: 84.15 | F195: 90.55 | G195: 91.3 | H195: 93.5 | I195: 61656 | J195: 5448658.8 | K195: 2018-02-01 | L195: 808 | M195: INE594B01012
A196: BSLGOLDETF | B196: EQ | C196: 2794 | D196: 2794 | E196: 2762 | F196: 2782 | G196: 2782 | H196: 2750.8 | I196: 17 | J196: 47098.4 | K196: 2018-02-01 | L196: 10 | M196: INF209K01HT2
A197: BSLIMITED | B197: EQ | C197: 1.4 | D197: 1.4 | E197: 1.35 | F197: 1.4 | G197: 1.4 | H197: 1.4 | I197: 754733 | J197: 1021101.65 | K197: 2018-02-01 | L197: 203 | M197: INE043K01029
A198: BSLNIFTY | B198: EQ | C198: 114.8 | D198: 114.8 | E198: 110 | F198: 113.98 | G198: 114 | H198: 109.5 | I198: 294 | J198: 33536.96 | K198: 2018-02-01 | L198: 22 | M198: INF209K01IR4
A199: BYKE | B199: EQ | C199: 189.7 | D199: 196 | E199: 182.4 | F199: 188.7 | G199: 187.55 | H199: 187.1 | I199: 90957 | J199: 17246217.75 | K199: 2018-02-01 | L199: 1591 | M199: INE319B01014
A200: CADILAHC | B200: EQ | C200: 428.55 | D200: 428.55 | E200: 415 | F200: 417.65 | G200: 417.7 | H200: 425.8 | I200: 1318106 | J200: 554768057.7 | K200: 2018-02-01 | L200: 14046 | M200: INE010B01027
... 1184 more rows

Sheet Sheet1 (hidden)

Sheet Sheet3 (hidden)

Sheet Sheet4 (hidden)

Sheet Sheet5 (hidden)

Sheet Call Tracker (Currency)
A1: Master Trade High Risk
A2: Sr.no | B2: Date | C2: Company | D2: Rec | E2: Rec Price | F2: Stop Loss | G2: Call Closed At | H2: Target | I2: Remark | K2: Profit / Loss per share | L2: Gain / Loss per Lot | M2: Lot | N2: Status | O2: Closed Date
A3: 1 | B3: 2017-05-08 | C3: USDINR MAY FUT | D3: Buy | E3: 64.3935 | F3: 64.29 | G3: 64.66 | H3: 64.59 | I3: Profit of Rs.0.27/- | K3: 0.27 | L3: 266.5 | M3: 1000 | N3: Successful | O3: 2017-05-09 | R3: P
A4: 2 | B4: 2017-05-08 | C4: USDINR JUN FUT | D4: Buy | E4: 64.6535 | F4: 64.45 | G4: 64.965 | H4: 65.05 | I4: Profit of Rs 0.31/- | K4: 0.31 | L4: 311.5 | M4: 1000 | N4: Successful | O4: 2017-05-09 | R4: P
A5: 3 | B5: 2017-05-09 | C5: EUROINR MAY FUT | D5: Sell | E5: 70.65 | F5: 70.8 | G5: 70.07 | H5: 70.4 | I5: Profit of Rs 0.58/- | K5: 0.58 | L5: 580 | M5: 1000 | N5: Successful | O5: 2017-05-12 | R5: P
A6: 4 | B6: 2017-05-09 | C6: GBPINR MAY FUT | D6: Buy | E6: 83.774 | F6: 83.37 | G6: 83.37 | H6: 84.77 | I6: Loss of Rs 0.40/- | K6: -0.40 | L6: -404 | M6: 1000 | N6: Unsuccessful | O6: 2017-05-11 | R6: P
A7: 5 | B7: 2017-05-11 | C7: USDINR MAY FUT | D7: Buy | E7: 64.6555 | F7: 64.55 | G7: 64.55 | H7: 64.86 | I7: Loss of Rs.0.1055/- | K7: -0.1055 | L7: =K7*M7 -> -105.50 | M7: 1000 | N7: Unsuccessful | O7: 2017-05-11 | R7: P
A8: 6 | B8: 2017-05-15 | C8: USDINR MAY FUT | D8: Buy | E8: 64.2275 | F8: 64.08 | G8: 64.46 | H8: 64.48 | I8: Profit of Rs 0.23/- | K8: 0.23 | L8: 232.5 | M8: 1000 | N8: Successful | O8: 2017-05-18 | R8: P
A9: 7 | B9: 2017-05-19 | C9: USDINR MAY FUT | D9: Sell | E9: 64.83 | F9: 65 | G9: 65 | H9: 64.5 | I9: Loss of Rs.0.17/- | K9: -0.17 | L9: -170 | M9: 1000 | N9: Unsuccessful | O9: 2017-05-19 | R9: P
A10: 8 | B10: 2017-05-23 | C10: USDINR MAY FUT | D10: Buy | E10: 64.83 | F10: 64.62 | G10: 64.95 | H10: 65.2 | I10: Profit of Rs 0.12/- | K10: 0.12 | L10: 120 | M10: 1000 | N10: Successful | O10: 2017-05-24 | R10: P
A11: 9 | B11: 2017-05-25 | C11: USDINR MAY FUT | D11: Buy | E11: 64.57 | F11: 64.25 | G11: 64.56 | H11: 65 | I11: Loss of Rs.0.01/- | K11: -0.01 | L11: -10 | M11: 1000 | N11: Neutral | O11: 2017-05-29 | R11: P
A12: 10 | B12: 2017-05-30 | C12: USDINR JUN FUT | D12: Buy | E12: 64.9125 | F12: 64.71 | G12: 64.71 | H12: 65.31 | I12: Loss of Rs.0.20/- | K12: -0.20 | L12: -202.5 | M12: 1000 | N12: Unsuccessful | O12: 2017-05-31 | R12: P
A13: 11 | B13: 2017-06-01 | C13: USDINR JUN FUT | D13: Buy | E13: 64.655 | F13: 64.45 | G13: 64.45 | H13: 65.05 | I13: Loss of Rs.0.20/- | K13: =G13-E13 -> -0.20 | L13: =K13*M13 -> -205 | M13: 1000.00 | N13: Unsuccessful | O13: 2017-06-08 | R13: P
A14: 12 | B14: 2017-06-12 | C14: USDINR JUN FUT | D14: Buy | E14: 64.45 | F14: 64 | G14: 64.7625 | H14: 65.2 | I14: Profit of Rs 0.31/- | K14: 0.31 | L14: 312.5 | M14: 1000 | N14: Successful | O14: 2017-06-16
A15: 13 | B15: 2017-06-16 | C15: USDINR JUN FUT | D15: Buy | E15: 64.51 | F15: 64.2 | G15: 64.7 | H15: 65.11 | I15: Profit of Rs 0.19/- | K15: 0.19 | L15: 190 | M15: 1000 | N15: Successful | O15: 2017-06-21
A16: 14 | B16: 2017-06-22 | C16: USDINR JUN FUT | D16: Buy | E16: 64.56 | F16: 64.2 | G16: 64.2 | H16: 65.1 | I16: Loss of Rs.0.36/- | K16: -0.36 | L16: -360 | M16: 1000.00 | N16: Unsuccessful | O16: 2017-06-30
A17: 15 | B17: 2017-07-10 | C17: USDINR JUL FUT | D17: Buy | E17: 64.67 | F17: 64.4 | G17: 64.4 | H17: 65.15 | I17: Loss of Rs.0.27/- | K17: -0.27 | L17: -270 | M17: 1000.00 | N17: Unsuccessful | O17: 2017-07-31
A18: 16 | B18: 2017-08-02 | C18: USDINR AUG FUT | D18: Buy | E18: 64.235 | F18: 63.98 | G18: 63.98 | H18: 64.75 | I18: Loss of Rs.0.26/- | K18: -0.26 | L18: -255 | M18: 1000.00 | N18: Unsuccessful | O18: 2017-08-02
A19: 17 | B19: 2017-08-08 | C19: USDINR AUG FUT | D19: Buy | E19: 63.9425 | F19: 63.6 | G19: 64.15 | H19: 64.5 | I19: Profit of Rs 0.21/- | K19: 0.21 | L19: 207.5 | M19: 1000 | N19: Successful | O19: 2017-08-10
A20: 18 | B20: 2017-08-22 | C20: USDINR AUG FUT | D20: Buy | E20: 64.1175 | F20: 63.9 | G20: 64.01 | H20: 64.5 | I20: Loss of Rs.0.11/- | K20: =G20-E20 -> -0.11 | L20: =K20*M20 -> -107.5 | M20: 1000.00 | N20: Unsuccessful | O20: 2017-08-29
A21: 19 | B21: 2017-09-01 | C21: USDINR SEP FUT | D21: Buy | E21: 64.1 | F21: 63.8 | G21: 64.205 | H21: 64.7 | I21: Profit of Rs 0.11/- | K21: 0.11 | L21: 105 | M21: 1000 | N21: Successful | O21: 2017-09-01
A22: 20 | B22: 2017-09-04 | C22: USDINR SEP FUT | D22: Buy | E22: 64.095 | F22: 63.8 | G22: 64.195 | H22: 64.7 | I22: Profit of Rs 0.10/- | K22: 0.10 | L22: =K22*M22 -> 100 | M22: 1000 | N22: Successful | O22: 2017-09-04
A23: 21 | B23: 2017-09-05 | C23: USDINR SEP FUT | D23: Buy | E23: 64.25 | F23: 64 | G23: 64.355 | H23: 64.75 | I23: Profit of Rs 0.11/- | K23: =G23-E23 -> 0.11 | L23: =K23*M23 -> 105 | M23: 1000 | N23: Successful | O23: 2017-09-06
A24: 22 | B24: 2017-09-06 | C24: USDINR SEP FUT | D24: Sell | E24: 64.365 | F24: 64.5 | G24: 64.265 | H24: 64 | I24: Profit of Rs 0.10/- | K24: =E24-G24 -> 0.10 | L24: 100 | M24: 1000 | N24: Successful | O24: 2017-09-06
A25: 23 | B25: 2017-09-07 | C25: USDINR SEP FUT | D25: Buy | E25: 64.145 | F25: 63.9 | G25: 64.2565 | H25: 64.65 | I25: Profit of Rs 0.11/- | K25: =G25-E25 -> 0.11 | L25: =K25*M25 -> 111.5 | M25: 1000 | N25: Successful | O25: 2017-09-14
A26: 24 | B26: 2017-09-11 | C26: JPYINR SEP FUT | D26: Sell | E26: 59.0285 | F26: 59.25 | G26: 58.645 | H26: 58.5 | I26: Profit of Rs 0.38/- | K26: =E26-G26 -> 0.38 | L26: 383.5 | M26: 1000 | N26: Successful | O26: 2017-09-12
A27: 25 | B27: 2017-09-14 | C27: USDINR SEP FUT | D27: Buy | E27: 64.145 | F27: 63.95 | G27: 64.26 | H27: 64.5 | I27: Profit of Rs 0.12/- | K27: =G27-E27 -> 0.12 | L27: 115 | M27: 1000 | N27: Successful | O27: 2017-09-19
A28: 26 | B28: 2017-09-20 | C28: USDINR SEP FUT | D28: Buy | E28: 64.3515 | F28: 64.15 | G28: 64.57 | H28: 64.75 | I28: Profit of Rs 0.22/- | K28: =G28-E28 -> 0.22 | L28: =K28*M28 -> 218.5 | M28: 1000 | N28: Successful | O28: 2017-09-21
A29: 27 | B29: 2017-09-21 | C29: USDINR SEP FUT | D29: Sell | E29: 64.795 | F29: 65.05 | G29: 65.05 | H29: 64.4 | I29: Loss of Rs.0.17/- | K29: -0.17 | L29: -170 | M29: 1000.00 | N29: Unsuccessful | O29: 2017-09-22
A30: 28 | B30: 2017-09-25 | C30: USDINR SEP FUT | D30: Buy | E30: 64.77 | F30: 64.4 | G30: 64.92 | H30: 65.1 | I30: Profit of Rs 0.15/- | K30: =G30-E30 -> 0.15 | L30: =K30*M30 -> 150 | M30: 1000 | N30: Successful | O30: 2017-09-25
A31: 29 | B31: 2017-09-25 | C31: USDINR SEP FUT | D31: Sell | E31: 65.1077 | F31: 65.3 | G31: 65.3 | H31: 64.5 | I31: Loss of Rs.0.19/- | K31: -0.19 | L31: -190 | M31: 1000.00 | N31: Unsuccessful | O31: 2017-09-26
A32: 30 | B32: 2017-09-27 | C32: USDINR SEP FUT | D32: Sell | E32: 65.7225 | F32: 65.83 | G32: 65.7 | H32: 65.52 | I32: Profit of Rs 0.02/- | K32: =E32-G32 -> 0.02 | L32: =K32*M32 -> 22.5 | M32: 1000 | N32: Neutral | O32: 2017-09-27
A33: 31 | B33: 2017-09-27 | C33: USDINR OCT FUT | D33: Sell | E33: 66 | F33: 66.5 | G33: 65.895 | H33: 65 | I33: Profit of Rs 0.11/- | K33: =E33-G33 -> 0.11 | L33: 105 | M33: 1000 | N33: Successful | O33: 2017-09-27
A34: 32 | B34: 2017-09-28 | C34: USDINR OCT FUT | D34: Sell | E34: 66.075 | F34: 66.3 | G34: 65.96 | H34: 65.4 | I34: Profit of Rs 0.12/- | K34: =E34-G34 -> 0.12 | L34: =K34*M34 -> 115 | M34: 1000 | N34: Successful | O34: 2017-09-28
A35: 33 | B35: 2017-09-29 | C35: GBPINR OCT fut | D35: Buy | E35: 87.745 | F35: 87.5 | G35: 87.84 | H35: 88.25 | I35: Profit of Rs 0.09/- | K35: =G35-E35 -> 0.09 | L35: 95 | M35: 1000 | N35: Successful | O35: 2017-09-29
A36: 34 | B36: 2017-09-29 | C36: USDINR OCT FUT | D36: Buy | E36: 65.514 | F36: 65.25 | G36: 65.85 | H36: 66 | I36: Profit of Rs 0.34/- | K36: 0.34 | L36: =K36*M36 -> 336 | M36: 1000 | N36: Successful | O36: 2017-10-03
A37: 35 | B37: 2017-10-09 | C37: USDINR OCT FUT | D37: Buy | E37: 65.48 | F37: 65.23 | G37: 65.5775 | H37: 65.95 | I37: Profit of Rs 0.10/- | K37: =G37-E37 -> 0.10 | L37: =K37*M37 -> 97.5 | M37: 1000 | N37: Successful | O37: 2017-10-09
A38: 36 | B38: 2017-10-10 | C38: USDINR OCT FUT | D38: Buy | E38: 65.41 | F38: 65.15 | G38: 65.5075 | H38: 66 | I38: Profit of Rs 0.10/- | K38: 0.10 | L38: 97.5 | M38: 1000 | N38: Successful | O38: 2017-10-10
A39: 37 | B39: 2017-10-11 | C39: USDINR OCT FUT | D39: Buy | E39: 65.38 | F39: 65.13 | G39: 65.13 | H39: 65.88 | I39: Loss of Rs.0.25/- | K39: -0.25 | L39: -250 | M39: 1000.00 | N39: Unsuccessful | O39: 2017-10-13
A40: 38 | B40: 2017-10-16 | C40: USDINR OCT FUT | D40: Buy | E40: 64.7925 | F40: 64.54 | G40: 64.905 | H40: 65.3 | I40: Profit of Rs 0.11/- | K40: =G40-E40 -> 0.11 | L40: =K40*M40 -> 112.5 | M40: 1000 | N40: Successful | O40: 2017-10-17
A41: 39 | B41: 2017-10-23 | C41: USDINR OCT FUT | D41: Buy | E41: 65.115 | F41: 64.85 | G41: 65.21 | H41: 65.5 | I41: Profit of Rs 0.09/- | K41: =G41-E41 -> 0.09 | L41: =K41*M41 -> 95 | M41: 1000 | N41: Successful | O41: 2017-10-25
A42: 40 | B42: 2017-10-23 | C42: JPYINR OCT FUT | D42: Buy | E42: 57.285 | F42: 57.03 | G42: 57.38 | H42: 58.4 | I42: Profit of Rs 0.10/- | K42: =G42-E42 -> 0.10 | L42: =K42*M42 -> 95 | M42: 1000 | N42: Successful | O42: 2017-10-23
A43: 41 | B43: 2017-10-26 | C43: USDINR OCT FUT | D43: Buy | E43: 64.755 | F43: 64.5 | G43: 64.87 | H43: 65.25 | I43: Profit of Rs 0.12/- | K43: 0.12 | L43: 115 | M43: 1000 | N43: Successful | O43: 2017-10-25
A44: 42 | B44: 2017-10-30 | C44: USDINR NOV FUT | D44: Buy | E44: 65.035 | F44: 64.79 | G44: 64.79 | H44: 65.5 | I44: Loss of Rs.0.24/- | K44: -0.24 | L44: -245 | M44: 1000.00 | N44: Unsuccessful | O44: 2017-11-01
A45: 43 | B45: 2017-11-01 | C45: JPYINR NOV FUT | D45: Buy | E45: 56.9875 | F45: 56.73 | G45: 57.0959 | H45: 57.5 | I45: Profit of Rs 0.11/- | K45: =G45-E45 -> 0.11 | L45: =K45*M45 -> 108.4 | M45: 1000 | N45: Successful | O45: 2017-11-07
A46: 44 | B46: 2017-11-02 | C46: USDINR NOV FUT | D46: Buy | E46: 64.7838 | F46: 64.5 | G46: 64.89 | H46: 65.25 | I46: Profit of Rs 0.11/- | K46: =G46-E46 -> 0.11 | L46: =K46*M46 -> 106.2 | M46: 1000 | N46: Successful | O46: 2017-11-06
A47: 45 | B47: 2017-11-08 | C47: USDINR NOV FUT | D47: Buy | E47: 65.1363 | F47: 64.8375 | G47: 65.235 | H47: 65.73 | I47: Profit of Rs 0.10/- | K47: =G47-E47 -> 0.10 | L47: =K47*M47 -> 98.7 | M47: 1000 | N47: Successful | O47: 2017-11-10
A48: 46 | B48: 2017-11-08 | C48: GBPINR NOV FUT | D48: Buy | E48: 85.4983 | F48: 85.25 | G48: 85.6 | H48: 86 | I48: Profit of Rs 0.10/- | K48: =G48-E48 -> 0.10 | L48: =K48*M48 -> 101.7 | M48: 1000 | N48: Successful | O48: 2017-11-09
A49: 47 | B49: 2017-11-16 | C49: EURINR NOV FUT | D49: Buy | E49: 76.8975 | F49: 76.3975 | G49: 76.3975 | H49: 77.8975 | I49: Loss of Rs.0.50/- | K49: =G49-E49 -> -0.50 | L49: -500 | M49: 1000.00 | N49: Unsuccessful | O49: 2017-11-01
A50: 48 | B50: 2017-11-16 | C50: JPYINR NOV FUT | D50: Buy | E50: 57.6625 | F50: 57.2675 | G50: 57.8075 | H50: 58.6675 | I50: Profit of Rs 0.14/- | K50: =G50-E50 -> 0.14 | L50: =K50*M50 -> 145 | M50: 1000 | N50: Successful | O50: 2017-11-17
A51: 49 | B51: 2017-11-22 | C51: EURINR NOV FUT | D51: Buy | E51: 76.175 | F51: 75.95 | G51: 76.335 | H51: 76.6 | I51: Profit of Rs 0.16/- | K51: 0.16 | L51: =K51*M51 -> 160 | M51: 1000 | N51: Successful | O51: 2017-11-22
A52: 50 | B52: 2017-11-22 | C52: USDINR NOV FUT | D52: Buy | E52: 64.87 | F52: 64.5 | G52: 64.5 | H52: 65.5 | I52: Loss of Rs.0.37/- | K52: -0.37 | L52: -370 | M52: 1000.00 | N52: Unsuccessful | O52: 2017-11-27
A53: 51 | B53: 2017-11-28 | C53: GBPINR DEC FUT | D53: Buy | E53: 86.17 | F53: 85.85 | G53: 86.46 | H53: 87 | I53: Profit of Rs 0.29/- | K53: 0.29 | L53: =K53*M53 -> 290 | M53: 1000 | N53: Successful | O53: 2017-11-29
A54: 52 | B54: 2017-11-28 | C54: JPYINR DEC FUT | D54: Buy | E54: 58.16 | F54: 57.85 | G54: 57.85 | H54: 58.6 | I54: Loss of Rs.0.31/- | K54: -0.31 | L54: -310 | M54: 1000.00 | N54: Unsuccessful | O54: 2017-11-29
A55: 53 | B55: 2017-11-28 | C55: USDINR DEC FUT | D55: Buy | E55: 64.63 | F55: 64.13 | G55: 64.13 | H55: 65.63 | I55: Loss of Rs.0.50/- | K55: -0.50 | L55: =K55*M55 -> -500 | M55: 1000.00 | N55: Unsuccessful | O55: 2017-12-15
A56: 54 | B56: 2017-11-28 | C56: EURINR DEC FUT | D56: Buy | E56: 76.93 | F56: 76.43 | G56: 76.43 | H56: 77.93 | I56: Loss of Rs.0.50/- | K56: =G56-E56 -> -0.50 | L56: =K56*M56 -> -500 | M56: 1000.00 | N56: Unsuccessful | O56: 2017-11-29
A57: 55 | B57: 2017-12-12 | C57: EURINR DEC FUT | D57: Buy | E57: 76.105 | F57: 75.7 | G57: 76.27 | H57: 76.8 | I57: Profit of Rs 0.16/- | K57: =G57-E57 -> 0.16 | L57: 165 | M57: 1000 | N57: Successful | O57: 2017-12-14
A58: 56 | B58: 2017-12-12 | C58: JPYINR DEC FUT | D58: Buy | E58: 56.975 | F58: 56.7 | G58: 57.21 | H58: 57.6 | I58: Profit of Rs 0.23/- | K58: =G58-E58 -> 0.23 | L58: =K58*M58 -> 235 | M58: 1000 | N58: Successful | O58: 2017-12-14
